{"text_format":"1","workbook":"xlsx","n_sheets":23,"sheets":["Portada.ORI","Copyright_Esp","Portada","1.Director.ORI","1.Director","2.Escuela.ORI","2.Escuela","3.Cursos.ORI","3.Cursos","4.ListaMaestros.ORI","4.ListaMaestros","5.ListaAlumnos.ORI","5.ListaAlumnos","6.Maestro_1.ORI","6.Maestro_1","7.Alumno_1.ORI","7.Alumno_1","Messages","Resource","Parameters","Dictionary","Dictionary_AUX","TAXI"],"not_rendered":{"charts":0,"images":1,"macros":1,"external_links":0,"defined_names":10,"comments":0,"pivot_tables":0},"unopened":[],"bounds":{"document_bytes":16777216,"sheet_cells":100000,"rows_first":2000,"rows_last":500,"rows_between":2000,"halvings":0,"cell_chars":16384,"cell_head_chars":4096},"cells_cut":0,"cells_raw":0,"read":"whole","date_system":"1900"}

{"sheet":"Portada.ORI","index":0,"n_rows":44,"n_cols":32,"rows_kept":44,"cut":false,"hidden":true,"merged":[[40,19,40,20],[41,11,41,12],[33,33,33,34],[35,11,35,12],[36,19,36,20],[37,11,37,12],[37,19,37,20],[38,19,38,20],[25,5,25,6],[25,8,25,9],[25,11,25,15],[39,11,39,12],[39,19,39,20],[27,24,27,34],[31,1,31,35],[33,11,33,12],[33,16,36,16],[33,17,35,20],[33,21,36,21],[33,22,36,23],[33,24,36,25],[27,5,27,6],[27,8,27,9],[27,11,27,15],[24,24,24,34],[12,6,12,13],[12,15,12,17],[14,6,14,13],[14,15,14,17],[16,6,16,17],[18,6,18,17],[18,21,18,34],[19,15,19,17],[20,6,20,17],[22,7,22,17],[22,24,22,34],[10,6,10,13],[10,15,10,17],[0,1,0,35],[1,1,1,35],[2,28,3,35],[3,1,4,1],[3,2,4,9],[4,10,4,26],[4,28,4,35],[6,1,6,18],[6,20,6,35],[8,6,8,13],[8,15,8,17],[8,25,8,26],[2,4,2,27],[2,1,2,3]]}
[null,"{ NOMBRE INSTITUCIÓN / MINISTERIO }  -  { PAÍS }"]
[null,"{ NOMBRE PROYECTO }"]
[null,"V.01",null,null,"ENCUESTA DE ESTABLECIMIENTOS EDUCATIVOS - { AÑO }",null,null,null,null,null,null,null,null,null,null,null,null,null,null,null,null,null,null,null,null,null,null,null,"IDENTIFICADOR DEL ESTABLECIMIENTO EDUCATIVO"]
[null,1,"NOMBRE DEL ESTABLECIMIENTO:"]
[]
[]
[null,"A.- DIRECCIÓN EXACTA DEL ESTABLECIMIENTO",null,null,null,null,null,null,null,null,null,null,null,null,null,null,null,null,null,null,"B.- TIPO Y CONTACTOS"]
[]
[null,2,"{ REGIÓN/ESTADO }",null,null,null,null,null,null,null,null,null,null,null,null,null,null,null,null,null,12,"TIPO:"]
[]
[null,3,"{ PROVINCIA }",null,null,null,null,null,null,null,null,null,null,null,null,null,null,null,null,null,null,1,"PRIMARIA",null,null,null,null,null,null,null,4,"SECUNDARIA TÉCNICA"]
[]
[null,4,"{ MUNICIPIO }",null,null,null,null,null,null,null,null,null,null,null,null,null,null,null,null,null,null,2,"SECUNDARIA",null,null,null,null,null,null,null,5,"{OTRO 1}"]
[]
[null,5,"{ LOCALIDAD }",null,null,null,null,null,null,null,null,null,null,null,null,null,null,null,null,null,null,3,"AMBAS, PRIMARIA Y SECUNDARIA",null,null,null,null,null,null,null,6,"{OTRO 2}"]
[]
[null,6,"{ ZONA / BARRIO }",null,null,null,null,null,null,null,null,null,null,null,null,null,null,null,null,null,13,"NOMBRE DEL DIRECTOR/A:"]
[]
[null,7,"CALLE"]
[]
[null,8,"NÚMERO",null,null,null,null,null,null,null,null,null,null,null,null,null,null,null,null,null,14,"TELÉFONOS:"]
[]
[null,9,"OTRAS REFERENCIAS",null,null,null,null,null,null,null,null,null,null,null,null,null,null,null,null,null,null,null,null,-1]
[]
[null,null,null,null,null,"GEOREFERENCIACIÓN:",null,null,null,null,null,null,null,null,null,null,null,null,null,null,null,null,null,-2]
[null,null,"C10",null,"S",null,null,"°",null,null,"'",null,null,null,null,null,"''"]
[]
[null,null,"C11",null,"W",null,null,"°",null,null,"'",null,null,null,null,null,"''",null,null,null,null,null,null,-3]
[]
[]
[]
[null,"C. INFORMACIÓN SOBRE LA ENTREVISTA"]
[]
[null,15,"ENCUESTADOR/A",null,null,null,null,null,null,null,null,null,null,null,null,null,"VISITA","FECHA",null,null,null,"RESULTADO","HORA INICIO",null,"HORA FIN",null,22,"IDIOMA DE LA ENTREVISTA"]
[null,null,null,null,null,null,null,null,null,null,null,null,null,null,null,null,null,null,null,null,null,null,null,null,null,null,null,1,"CASTELLANO"]
[null,16,"SUPERVISOR/A",null,null,null,null,null,null,null,null,null,null,null,null,null,null,null,null,null,null,null,null,null,null,null,null,2,"{ OTRA LENGUA - 1 }"]
[null,null,null,null,null,null,null,null,null,null,null,null,null,null,null,null,null,"DD","MM","AAAA",null,null,null,null,null,null,null,3,"{ OTRA LENGUA - 2 }"]
[null,17,"{ OTRO PERSONAL - 1 }",null,null,null,null,null,null,null,null,null,null,null,null,null,1,null,null,null,null,null,null,null,null,null,null,4,"{ OTRA LENGUA - 3 }"]
[null,null,null,null,null,null,null,null,null,null,null,null,null,null,null,null,2,null,null,null,null,null,null,null,null,null,null,5,"{ OTRA LENGUA - 4 }"]
[null,18,"{ OTRO PERSONAL - 2 }",null,null,null,null,null,null,null,null,null,null,null,null,null,3,null,null,null,null,null,null,null,null,null,null,6,"{ OTRA LENGUA - 5 }"]
[null,null,null,null,null,null,null,null,null,null,null,null,null,null,null,null,4]
[null,19,"{ OTRO PERSONAL - 3 }",null,null,null,null,null,null,null,null,null,null,null,21,"CÓDIGOS RESULTADO"]
[null,null,null,null,null,null,null,null,null,null,null,null,null,null,null,1,"COMPLETA",null,null,3,"RECHAZO",null,null,5,"DESOCUPADO"]
[null,null,null,null,null,null,null,null,null,null,null,null,null,null,null,2,"PARCIAL",null,null,4,"NO CONTACTÓ",null,null,6,"CERRADO TEMPORALMENTE"]

{"sheet":"Copyright_Esp","index":1,"n_rows":0,"n_cols":0,"rows_kept":0,"cut":false,"hidden":false,"merged":[]}

{"sheet":"Portada","index":2,"n_rows":44,"n_cols":32,"rows_kept":44,"cut":false,"hidden":false,"merged":[[41,11,41,12],[38,19,38,20],[39,19,39,20],[40,19,40,20],[33,17,35,20],[33,11,33,12],[35,11,35,12],[36,19,36,20],[37,19,37,20],[33,33,33,34],[33,24,36,25],[39,11,39,12],[37,11,37,12],[33,16,36,16],[31,1,31,35],[33,22,36,23],[3,2,4,9],[18,21,18,34],[14,15,14,17],[4,10,4,26],[8,25,8,26],[8,6,8,13],[8,15,8,17],[6,20,6,35],[6,1,6,18],[10,6,10,13],[10,15,10,17],[12,6,12,13],[12,15,12,17],[33,21,36,21],[0,1,0,35],[1,1,1,35],[14,6,14,13],[24,24,24,34],[27,24,27,34],[4,28,4,35],[20,6,20,17],[18,6,18,17],[16,6,16,17],[22,7,22,17],[22,24,22,34],[19,15,19,17],[2,28,3,35],[3,1,4,1],[2,1,2,3],[2,4,2,27],[25,5,25,6],[25,8,25,9],[25,11,25,15],[27,5,27,6],[27,8,27,9],[27,11,27,15]]}
[null,"{ NOMBRE INSTITUCIÓN / MINISTERIO }  -  { PAÍS }"]
[null,"{ NOMBRE PROYECTO }"]
[null,"V.01",null,null,"ENCUESTA DE ESTABLECIMIENTOS EDUCATIVOS - { AÑO }",null,null,null,null,null,null,null,null,null,null,null,null,null,null,null,null,null,null,null,null,null,null,null,"IDENTIFICADOR DEL ESTABLECIMIENTO EDUCATIVO"]
[null,1,"NOMBRE DEL ESTABLECIMIENTO:"]
[]
[]
[null,"A.- DIRECCIÓN EXACTA DEL ESTABLECIMIENTO",null,null,null,null,null,null,null,null,null,null,null,null,null,null,null,null,null,null,"B.- TIPO Y CONTACTOS"]
[]
[null,2,"{ REGIÓN/ESTADO }",null,null,null,null,null,null,null,null,null,null,null,null,null,null,null,null,null,12,"TIPO:"]
[]
[null,3,"{ PROVINCIA }",null,null,null,null,null,null,null,null,null,null,null,null,null,null,null,null,null,null,1,"PRIMARIA",null,null,null,null,null,null,null,4,"SECUNDARIA TÉCNICA"]
[]
[null,4,"{ MUNICIPIO }",null,null,null,null,null,null,null,null,null,null,null,null,null,null,null,null,null,null,2,"SECUNDARIA",null,null,null,null,null,null,null,5,"{OTRO 1}"]
[]
[null,5,"{ LOCALIDAD }",null,null,null,null,null,null,null,null,null,null,null,null,null,null,null,null,null,null,3,"AMBAS, PRIMARIA Y SECUNDARIA",null,null,null,null,null,null,null,6,"{OTRO 2}"]
[]
[null,6,"{ ZONA / BARRIO }",null,null,null,null,null,null,null,null,null,null,null,null,null,null,null,null,null,13,"NOMBRE DEL DIRECTOR/A:"]
[]
[null,7,"CALLE"]
[]
[null,8,"NÚMERO",null,null,null,null,null,null,null,null,null,null,null,null,null,null,null,null,null,14,"TELÉFONOS:"]
[]
[null,9,"OTRAS REFERENCIAS",null,null,null,null,null,null,null,null,null,null,null,null,null,null,null,null,null,null,null,null,-1]
[]
[null,null,null,null,null,"GEOREFERENCIACIÓN:",null,null,null,null,null,null,null,null,null,null,null,null,null,null,null,null,null,-2]
[null,null,"C10",null,"S",null,null,"°",null,null,"'",null,null,null,null,null,"''"]
[]
[null,null,"C11",null,"W",null,null,"°",null,null,"'",null,null,null,null,null,"''",null,null,null,null,null,null,-3]
[]
[]
[]
[null,"C. INFORMACIÓN SOBRE LA ENTREVISTA"]
[]
[null,15,"ENCUESTADOR/A",null,null,null,null,null,null,null,null,null,null,null,null,null,"VISITA","FECHA",null,null,null,"RESULTADO","HORA INICIO",null,"HORA FIN",null,22,"IDIOMA DE LA ENTREVISTA"]
[null,null,null,null,null,null,null,null,null,null,null,null,null,null,null,null,null,null,null,null,null,null,null,null,null,null,null,1,"CASTELLANO"]
[null,16,"SUPERVISOR/A",null,null,null,null,null,null,null,null,null,null,null,null,null,null,null,null,null,null,null,null,null,null,null,null,2,"{ OTRA LENGUA - 1 }"]
[null,null,null,null,null,null,null,null,null,null,null,null,null,null,null,null,null,"DD","MM","AAAA",null,null,null,null,null,null,null,3,"{ OTRA LENGUA - 2 }"]
[null,17,"{ OTRO PERSONAL - 1 }",null,null,null,null,null,null,null,null,null,null,null,null,null,1,null,null,null,null,null,null,null,null,null,null,4,"{ OTRA LENGUA - 3 }"]
[null,null,null,null,null,null,null,null,null,null,null,null,null,null,null,null,2,null,null,null,null,null,null,null,null,null,null,5,"{ OTRA LENGUA - 4 }"]
[null,18,"{ OTRO PERSONAL - 2 }",null,null,null,null,null,null,null,null,null,null,null,null,null,3,null,null,null,null,null,null,null,null,null,null,6,"{ OTRA LENGUA - 5 }"]
[null,null,null,null,null,null,null,null,null,null,null,null,null,null,null,null,4]
[null,19,"{ OTRO PERSONAL - 3 }",null,null,null,null,null,null,null,null,null,null,null,21,"CÓDIGOS RESULTADO"]
[null,null,null,null,null,null,null,null,null,null,null,null,null,null,null,1,"COMPLETA",null,null,3,"RECHAZO",null,null,5,"DESOCUPADO"]
[null,null,null,null,null,null,null,null,null,null,null,null,null,null,null,2,"PARCIAL",null,null,4,"NO CONTACTÓ",null,null,6,"CERRADO TEMPORALMENTE"]

{"sheet":"1.Director.ORI","index":3,"n_rows":75,"n_cols":31,"rows_kept":75,"cut":false,"hidden":true,"merged":[[72,8,72,11],[72,12,72,15],[73,8,73,11],[73,12,73,15],[69,8,69,11],[69,12,69,15],[70,8,70,11],[70,12,70,15],[71,8,71,11],[71,12,71,15],[67,8,67,11],[67,12,67,15],[68,8,68,11],[68,12,68,15],[68,31,68,32],[53,13,53,14],[53,31,53,32],[54,5,54,6],[56,0,66,0],[56,8,56,11],[56,12,56,15],[57,8,62,11],[57,12,60,15],[57,31,57,32],[63,19,64,32],[65,29,65,32],[48,22,48,24],[48,30,48,32],[35,31,35,32],[36,13,36,14],[42,19,43,33],[43,13,43,14],[46,22,46,24],[46,30,46,32],[47,13,47,14],[47,22,47,24],[47,30,47,32],[45,30,45,32],[26,1,26,6],[26,7,26,8],[27,9,27,10],[44,5,44,6],[45,22,45,24],[34,10,34,11],[34,6,34,8],[28,9,28,10],[28,13,28,14],[28,19,29,31],[29,9,29,10],[30,13,30,14],[30,31,30,32],[32,31,32,32],[33,23,33,24],[34,19,34,31],[17,31,17,32],[18,25,18,26],[20,31,20,32],[4,12,4,14],[4,31,4,32],[5,23,5,24],[6,13,6,14],[8,20,9,20],[8,21,9,28],[8,31,8,32],[10,12,10,14],[12,12,12,14],[14,13,14,14],[14,31,14,32],[15,23,15,24]]}
["SECCIÓN 1: DIRECTOR/A DEL ESTABLECIMIENTO"]
["RESPONDE: EL DIRECTOR/A O SUB-DIRECTOR/A"]
[]
[-1.01,"¿Qué edad tiene usted?",null,null,null,null,null,null,null,null,null,null,null,null,null,null,null,null,{"$f":"A37-0.01","v":-1.08},"¿Hizo usted un curso de administración?"]
[null,null,null,null,null,null,null,null,null,null,null,"EDAD EN AÑOS:  ",null,null,null,null,null,null,null,null,1,"SI"]
[{"$f":"A4-0.01","v":-1.02},"ANOTE EL SEXO DEL DIRECTOR/A",null,null,null,null,null,null,null,null,null,null,null,null,null,null,null,null,null,null,2,"NO","►",{"$f":"S14","v":-1.1000000000000001}]
[null,null,1,"HOMBRE"]
[null,null,2,"MUJER",null,null,null,null,null,null,null,null,null,null,null,null,null,null,{"$f":"S4-0.01","v":-1.0900000000000001},"¿Cuál fue el área de ese/esos curso(s) de administracoión?"]
[null,null,null,null,null,null,null,null,null,null,null,null,null,null,null,null,null,null,null,null,1,"ADMINISTRACIÓN DE ESTABLECIMIENTOS EDUCACIONALES"]
[{"$f":"A6-0.01","v":-1.03},"¿Desde qué año trabaja usted en este establecimiento?"]
[null,null,null,null,null,null,null,null,null,null,null,"AÑO:  ",null,null,null,null,null,null,null,null,2,"ADMINISTRACIÓN DE EMPRESAS"]
[{"$f":"A10-0.01","v":-1.04},"¿Cuándo fue nombrado director/a de este establecimiento?",null,null,null,null,null,null,null,null,null,null,null,null,null,null,null,null,null,null,3,"OTRO"]
[null,null,null,null,null,null,null,null,null,null,null,"AÑO:  "]
[null,null,null,null,null,null,null,null,null,null,null,null,null,null,null,null,null,null,{"$f":"S8-0.01","v":-1.1000000000000001},"¿Tiene usted el título de maestro/profesor de escuela?"]
[{"$f":"A12-0.01","v":-1.05},"¿Quién lo/a nombró director/a?",null,null,null,null,null,null,null,null,null,null,null,null,null,null,null,null,null,null,1,"SI"]
[null,1,"MINISTERIO DE EDUCACIÓN (CENTRAL)",null,null,null,null,null,null,null,null,null,null,null,null,null,null,null,null,null,2,"NO","►",{"$f":"S29","v":-1.1300000000000001}]
[null,2,"SEDE REGIONAL/ESTATAL DEL MINISTERIO DE EDUCACIÓN",null,null,null,null,null,null,null,null,null,null,null,null,null,null,null,{"$f":"S14-0.01","v":-1.1100000000000001},"¿Su título de maestro/prefosor, es en algún área específica?"]
[null,3,"LA COMUNIDAD DE PADRES",null,null,null,null,null,null,null,null,null,null,null,null,null,null,null,null,null,1,"SI"]
[null,4,"EL LIDER COMUNITARIO",null,null,null,null,null,null,null,null,null,null,null,null,null,null,null,null,null,2,"NO",null,null,"►",{"$f":"S29","v":-1.1300000000000001}]
[null,5,"EL DUEÑO/A DEL ESTABLECIMIENTO",null,null,null,null,null,null,null,null,null,null,null,null,null,null,null,{"$f":"S17-0.01","v":-1.1200000000000001},"¿En qué áreas/materias está usted titulado como maestro/profesor?"]
[null,6,"{ OTRO 1 }",null,null,null,null,null,null,null,null,null,null,null,null,null,null,null,null,1,"MATEMÁTICAS",null,null,null,8,"MÚSICA"]
[null,7,"{ OTRO 2 }",null,null,null,null,null,null,null,null,null,null,null,null,null,null,null,null,2,"CASTELLANO",null,null,null,9,"INGLÉS"]
[null,8,"OTRO",null,null,null,null,null,null,null,null,null,null,null,null,null,null,null,null,3,"CIENCIAS",null,null,null,10,"{ OTRO 1 }"]
[null,null,null,null,null,null,null,null,null,null,null,null,null,null,null,null,null,null,null,4,"FÍSICA",null,null,null,11,"{ OTRO 2 }"]
[{"$f":"A15-0.01","v":-1.06},"¿Cuál es el último NIVEL Y CURSO más alto de instrucción que usted aprobó?",null,null,null,null,null,null,null,null,null,null,null,null,null,null,null,null,null,5,"FILOSOFÍA",null,null,null,12,"{ OTRO 3 }"]
[null,null,null,null,null,null,null,null,null,null,null,null,null,null,null,null,null,null,null,6,"MANUALIDADES",null,null,null,13,"{ OTRO 4 }"]
[null,"NIVEL",null,null,null,null,null,"CURSO",null,null,null,null,null,null,null,null,null,null,null,7,"EDUCACIÓN FÍSICA",null,null,null,14,"OTRO"]
[null,1,"PRIMARIA",null,null,null,null,"1 - 7","►",{"$f":"S29","v":-1.1300000000000001}]
[null,2,"SECUNDARIA",null,null,null,null,"1 - 5","►",{"$f":"S29","v":-1.1300000000000001},null,null,"NIVEL:",null,null,null,null,null,{"$f":"S20-0.01","v":-1.1300000000000001},"Durante el año escolar, ¿Cuántas horas por semana usted trabaja como director/a de escuela?"]
[null,3,"BACHILLERATO",null,null,null,null,"1 - 5","►",{"$f":"S29","v":-1.1300000000000001}]
[null,4,"TERCIARIO TÉCNICO",null,null,null,null,"1 - 3",null,null,null,null,"CURSO:",null,null,null,null,null,null,null,null,null,null,null,null,null,null,null,null,null,"HORAS POR SEMANA:"]
[null,5,"TERCIARIO COMERCIAL",null,null,null,null,"1 - 3",null,null,null,null,null,null,null,null,null,null,{"$f":"S29-0.01","v":-1.1400000000000001},"¿En la actualidad, dicta usted clases en esta escuela?"]
[null,6,"UNIVERSITARIA",null,null,null,null,"1 - 4",null,null,null,null,null,null,null,null,null,null,null,null,1,"SI"]
[null,7,"MAESTRIA/DOCTORADO",null,null,null,null,"1 - 5",null,null,null,null,null,null,null,null,null,null,null,null,2,"NO","►",{"$f":"A43","v":-1.1600000000000001}]
[null,8,"OTRO (ESPECIFIQUE)",null,null,null,null,null,null,"►",{"$f":"S29","v":-1.1300000000000001},null,null,null,null,null,null,null,{"$f":"S32-0.01","v":-1.1500000000000001},"¿Cuántas horas por semana dedica usted para dar clases?"]
[null,null,null,null,null,null,null,null,null,null,null,null,null,null,null,null,null,null,null,null,null,null,null,null,null,null,null,null,null,null,"HORAS POR SEMANA:"]
[{"$f":"A25-0.01","v":-1.07},"¿En qué año aprobó usted ese último nivel y curso?",null,null,null,null,null,null,null,null,null,null,"AÑO:  "]
[]
[]
[]
["SECCIÓN 1: DIRECTOR/A DEL ESTABLECIMIENTO"]
[]
[{"$f":"S35-0.01","v":-1.1600000000000001},"¿Está usted actualmente estudiando algún otro título técnico o comercial?",null,null,null,null,null,null,null,null,null,null,null,null,null,null,null,null,{"$f":"M57-0.01","v":-1.2100000000000002},"¿Cuál fue sl salario del mes pasado como Director de esta escuela? (Incluya honorarios por su desempeño como maestro o profesor)"]
[null,null,1,"SI"]
[null,null,2,"NO","►",{"$f":"I57","v":-1.1900000000000002},null,null,null,null,null,null,null,null,null,null,null,null,null,null,"PARA LOS ÍTEMS QUE NO SON \"EFECTIVO\", PIDA ESTIMAR EL VALOR MONETARIO"]
[null,null,null,null,null,null,null,null,null,null,null,null,null,null,null,null,null,null,null,null,null,null,"MONTO { $ }",null,null,null,null,null,null,null,"MONTO { $ }"]
[{"$f":"A43-0.01","v":-1.1700000000000002},"¿Quál título técnico o comercial está usted estudiando actualmente?",null,null,null,null,null,null,null,null,null,null,null,null,null,null,null,null,null,"a.","En efectivo",null,null,null,null,null,"d.","Transporte"]
[null,null,1,"{ TÍTULO 1 }",null,null,null,null,null,null,null,null,null,null,null,null,null,null,null,"b.","Comida",null,null,null,null,null,"e.","Otros"]
[null,null,2,"{ TÍTULO 2 }",null,null,null,null,null,null,null,null,null,null,null,null,null,null,null,"c.","Vivienda",null,null,null,null,null,"f.","TOTAL"]
[null,null,3,"{ TÍTULO 3 }"]
[null,null,4,"OTRO"]
[null,null,null,null,null,null,null,null,null,null,null,null,null,null,null,null,null,null,{"$f":"S43-0.01","v":-1.2200000000000002},"Además de su trabajo como director/a, ¿tiene usted otro trabajo?"]
[{"$f":"A47-0.01","v":-1.1800000000000002},"¿Durante el último año escolar, asistió usted a algún curso de perfeccionamiento?"]
[null,null,1,"SI",null,null,null,null,null,null,null,null,null,null,null,null,null,null,null,null,1,"SI"]
[null,null,2,"NO","►",{"$f":"S43","v":-1.2100000000000002},null,null,null,null,null,null,null,null,null,null,null,null,null,null,2,"NO","► PRÓXIMA SECCIÓN"]
[]
["NÚMERO CURSO",null,null,null,null,null,null,null,{"$f":"A53-0.01","v":-1.1900000000000002},null,null,null,{"$f":"I57-0.01","v":-1.2000000000000002},null,null,null,null,null,{"$f":"S52-0.01","v":-1.2300000000000002},"¿Cuál de estas categorías diría usted que es la que mejor describe su otro trabajo?"]
[null,null,null,null,null,null,null,null,"¿Asistió usted a [ {CURSO PERFECCIONAMIENTO} ] durante el último año escolar?",null,null,null,"¿Quién financió [ {CURSO PERFECCIONAMIENTO} ]?",null,null,null,null,null,null,null,1,"AGRICULTURA"]
[null,null,null,null,null,null,null,null,null,null,null,null,null,null,null,null,null,null,null,null,2,"POR CUENTA PROPIA"]
[null,null,null,null,null,null,null,null,null,null,null,null,null,null,null,null,null,null,null,null,3,"{ OTRA 1 }"]
[null,null,null,null,null,null,null,null,null,null,null,null,null,null,null,null,null,null,null,null,4,"{ OTRA 2 }"]
[null,null,null,null,null,null,null,null,null,null,null,null,1,"YO MISMO/A",null,null,null,null,null,null,5,"OTRO"]
[null,null,null,null,null,null,null,null,null,null,null,null,2,"LA ESCUELA"]
[null,null,null,null,null,null,null,null,1,null,"SI",null,3,"{ OTRO - 1 }",null,null,null,null,{"$f":"S57-0.01","v":-1.2400000000000002},"¿En los últimos 12 meses, cuanto recibió usted en total por ese/esos otro(s) trabajo(s)?"]
[null,null,null,null,null,null,null,null,2,null,"NO",null,4,"{ OTRO - 2 }"]
[null,null,null,null,null,null,null,null,"► PRÓXIMO CURSO",null,null,null,5,"{ OTRO - 3 }",null,null,null,null,null,null,null,null,null,null,null,null,null,null,"MONTO { $ }"]
[]
[1,"{ CURSO PERFECCIONAMIENTO 1 }"]
[2,"{ CURSO PERFECCIONAMIENTO 2 }",null,null,null,null,null,null,null,null,null,null,null,null,null,null,null,null,{"$f":"S64-0.01","v":-1.2500000000000002},"Nació usted en…"]
[3,"{ CURSO PERFECCIONAMIENTO 3 }",null,null,null,null,null,null,null,null,null,null,null,null,null,null,null,null,null,"LEER EN VOZ ALTA"]
[4,"{ CURSO PERFECCIONAMIENTO 4 }",null,null,null,null,null,null,null,null,null,null,null,null,null,null,null,null,null,1,"¿la misma {Localidad}?"]
[5,"{ CURSO PERFECCIONAMIENTO 5 }",null,null,null,null,null,null,null,null,null,null,null,null,null,null,null,null,null,2,"¿el mismo {Municilio}?"]
[6,"{ CURSO PERFECCIONAMIENTO 6 }",null,null,null,null,null,null,null,null,null,null,null,null,null,null,null,null,null,3,"¿la misma {Provincia}?"]
[7,"{ CURSO PERFECCIONAMIENTO 7 }",null,null,null,null,null,null,null,null,null,null,null,null,null,null,null,null,null,4,"¿la misma {Región/Estado}?"]
[null,null,null,null,null,null,null,null,null,null,null,null,null,null,null,null,null,null,null,5,"¿otro país?"]

{"sheet":"1.Director","index":4,"n_rows":75,"n_cols":31,"rows_kept":75,"cut":false,"hidden":false,"merged":[[73,8,73,11],[73,12,73,15],[53,31,53,32],[57,31,57,32],[65,29,65,32],[63,19,64,32],[67,8,67,11],[67,12,67,15],[69,12,69,15],[70,8,70,11],[68,8,68,11],[68,12,68,15],[69,8,69,11],[71,8,71,11],[71,12,71,15],[72,8,72,11],[42,19,43,33],[45,30,45,32],[48,30,48,32],[72,12,72,15],[46,30,46,32],[47,30,47,32],[70,12,70,15],[45,22,45,24],[46,22,46,24],[47,22,47,24],[48,22,48,24],[68,31,68,32],[43,13,43,14],[36,13,36,14],[34,6,34,8],[34,10,34,11],[26,1,26,6],[28,9,28,10],[29,9,29,10],[28,13,28,14],[30,13,30,14],[26,7,26,8],[27,9,27,10],[57,8,62,11],[56,8,56,11],[56,12,56,15],[47,13,47,14],[56,0,66,0],[53,13,53,14],[54,5,54,6],[57,12,60,15],[44,5,44,6],[4,12,4,14],[6,13,6,14],[10,12,10,14],[32,31,32,32],[12,12,12,14],[14,13,14,14],[14,31,14,32],[15,23,15,24],[20,31,20,32],[17,31,17,32],[4,31,4,32],[5,23,5,24],[8,31,8,32],[8,21,9,28],[8,20,9,20],[35,31,35,32],[33,23,33,24],[18,25,18,26],[30,31,30,32],[28,19,29,31],[34,19,34,31]]}
["SECCIÓN 1: DIRECTOR/A DEL ESTABLECIMIENTO"]
["RESPONDE: EL DIRECTOR/A O SUB-DIRECTOR/A"]
[]
[-1.01,"¿Qué edad tiene usted?",null,null,null,null,null,null,null,null,null,null,null,null,null,null,null,null,{"$f":"A37-0.01","v":-1.08},"¿Hizo usted un curso de administración?"]
[null,null,null,null,null,null,null,null,null,null,null,"EDAD EN AÑOS:  ",null,null,null,null,null,null,null,null,1,"SI"]
[{"$f":"A4-0.01","v":-1.02},"ANOTE EL SEXO DEL DIRECTOR/A",null,null,null,null,null,null,null,null,null,null,null,null,null,null,null,null,null,null,2,"NO","►",{"$f":"S14","v":-1.1000000000000001}]
[null,null,1,"HOMBRE"]
[null,null,2,"MUJER",null,null,null,null,null,null,null,null,null,null,null,null,null,null,{"$f":"S4-0.01","v":-1.0900000000000001},"¿Cuál fue el área de ese/esos curso(s) de administracoión?"]
[null,null,null,null,null,null,null,null,null,null,null,null,null,null,null,null,null,null,null,null,1,"ADMINISTRACIÓN DE ESTABLECIMIENTOS EDUCACIONALES"]
[{"$f":"A6-0.01","v":-1.03},"¿Desde qué año trabaja usted en este establecimiento?"]
[null,null,null,null,null,null,null,null,null,null,null,"AÑO:  ",null,null,null,null,null,null,null,null,2,"ADMINISTRACIÓN DE EMPRESAS"]
[{"$f":"A10-0.01","v":-1.04},"¿Cuándo fue nombrado director/a de este establecimiento?",null,null,null,null,null,null,null,null,null,null,null,null,null,null,null,null,null,null,3,"OTRO"]
[null,null,null,null,null,null,null,null,null,null,null,"AÑO:  "]
[null,null,null,null,null,null,null,null,null,null,null,null,null,null,null,null,null,null,{"$f":"S8-0.01","v":-1.1000000000000001},"¿Tiene usted el título de maestro/profesor de escuela?"]
[{"$f":"A12-0.01","v":-1.05},"¿Quién lo/a nombró director/a?",null,null,null,null,null,null,null,null,null,null,null,null,null,null,null,null,null,null,1,"SI"]
[null,1,"MINISTERIO DE EDUCACIÓN (CENTRAL)",null,null,null,null,null,null,null,null,null,null,null,null,null,null,null,null,null,2,"NO","►",{"$f":"S29","v":-1.1300000000000001}]
[null,2,"SEDE REGIONAL/ESTATAL DEL MINISTERIO DE EDUCACIÓN",null,null,null,null,null,null,null,null,null,null,null,null,null,null,null,{"$f":"S14-0.01","v":-1.1100000000000001},"¿Su título de maestro/prefosor, es en algún área específica?"]
[null,3,"LA COMUNIDAD DE PADRES",null,null,null,null,null,null,null,null,null,null,null,null,null,null,null,null,null,1,"SI"]
[null,4,"EL LIDER COMUNITARIO",null,null,null,null,null,null,null,null,null,null,null,null,null,null,null,null,null,2,"NO",null,null,"►",{"$f":"S29","v":-1.1300000000000001}]
[null,5,"EL DUEÑO/A DEL ESTABLECIMIENTO",null,null,null,null,null,null,null,null,null,null,null,null,null,null,null,{"$f":"S17-0.01","v":-1.1200000000000001},"¿En qué áreas/materias está usted titulado como maestro/profesor?"]
[null,6,"{ OTRO 1 }",null,null,null,null,null,null,null,null,null,null,null,null,null,null,null,null,1,"MATEMÁTICAS",null,null,null,8,"MÚSICA"]
[null,7,"{ OTRO 2 }",null,null,null,null,null,null,null,null,null,null,null,null,null,null,null,null,2,"CASTELLANO",null,null,null,9,"INGLÉS"]
[null,8,"OTRO",null,null,null,null,null,null,null,null,null,null,null,null,null,null,null,null,3,"CIENCIAS",null,null,null,10,"{ OTRO 1 }"]
[null,null,null,null,null,null,null,null,null,null,null,null,null,null,null,null,null,null,null,4,"FÍSICA",null,null,null,11,"{ OTRO 2 }"]
[{"$f":"A15-0.01","v":-1.06},"¿Cuál es el último NIVEL Y CURSO más alto de instrucción que usted aprobó?",null,null,null,null,null,null,null,null,null,null,null,null,null,null,null,null,null,5,"FILOSOFÍA",null,null,null,12,"{ OTRO 3 }"]
[null,null,null,null,null,null,null,null,null,null,null,null,null,null,null,null,null,null,null,6,"MANUALIDADES",null,null,null,13,"{ OTRO 4 }"]
[null,"NIVEL",null,null,null,null,null,"CURSO",null,null,null,null,null,null,null,null,null,null,null,7,"EDUCACIÓN FÍSICA",null,null,null,14,"OTRO"]
[null,1,"PRIMARIA",null,null,null,null,"1 - 7","►",{"$f":"S29","v":-1.1300000000000001}]
[null,2,"SECUNDARIA",null,null,null,null,"1 - 5","►",{"$f":"S29","v":-1.1300000000000001},null,null,"NIVEL:",null,null,null,null,null,{"$f":"S20-0.01","v":-1.1300000000000001},"Durante el año escolar, ¿Cuántas horas por semana usted trabaja como director/a de escuela?"]
[null,3,"BACHILLERATO",null,null,null,null,"1 - 5","►",{"$f":"S29","v":-1.1300000000000001}]
[null,4,"TERCIARIO TÉCNICO",null,null,null,null,"1 - 3",null,null,null,null,"CURSO:",null,null,null,null,null,null,null,null,null,null,null,null,null,null,null,null,null,"HORAS POR SEMANA:"]
[null,5,"TERCIARIO COMERCIAL",null,null,null,null,"1 - 3",null,null,null,null,null,null,null,null,null,null,{"$f":"S29-0.01","v":-1.1400000000000001},"¿En la actualidad, dicta usted clases en esta escuela?"]
[null,6,"UNIVERSITARIA",null,null,null,null,"1 - 4",null,null,null,null,null,null,null,null,null,null,null,null,1,"SI"]
[null,7,"MAESTRIA/DOCTORADO",null,null,null,null,"1 - 5",null,null,null,null,null,null,null,null,null,null,null,null,2,"NO","►",{"$f":"A43","v":-1.1600000000000001}]
[null,8,"OTRO (ESPECIFIQUE)",null,null,null,null,null,null,"►",{"$f":"S29","v":-1.1300000000000001},null,null,null,null,null,null,null,{"$f":"S32-0.01","v":-1.1500000000000001},"¿Cuántas horas por semana dedica usted para dar clases?"]
[null,null,null,null,null,null,null,null,null,null,null,null,null,null,null,null,null,null,null,null,null,null,null,null,null,null,null,null,null,null,"HORAS POR SEMANA:"]
[{"$f":"A25-0.01","v":-1.07},"¿En qué año aprobó usted ese último nivel y curso?",null,null,null,null,null,null,null,null,null,null,"AÑO:  "]
[]
[]
[]
["SECCIÓN 1: DIRECTOR/A DEL ESTABLECIMIENTO"]
[]
[{"$f":"S35-0.01","v":-1.1600000000000001},"¿Está usted actualmente estudiando algún otro título técnico o comercial?",null,null,null,null,null,null,null,null,null,null,null,null,null,null,null,null,{"$f":"M57-0.01","v":-1.2100000000000002},"¿Cuál fue sl salario del mes pasado como Director de esta escuela? (Incluya honorarios por su desempeño como maestro o profesor)"]
[null,null,1,"SI"]
[null,null,2,"NO","►",{"$f":"I57","v":-1.1900000000000002},null,null,null,null,null,null,null,null,null,null,null,null,null,null,"PARA LOS ÍTEMS QUE NO SON \"EFECTIVO\", PIDA ESTIMAR EL VALOR MONETARIO"]
[null,null,null,null,null,null,null,null,null,null,null,null,null,null,null,null,null,null,null,null,null,null,"MONTO { $ }",null,null,null,null,null,null,null,"MONTO { $ }"]
[{"$f":"A43-0.01","v":-1.1700000000000002},"¿Quál título técnico o comercial está usted estudiando actualmente?",null,null,null,null,null,null,null,null,null,null,null,null,null,null,null,null,null,"a.","En efectivo",null,null,null,null,null,"d.","Transporte"]
[null,null,1,"{ TÍTULO 1 }",null,null,null,null,null,null,null,null,null,null,null,null,null,null,null,"b.","Comida",null,null,null,null,null,"e.","Otros"]
[null,null,2,"{ TÍTULO 2 }",null,null,null,null,null,null,null,null,null,null,null,null,null,null,null,"c.","Vivienda",null,null,null,null,null,"f.","TOTAL"]
[null,null,3,"{ TÍTULO 3 }"]
[null,null,4,"OTRO"]
[null,null,null,null,null,null,null,null,null,null,null,null,null,null,null,null,null,null,{"$f":"S43-0.01","v":-1.2200000000000002},"Además de su trabajo como director/a, ¿tiene usted otro trabajo?"]
[{"$f":"A47-0.01","v":-1.1800000000000002},"¿Durante el último año escolar, asistió usted a algún curso de perfeccionamiento?"]
[null,null,1,"SI",null,null,null,null,null,null,null,null,null,null,null,null,null,null,null,null,1,"SI"]
[null,null,2,"NO","►",{"$f":"S43","v":-1.2100000000000002},null,null,null,null,null,null,null,null,null,null,null,null,null,null,2,"NO","► PRÓXIMA SECCIÓN"]
[]
["NÚMERO CURSO",null,null,null,null,null,null,null,{"$f":"A53-0.01","v":-1.1900000000000002},null,null,null,{"$f":"I57-0.01","v":-1.2000000000000002},null,null,null,null,null,{"$f":"S52-0.01","v":-1.2300000000000002},"¿Cuál de estas categorías diría usted que es la que mejor describe su otro trabajo?"]
[null,null,null,null,null,null,null,null,"¿Asistió usted a [ {CURSO PERFECCIONAMIENTO} ] durante el último año escolar?",null,null,null,"¿Quién financió [ {CURSO PERFECCIONAMIENTO} ]?",null,null,null,null,null,null,null,1,"AGRICULTURA"]
[null,null,null,null,null,null,null,null,null,null,null,null,null,null,null,null,null,null,null,null,2,"POR CUENTA PROPIA"]
[null,null,null,null,null,null,null,null,null,null,null,null,null,null,null,null,null,null,null,null,3,"{ OTRA 1 }"]
[null,null,null,null,null,null,null,null,null,null,null,null,null,null,null,null,null,null,null,null,4,"{ OTRA 2 }"]
[null,null,null,null,null,null,null,null,null,null,null,null,1,"YO MISMO/A",null,null,null,null,null,null,5,"OTRO"]
[null,null,null,null,null,null,null,null,null,null,null,null,2,"LA ESCUELA"]
[null,null,null,null,null,null,null,null,1,null,"SI",null,3,"{ OTRO - 1 }",null,null,null,null,{"$f":"S57-0.01","v":-1.2400000000000002},"¿En los últimos 12 meses, cuanto recibió usted en total por ese/esos otro(s) trabajo(s)?"]
[null,null,null,null,null,null,null,null,2,null,"NO",null,4,"{ OTRO - 2 }"]
[null,null,null,null,null,null,null,null,"► PRÓXIMO CURSO",null,null,null,5,"{ OTRO - 3 }",null,null,null,null,null,null,null,null,null,null,null,null,null,null,"MONTO { $ }"]
[]
[1,"{ CURSO PERFECCIONAMIENTO 1 }"]
[2,"{ CURSO PERFECCIONAMIENTO 2 }",null,null,null,null,null,null,null,null,null,null,null,null,null,null,null,null,{"$f":"S64-0.01","v":-1.2500000000000002},"Nació usted en…"]
[3,"{ CURSO PERFECCIONAMIENTO 3 }",null,null,null,null,null,null,null,null,null,null,null,null,null,null,null,null,null,"LEER EN VOZ ALTA"]
[4,"{ CURSO PERFECCIONAMIENTO 4 }",null,null,null,null,null,null,null,null,null,null,null,null,null,null,null,null,null,1,"¿la misma {Localidad}?"]
[5,"{ CURSO PERFECCIONAMIENTO 5 }",null,null,null,null,null,null,null,null,null,null,null,null,null,null,null,null,null,2,"¿el mismo {Municilio}?"]
[6,"{ CURSO PERFECCIONAMIENTO 6 }",null,null,null,null,null,null,null,null,null,null,null,null,null,null,null,null,null,3,"¿la misma {Provincia}?"]
[7,"{ CURSO PERFECCIONAMIENTO 7 }",null,null,null,null,null,null,null,null,null,null,null,null,null,null,null,null,null,4,"¿la misma {Región/Estado}?"]
[null,null,null,null,null,null,null,null,null,null,null,null,null,null,null,null,null,null,null,5,"¿otro país?"]

{"sheet":"2.Escuela.ORI","index":5,"n_rows":101,"n_cols":33,"rows_kept":101,"cut":false,"hidden":true,"merged":[[95,14,95,15],[81,1,81,15],[82,14,82,15],[82,32,82,33],[86,14,86,15],[86,32,86,33],[90,32,90,33],[71,14,71,15],[91,14,91,15],[93,14,93,15],[94,32,94,33],[71,32,71,33],[57,2,59,10],[57,14,57,15],[57,32,57,33],[59,19,60,19],[63,20,64,26],[63,1,65,1],[63,2,65,10],[63,19,64,19],[48,32,48,33],[50,32,50,33],[52,14,52,15],[53,6,53,7],[55,1,56,15],[59,20,60,26],[59,32,59,33],[60,1,62,1],[60,2,62,10],[61,19,62,19],[61,20,62,26],[61,32,61,33],[57,1,59,1],[46,32,46,33],[13,32,13,33],[18,14,18,15],[24,19,25,32],[26,32,26,33],[27,24,27,25],[31,14,31,15],[32,32,32,33],[34,32,34,33],[35,14,35,15],[36,32,36,33],[44,14,44,15],[11,32,11,33],[3,14,3,15],[3,32,3,33],[7,32,7,33],[8,24,8,25],[9,14,9,15]]}
["SECCIÓN 2: CARÁCTERÍSTICAS DEL ESTABLECIMIENTO"]
["RESPONDE: EL DIRECTOR/A O SUB-DIRECTOR/A"]
[-2.0099999999999998,"¿Cuál es el tipo de este establecimiento?",null,null,null,null,null,null,null,null,null,null,null,null,null,null,null,null,{"$f":"A34-0.01","v":-2.0599999999999987},"¿Se utiliza este establecimiento para otros propósitos?"]
[null,"LEA EN VOZ ALTA",null,null,null,null,null,null,null,null,null,null,null,null,null,null,null,null,null,null,null,1,"SI"]
[null,1,"Es público?",null,null,null,null,null,null,null,null,null,null,null,null,null,null,null,null,null,null,2,"NO"]
[null,2,"Es privado religioso?"]
[null,3,"Es privado laico?",null,null,null,null,null,null,null,null,null,null,null,null,null,null,null,{"$f":"S3-0.01","v":-2.0699999999999985},"¿Hay salas especiales para alumnos/as con necesidades especiales?"]
[null,null,null,null,null,null,null,null,null,null,null,null,null,null,null,null,null,null,null,null,null,1,"SI"]
[{"$f":"A3-0.01","v":-2.0199999999999996},"¿Qué religión se enseña en este establecimiento?",null,null,null,null,null,null,null,null,null,null,null,null,null,null,null,null,null,null,null,2,"NO","►",{"$f":"S13-0.01","v":-2.0999999999999979}]
[null,1,"NINGUNA"]
[null,2,"CATÓLICA",null,null,null,null,null,null,null,null,null,null,null,null,null,null,null,{"$f":"S7-0.01","v":-2.0799999999999983},"¿Cuántas salas especiales hay?"]
[null,3,"JUDÍA",null,null,null,null,null,null,null,null,null,null,null,null,null,null,null,null,null,null,null,null,null,null,null,null,null,null,null,null,"NÚMERO:  "]
[null,4,"PROTESTANTE",null,null,null,null,null,null,null,null,null,null,null,null,null,null,null,{"$f":"S11-0.01","v":-2.0899999999999981},"¿Consta este establecimiento con educación pre-escolar?"]
[null,5,"CRISTIANA",null,null,null,null,null,null,null,null,null,null,null,null,null,null,null,null,null,null,1,"SI"]
[null,6,"{ OTRA - 1 }",null,null,null,null,null,null,null,null,null,null,null,null,null,null,null,null,null,null,2,"NO"]
[null,7,"{ OTRA - 2 }"]
[null,null,null,null,null,null,null,null,null,null,null,null,null,null,null,null,null,null,{"$f":"S13-0.01","v":-2.0999999999999979},"¿En qué horario está este establecimiento en funcionamiento?"]
[{"$f":"A9-0.01","v":-2.0299999999999994},"¿Bajo que nivel de gobierno se encuentra la administración de este establecimiento?",null,null,null,null,null,null,null,null,null,null,null,null,null,null,null,null,null,null,null,null,null,null,null,"HH","MM",null,null,null,null,"HH","MM"]
[null,null,null,null,null,null,null,null,null,null,null,null,null,null,null,null,null,null,null,"a.","En la mañana:",null,null,null,"DESDE:  ",null,null,null,null,null,"HASTA:  "]
[null,"MINISTERIO DE EDUCACIÓN…."]
[null,null,1,"NIVEL CENTRAL",null,null,null,null,null,null,null,null,null,null,null,null,null,null,null,"b.","En la tarde:",null,null,null,"DESDE:  ",null,null,null,null,null,"HASTA:  "]
[null,null,2,"NIVEL REGIONAL/ESTATAL"]
[null,null,3,"NIVEL PROVINCIAL",null,null,null,null,null,null,null,null,null,null,null,null,null,null,null,"c.","En la noche:",null,null,null,"DESDE:  ",null,null,null,null,null,"HASTA:  "]
[null,null,4,"NIVEL MUNICIPAL"]
[null,"OTROS…",null,null,null,null,null,null,null,null,null,null,null,null,null,null,null,null,{"$f":"S17-0.01","v":-2.1099999999999977},"Respecto a la política de nuevas admisiones, acepta este establecimiento a todos los postulantes?"]
[null,null,5,"IGLESIA"]
[null,null,6,"ONG",null,null,null,null,null,null,null,null,null,null,null,null,null,null,null,null,null,1,"SI"]
[null,null,7,"COMUNIDAD",null,null,null,null,null,null,null,null,null,null,null,null,null,null,null,null,null,2,"NO","►",{"$f":"A44","v":-2.1299999999999972}]
[null,null,8,"{ OTRA - 2 }"]
[null,null,null,null,null,null,null,null,null,null,null,null,null,null,null,null,null,null,{"$f":"S25-0.01","v":-2.1199999999999974},"¿Cuáles son los tres criterios más importantes que utilizan para admitir nuevos alumnos?"]
[{"$f":"A18-0.01","v":-2.0399999999999991},"¿Desde qué año está este establecimiento en funcionamiento?"]
[null,null,null,null,null,null,null,null,null,null,null,null,null,"AÑO:  ",null,null,null,null,null,null,1,"RENDIMIENTO ESCOLAR PREVIO"]
[null,null,null,null,null,null,null,null,null,null,null,null,null,null,null,null,null,null,null,null,2,"TEST DE ADMISIÓN",null,null,null,null,null,null,null,null,null,"PRIMERO:  "]
[{"$f":"A31-0.01","v":-2.0499999999999989},"¿Cuenta este este establecimiento con una acreditación del Ministerio de Educación?",null,null,null,null,null,null,null,null,null,null,null,null,null,null,null,null,null,null,3,"LUGAR DE RESIDENCIA"]
[null,null,null,null,null,null,null,null,null,null,null,null,null,null,null,null,null,null,null,null,4,"ORDEN DE POSTULACIÓN",null,null,null,null,null,null,null,null,null,"SEGUNDO:  "]
[null,null,null,1,"SI",null,null,null,null,null,null,null,null,null,null,null,null,null,null,null,5,"HERMANOS/AS EN EL ESTABLECIMIENTO"]
[null,null,null,2,"NO",null,null,null,null,null,null,null,null,null,null,null,null,null,null,null,6,"{ OTRA - 1 }",null,null,null,null,null,null,null,null,null,"TERCERO:  "]
[null,null,null,null,null,null,null,null,null,null,null,null,null,null,null,null,null,null,null,null,7,"{ OTRA - 2 }"]
[null,null,null,null,null,null,null,null,null,null,null,null,null,null,null,null,null,null,null,null,8,"{ OTRA - 3 }"]
[null,null,null,null,null,null,null,null,null,null,null,null,null,null,null,null,null,null,null,null,9,"OTRO"]
[]
["SECCIÓN 2: CARÁCTERÍSTICAS DEL ESTABLECIMIENTO"]
[]
[{"$f":"S30-0.01","v":-2.1299999999999972},"¿Cuál es el idioma usado por los maestros/as en las clases?",null,null,null,null,null,null,null,null,null,null,null,null,null,null,null,null,{"$f":"A71-0.01","v":-2.1699999999999964},"¿Cuáles son las tres causas principales del ausentismo de los maestros/as?"]
[null,null,1,"CASTELLANO"]
[null,null,2,"{ OTRA LENGUA - 1 }",null,null,null,null,null,null,null,null,null,null,null,null,null,null,null,null,1,"ENFERMEDAD"]
[null,null,3,"{ OTRA LENGUA - 2 }",null,null,null,null,null,null,null,null,null,null,null,null,null,null,null,null,2,"TIENEN OTROS TRABAJOS",null,null,null,null,null,null,null,null,null,"PRIMERO:  "]
[null,null,4,"{ OTRA LENGUA - 3 }",null,null,null,null,null,null,null,null,null,null,null,null,null,null,null,null,3,"CUIDADO DE FAMILIARES"]
[null,null,5,"{ OTRA LENGUA - 4 }",null,null,null,null,null,null,null,null,null,null,null,null,null,null,null,null,4,"EL TIEMPO ES MALO",null,null,null,null,null,null,null,null,null,"SEGUNDO:  "]
[null,null,6,"{ OTRA LENGUA - 5 }",null,null,null,null,null,null,null,null,null,null,null,null,null,null,null,null,5,"EMBARAZO/PRE-POST NATAL"]
[null,null,null,null,null,null,null,null,null,null,null,null,null,null,null,null,null,null,null,null,6,"TRANSPORTE DIFICULTOSO",null,null,null,null,null,null,null,null,null,"TERCERO:  "]
[{"$f":"A44-0.01","v":-2.139999999999997},"¿Hay alumnos/as que no entienden bien el idioma de instrucción usado en las clases?",null,null,null,null,null,null,null,null,null,null,null,null,null,null,null,null,null,null,7,"{ OTRA - 1 }"]
[null,null,null,1,"SI",null,null,null,null,null,null,null,null,null,null,null,null,null,null,null,8,"{ OTRA - 2 }"]
[null,null,null,2,"NO","►",{"$f":"A71","v":-2.1599999999999966},null,null,null,null,null,null,null,null,null,null,null,null,null,9,"{ OTRA - 3 }"]
[null,null,null,null,null,null,null,null,null,null,null,null,null,null,null,null,null,null,null,null,10,"OTRO"]
[{"$f":"A52-0.01","v":-2.1499999999999968},"¿Qué hacen ustedes (cuál es la política de este establecimiento) respecto a esos alumnos/as que no entienden bien el idioma de instrucción ?"]
[null,null,null,null,null,null,null,null,null,null,null,null,null,null,null,null,null,null,{"$f":"S44-0.01","v":-2.1799999999999962},"¿Qué hacen cuando un maestro/a está ausente?"]
[null,1,"SE LES ENVÍA A CLASES ESPECIALES DEL IDIOMA USADO EN LAS CLASES, EN ESTE ESTABLECIMIENTO",null,null,null,null,null,null,null,null,null,null,null,null,null,null,null,null,1,"OTRO MAESTRO LO REEMPLAZA",null,null,null,null,null,null,null,null,null,null,"PRIMERA MENCIÓN: "]
[null,null,null,null,null,null,null,null,null,null,null,null,null,null,null,null,null,null,null,2,"OTRO PERSONAL LO REEMPLAZA"]
[null,null,null,null,null,null,null,null,null,null,null,null,null,null,null,null,null,null,null,3,"USTED (EL/LA DIRECTORA/A)  LO REEMPLAZA",null,null,null,null,null,null,null,null,null,null,"SEGUNDA MENCIÓN: "]
[null,2,"SE LES ENVÍA A CLASES ESPECIALES DEL IDIOMA USADO EN LAS CLASES, EN OTRO ESTABLECIMIENTO"]
[null,null,null,null,null,null,null,null,null,null,null,null,null,null,null,null,null,null,null,4,"LOS ALUMNOS/AS PERMANECEN SOLOS EN SUS SALAS",null,null,null,null,null,null,null,null,null,null,"TERCERA MENCIÓN: "]
[]
[null,3,"LOS AGRUPAN Y ASIGNAN PROFESORES QUE LOS INSTRUYEN EN EL LENGUAJE QUE ENTIENDEN",null,null,null,null,null,null,null,null,null,null,null,null,null,null,null,null,5,"PIDEN A LOS ALUMNOS/AS IR A JUGAR/HACER DEPORTE"]
[]
[null,null,null,null,null,null,null,null,null,null,null,null,null,null,null,null,null,null,null,6,"ENVÍAN A LOS ALUMNOS A SUS CASAS"]
[null,4,"{ OTRA - 1 }",null,null,null,null,null,null,null,null,null,null,null,null,null,null,null,null,7,"{ OTRO - 1 }"]
[null,5,"{ OTRA - 2 }",null,null,null,null,null,null,null,null,null,null,null,null,null,null,null,null,8,"{ OTRO - 2 }"]
[null,6,"NO HACEN NADA",null,null,null,null,null,null,null,null,null,null,null,null,null,null,null,null,9,"OTRO"]
[]
[{"$f":"A56-0.01","v":-2.1599999999999966},"¿Considera usted que el ausentismo de los maestros un problema?",null,null,null,null,null,null,null,null,null,null,null,null,null,null,null,null,{"$f":"S57-0.01","v":-2.1899999999999959},"¿Con qué frecuencia hacen reunión de Director y maestros/as de este establecimiento?"]
[null,null,null,1,"SI",null,null,null,null,null,null,null,null,null,null,null,null,null,null,null,1,"UNA VEZ EN EL DÍA"]
[null,null,null,2,"NO",null,null,null,null,null,null,null,null,null,null,null,null,null,null,null,2,"UNA VEZ EN EL SEMANA"]
[null,null,null,null,null,null,null,null,null,null,null,null,null,null,null,null,null,null,null,null,3,"UNA VEZ EN EL MES"]
[null,null,null,null,null,null,null,null,null,null,null,null,null,null,null,null,null,null,null,null,4,"UNA VEZ EN EL SEMESTRE"]
[null,null,null,null,null,null,null,null,null,null,null,null,null,null,null,null,null,null,null,null,5,"UNA VEZ EN EL AÑO"]
[null,null,null,null,null,null,null,null,null,null,null,null,null,null,null,null,null,null,null,null,6,"NO SE REUNEN"]
[]
[]
["SECCIÓN 3: CARÁCTERÍSTICAS DEL ESTABLECIMIENTO"]
[]
[{"$f":"S71-0.01","v":-2.1999999999999957},"¿Se exige un mínimo de asistencia a los alumnos para ser promovidos/as?",null,null,null,null,null,null,null,null,null,null,null,null,null,null,null,null,{"$f":"A90-0.01","v":-2.2299999999999951},"¿Dan desayuno gratis a los alumnos/as?"]
[null,null,null,1,"SI",null,null,null,null,null,null,null,null,null,null,null,null,null,null,null,null,1,"SI"]
[null,null,null,2,"NO",null,null,null,null,null,null,null,null,null,null,null,null,null,null,null,null,2,"NO"]
[]
[{"$f":"A82-0.01","v":-2.2099999999999955},"¿Considera usted que el ausentismo de los alumnos un problema?",null,null,null,null,null,null,null,null,null,null,null,null,null,null,null,null,{"$f":"S82-0.01","v":-2.2399999999999949},"¿Dan almuerzo gratis a los alumnos/as?"]
[null,null,null,1,"SI",null,null,null,null,null,null,null,null,null,null,null,null,null,null,null,null,1,"SI"]
[null,null,null,2,"NO",null,null,null,null,null,null,null,null,null,null,null,null,null,null,null,null,2,"NO"]
[]
[{"$f":"A86-0.01","v":-2.2199999999999953},"¿Cuáles son las tres causas principales del ausentismo de los alumnos/as?",null,null,null,null,null,null,null,null,null,null,null,null,null,null,null,null,{"$f":"S86-0.01","v":-2.2499999999999947},"¿Existe una cantina para los alumnos/as?"]
[null,null,1,"ENFERMEDAD",null,null,null,null,null,null,null,null,null,null,null,null,null,null,null,null,null,1,"SI"]
[null,null,2,"TIENEN QUE AYUDAR EN SUS CASAS",null,null,null,null,null,null,null,null,null,"PRIMERO:  ",null,null,null,null,null,null,null,2,"NO"]
[null,null,3,"TIENEN QUE TRABAJAR"]
[null,null,4,"CUIDADO DE FAMILIARES",null,null,null,null,null,null,null,null,null,"SEGUNDO:  ",null,null,null,null,{"$f":"S90-0.01","v":-2.2599999999999945},"¿Existe una cantina para los maestros/as?"]
[null,null,5,"EL TIEMPO ES MALO",null,null,null,null,null,null,null,null,null,null,null,null,null,null,null,null,null,1,"SI"]
[null,null,6,"TRANSPORTE DIFICULTOSO",null,null,null,null,null,null,null,null,null,"TERCERO:  ",null,null,null,null,null,null,null,2,"NO"]
[null,null,7,"NO QUIEREN IR A LA ESCUELA"]
[null,null,8,"{ OTRA - 1 }"]
[null,null,9,"{ OTRA - 2 }"]
[null,null,10,"{ OTRA - 3 }"]
[null,null,11,"OTRO"]

{"sheet":"2.Escuela","index":6,"n_rows":101,"n_cols":33,"rows_kept":101,"cut":false,"hidden":false,"merged":[[57,32,57,33],[59,32,59,33],[32,32,32,33],[34,32,34,33],[36,32,36,33],[35,14,35,15],[53,6,53,7],[52,14,52,15],[46,32,46,33],[48,32,48,33],[50,32,50,33],[60,1,62,1],[60,2,62,10],[63,1,65,1],[63,2,65,10],[44,14,44,15],[57,14,57,15],[55,1,56,15],[57,2,59,10],[57,1,59,1],[3,32,3,33],[11,32,11,33],[13,32,13,33],[3,14,3,15],[31,14,31,15],[8,24,8,25],[7,32,7,33],[9,14,9,15],[18,14,18,15],[24,19,25,32],[27,24,27,25],[26,32,26,33],[61,32,61,33],[59,19,60,19],[59,20,60,26],[63,20,64,26],[63,19,64,19],[61,20,62,26],[61,19,62,19],[94,32,94,33],[71,32,71,33],[93,14,93,15],[95,14,95,15],[82,32,82,33],[86,32,86,33],[81,1,81,15],[82,14,82,15],[86,14,86,15],[91,14,91,15],[71,14,71,15],[90,32,90,33]]}
["SECCIÓN 2: CARÁCTERÍSTICAS DEL ESTABLECIMIENTO"]
["RESPONDE: EL DIRECTOR/A O SUB-DIRECTOR/A"]
[-2.0099999999999998,"¿Cuál es el tipo de este establecimiento?",null,null,null,null,null,null,null,null,null,null,null,null,null,null,null,null,{"$f":"A34-0.01","v":-2.0599999999999987},"¿Se utiliza este establecimiento para otros propósitos?"]
[null,"LEA EN VOZ ALTA",null,null,null,null,null,null,null,null,null,null,null,null,null,null,null,null,null,null,null,1,"SI"]
[null,1,"Es público?",null,null,null,null,null,null,null,null,null,null,null,null,null,null,null,null,null,null,2,"NO"]
[null,2,"Es privado religioso?"]
[null,3,"Es privado laico?",null,null,null,null,null,null,null,null,null,null,null,null,null,null,null,{"$f":"S3-0.01","v":-2.0699999999999985},"¿Hay salas especiales para alumnos/as con necesidades especiales?"]
[null,null,null,null,null,null,null,null,null,null,null,null,null,null,null,null,null,null,null,null,null,1,"SI"]
[{"$f":"A3-0.01","v":-2.0199999999999996},"¿Qué religión se enseña en este establecimiento?",null,null,null,null,null,null,null,null,null,null,null,null,null,null,null,null,null,null,null,2,"NO","►",{"$f":"S13-0.01","v":-2.0999999999999979}]
[null,1,"NINGUNA"]
[null,2,"CATÓLICA",null,null,null,null,null,null,null,null,null,null,null,null,null,null,null,{"$f":"S7-0.01","v":-2.0799999999999983},"¿Cuántas salas especiales hay?"]
[null,3,"JUDÍA",null,null,null,null,null,null,null,null,null,null,null,null,null,null,null,null,null,null,null,null,null,null,null,null,null,null,null,null,"NÚMERO:  "]
[null,4,"PROTESTANTE",null,null,null,null,null,null,null,null,null,null,null,null,null,null,null,{"$f":"S11-0.01","v":-2.0899999999999981},"¿Consta este establecimiento con educación pre-escolar?"]
[null,5,"CRISTIANA",null,null,null,null,null,null,null,null,null,null,null,null,null,null,null,null,null,null,1,"SI"]
[null,6,"{ OTRA - 1 }",null,null,null,null,null,null,null,null,null,null,null,null,null,null,null,null,null,null,2,"NO"]
[null,7,"{ OTRA - 2 }"]
[null,null,null,null,null,null,null,null,null,null,null,null,null,null,null,null,null,null,{"$f":"S13-0.01","v":-2.0999999999999979},"¿En qué horario está este establecimiento en funcionamiento?"]
[{"$f":"A9-0.01","v":-2.0299999999999994},"¿Bajo que nivel de gobierno se encuentra la administración de este establecimiento?",null,null,null,null,null,null,null,null,null,null,null,null,null,null,null,null,null,null,null,null,null,null,null,"HH","MM",null,null,null,null,"HH","MM"]
[null,null,null,null,null,null,null,null,null,null,null,null,null,null,null,null,null,null,null,"a.","En la mañana:",null,null,null,"DESDE:  ",null,null,null,null,null,"HASTA:  "]
[null,"MINISTERIO DE EDUCACIÓN…."]
[null,null,1,"NIVEL CENTRAL",null,null,null,null,null,null,null,null,null,null,null,null,null,null,null,"b.","En la tarde:",null,null,null,"DESDE:  ",null,null,null,null,null,"HASTA:  "]
[null,null,2,"NIVEL REGIONAL/ESTATAL"]
[null,null,3,"NIVEL PROVINCIAL",null,null,null,null,null,null,null,null,null,null,null,null,null,null,null,"c.","En la noche:",null,null,null,"DESDE:  ",null,null,null,null,null,"HASTA:  "]
[null,null,4,"NIVEL MUNICIPAL"]
[null,"OTROS…",null,null,null,null,null,null,null,null,null,null,null,null,null,null,null,null,{"$f":"S17-0.01","v":-2.1099999999999977},"Respecto a la política de nuevas admisiones, acepta este establecimiento a todos los postulantes?"]
[null,null,5,"IGLESIA"]
[null,null,6,"ONG",null,null,null,null,null,null,null,null,null,null,null,null,null,null,null,null,null,1,"SI"]
[null,null,7,"COMUNIDAD",null,null,null,null,null,null,null,null,null,null,null,null,null,null,null,null,null,2,"NO","►",{"$f":"A44","v":-2.1299999999999972}]
[null,null,8,"{ OTRA - 2 }"]
[null,null,null,null,null,null,null,null,null,null,null,null,null,null,null,null,null,null,{"$f":"S25-0.01","v":-2.1199999999999974},"¿Cuáles son los tres criterios más importantes que utilizan para admitir nuevos alumnos?"]
[{"$f":"A18-0.01","v":-2.0399999999999991},"¿Desde qué año está este establecimiento en funcionamiento?"]
[null,null,null,null,null,null,null,null,null,null,null,null,null,"AÑO:  ",null,null,null,null,null,null,1,"RENDIMIENTO ESCOLAR PREVIO"]
[null,null,null,null,null,null,null,null,null,null,null,null,null,null,null,null,null,null,null,null,2,"TEST DE ADMISIÓN",null,null,null,null,null,null,null,null,null,"PRIMERO:  "]
[{"$f":"A31-0.01","v":-2.0499999999999989},"¿Cuenta este este establecimiento con una acreditación del Ministerio de Educación?",null,null,null,null,null,null,null,null,null,null,null,null,null,null,null,null,null,null,3,"LUGAR DE RESIDENCIA"]
[null,null,null,null,null,null,null,null,null,null,null,null,null,null,null,null,null,null,null,null,4,"ORDEN DE POSTULACIÓN",null,null,null,null,null,null,null,null,null,"SEGUNDO:  "]
[null,null,null,1,"SI",null,null,null,null,null,null,null,null,null,null,null,null,null,null,null,5,"HERMANOS/AS EN EL ESTABLECIMIENTO"]
[null,null,null,2,"NO",null,null,null,null,null,null,null,null,null,null,null,null,null,null,null,6,"{ OTRA - 1 }",null,null,null,null,null,null,null,null,null,"TERCERO:  "]
[null,null,null,null,null,null,null,null,null,null,null,null,null,null,null,null,null,null,null,null,7,"{ OTRA - 2 }"]
[null,null,null,null,null,null,null,null,null,null,null,null,null,null,null,null,null,null,null,null,8,"{ OTRA - 3 }"]
[null,null,null,null,null,null,null,null,null,null,null,null,null,null,null,null,null,null,null,null,9,"OTRO"]
[]
["SECCIÓN 2: CARÁCTERÍSTICAS DEL ESTABLECIMIENTO"]
[]
[{"$f":"S30-0.01","v":-2.1299999999999972},"¿Cuál es el idioma usado por los maestros/as en las clases?",null,null,null,null,null,null,null,null,null,null,null,null,null,null,null,null,{"$f":"A71-0.01","v":-2.1699999999999964},"¿Cuáles son las tres causas principales del ausentismo de los maestros/as?"]
[null,null,1,"CASTELLANO"]
[null,null,2,"{ OTRA LENGUA - 1 }",null,null,null,null,null,null,null,null,null,null,null,null,null,null,null,null,1,"ENFERMEDAD"]
[null,null,3,"{ OTRA LENGUA - 2 }",null,null,null,null,null,null,null,null,null,null,null,null,null,null,null,null,2,"TIENEN OTROS TRABAJOS",null,null,null,null,null,null,null,null,null,"PRIMERO:  "]
[null,null,4,"{ OTRA LENGUA - 3 }",null,null,null,null,null,null,null,null,null,null,null,null,null,null,null,null,3,"CUIDADO DE FAMILIARES"]
[null,null,5,"{ OTRA LENGUA - 4 }",null,null,null,null,null,null,null,null,null,null,null,null,null,null,null,null,4,"EL TIEMPO ES MALO",null,null,null,null,null,null,null,null,null,"SEGUNDO:  "]
[null,null,6,"{ OTRA LENGUA - 5 }",null,null,null,null,null,null,null,null,null,null,null,null,null,null,null,null,5,"EMBARAZO/PRE-POST NATAL"]
[null,null,null,null,null,null,null,null,null,null,null,null,null,null,null,null,null,null,null,null,6,"TRANSPORTE DIFICULTOSO",null,null,null,null,null,null,null,null,null,"TERCERO:  "]
[{"$f":"A44-0.01","v":-2.139999999999997},"¿Hay alumnos/as que no entienden bien el idioma de instrucción usado en las clases?",null,null,null,null,null,null,null,null,null,null,null,null,null,null,null,null,null,null,7,"{ OTRA - 1 }"]
[null,null,null,1,"SI",null,null,null,null,null,null,null,null,null,null,null,null,null,null,null,8,"{ OTRA - 2 }"]
[null,null,null,2,"NO","►",{"$f":"A71","v":-2.1599999999999966},null,null,null,null,null,null,null,null,null,null,null,null,null,9,"{ OTRA - 3 }"]
[null,null,null,null,null,null,null,null,null,null,null,null,null,null,null,null,null,null,null,null,10,"OTRO"]
[{"$f":"A52-0.01","v":-2.1499999999999968},"¿Qué hacen ustedes (cuál es la política de este establecimiento) respecto a esos alumnos/as que no entienden bien el idioma de instrucción ?"]
[null,null,null,null,null,null,null,null,null,null,null,null,null,null,null,null,null,null,{"$f":"S44-0.01","v":-2.1799999999999962},"¿Qué hacen cuando un maestro/a está ausente?"]
[null,1,"SE LES ENVÍA A CLASES ESPECIALES DEL IDIOMA USADO EN LAS CLASES, EN ESTE ESTABLECIMIENTO",null,null,null,null,null,null,null,null,null,null,null,null,null,null,null,null,1,"OTRO MAESTRO LO REEMPLAZA",null,null,null,null,null,null,null,null,null,null,"PRIMERA MENCIÓN: "]
[null,null,null,null,null,null,null,null,null,null,null,null,null,null,null,null,null,null,null,2,"OTRO PERSONAL LO REEMPLAZA"]
[null,null,null,null,null,null,null,null,null,null,null,null,null,null,null,null,null,null,null,3,"USTED (EL/LA DIRECTORA/A)  LO REEMPLAZA",null,null,null,null,null,null,null,null,null,null,"SEGUNDA MENCIÓN: "]
[null,2,"SE LES ENVÍA A CLASES ESPECIALES DEL IDIOMA USADO EN LAS CLASES, EN OTRO ESTABLECIMIENTO"]
[null,null,null,null,null,null,null,null,null,null,null,null,null,null,null,null,null,null,null,4,"LOS ALUMNOS/AS PERMANECEN SOLOS EN SUS SALAS",null,null,null,null,null,null,null,null,null,null,"TERCERA MENCIÓN: "]
[]
[null,3,"LOS AGRUPAN Y ASIGNAN PROFESORES QUE LOS INSTRUYEN EN EL LENGUAJE QUE ENTIENDEN",null,null,null,null,null,null,null,null,null,null,null,null,null,null,null,null,5,"PIDEN A LOS ALUMNOS/AS IR A JUGAR/HACER DEPORTE"]
[]
[null,null,null,null,null,null,null,null,null,null,null,null,null,null,null,null,null,null,null,6,"ENVÍAN A LOS ALUMNOS A SUS CASAS"]
[null,4,"{ OTRA - 1 }",null,null,null,null,null,null,null,null,null,null,null,null,null,null,null,null,7,"{ OTRO - 1 }"]
[null,5,"{ OTRA - 2 }",null,null,null,null,null,null,null,null,null,null,null,null,null,null,null,null,8,"{ OTRO - 2 }"]
[null,6,"NO HACEN NADA",null,null,null,null,null,null,null,null,null,null,null,null,null,null,null,null,9,"OTRO"]
[]
[{"$f":"A56-0.01","v":-2.1599999999999966},"¿Considera usted que el ausentismo de los maestros un problema?",null,null,null,null,null,null,null,null,null,null,null,null,null,null,null,null,{"$f":"S57-0.01","v":-2.1899999999999959},"¿Con qué frecuencia hacen reunión de Director y maestros/as de este establecimiento?"]
[null,null,null,1,"SI",null,null,null,null,null,null,null,null,null,null,null,null,null,null,null,1,"UNA VEZ EN EL DÍA"]
[null,null,null,2,"NO",null,null,null,null,null,null,null,null,null,null,null,null,null,null,null,2,"UNA VEZ EN EL SEMANA"]
[null,null,null,null,null,null,null,null,null,null,null,null,null,null,null,null,null,null,null,null,3,"UNA VEZ EN EL MES"]
[null,null,null,null,null,null,null,null,null,null,null,null,null,null,null,null,null,null,null,null,4,"UNA VEZ EN EL SEMESTRE"]
[null,null,null,null,null,null,null,null,null,null,null,null,null,null,null,null,null,null,null,null,5,"UNA VEZ EN EL AÑO"]
[null,null,null,null,null,null,null,null,null,null,null,null,null,null,null,null,null,null,null,null,6,"NO SE REUNEN"]
[]
[]
["SECCIÓN 3: CARÁCTERÍSTICAS DEL ESTABLECIMIENTO"]
[]
[{"$f":"S71-0.01","v":-2.1999999999999957},"¿Se exige un mínimo de asistencia a los alumnos para ser promovidos/as?",null,null,null,null,null,null,null,null,null,null,null,null,null,null,null,null,{"$f":"A90-0.01","v":-2.2299999999999951},"¿Dan desayuno gratis a los alumnos/as?"]
[null,null,null,1,"SI",null,null,null,null,null,null,null,null,null,null,null,null,null,null,null,null,1,"SI"]
[null,null,null,2,"NO",null,null,null,null,null,null,null,null,null,null,null,null,null,null,null,null,2,"NO"]
[]
[{"$f":"A82-0.01","v":-2.2099999999999955},"¿Considera usted que el ausentismo de los alumnos un problema?",null,null,null,null,null,null,null,null,null,null,null,null,null,null,null,null,{"$f":"S82-0.01","v":-2.2399999999999949},"¿Dan almuerzo gratis a los alumnos/as?"]
[null,null,null,1,"SI",null,null,null,null,null,null,null,null,null,null,null,null,null,null,null,null,1,"SI"]
[null,null,null,2,"NO",null,null,null,null,null,null,null,null,null,null,null,null,null,null,null,null,2,"NO"]
[]
[{"$f":"A86-0.01","v":-2.2199999999999953},"¿Cuáles son las tres causas principales del ausentismo de los alumnos/as?",null,null,null,null,null,null,null,null,null,null,null,null,null,null,null,null,{"$f":"S86-0.01","v":-2.2499999999999947},"¿Existe una cantina para los alumnos/as?"]
[null,null,1,"ENFERMEDAD",null,null,null,null,null,null,null,null,null,null,null,null,null,null,null,null,null,1,"SI"]
[null,null,2,"TIENEN QUE AYUDAR EN SUS CASAS",null,null,null,null,null,null,null,null,null,"PRIMERO:  ",null,null,null,null,null,null,null,2,"NO"]
[null,null,3,"TIENEN QUE TRABAJAR"]
[null,null,4,"CUIDADO DE FAMILIARES",null,null,null,null,null,null,null,null,null,"SEGUNDO:  ",null,null,null,null,{"$f":"S90-0.01","v":-2.2599999999999945},"¿Existe una cantina para los maestros/as?"]
[null,null,5,"EL TIEMPO ES MALO",null,null,null,null,null,null,null,null,null,null,null,null,null,null,null,null,null,1,"SI"]
[null,null,6,"TRANSPORTE DIFICULTOSO",null,null,null,null,null,null,null,null,null,"TERCERO:  ",null,null,null,null,null,null,null,2,"NO"]
[null,null,7,"NO QUIEREN IR A LA ESCUELA"]
[null,null,8,"{ OTRA - 1 }"]
[null,null,9,"{ OTRA - 2 }"]
[null,null,10,"{ OTRA - 3 }"]
[null,null,11,"OTRO"]

{"sheet":"3.Cursos.ORI","index":7,"n_rows":22,"n_cols":19,"rows_kept":22,"cut":false,"hidden":true,"merged":[[8,18,9,18],[8,7,9,7],[8,8,9,8],[8,9,9,9],[8,10,9,10],[8,11,9,11],[8,12,9,12],[8,13,9,13],[8,14,9,14],[8,15,9,15],[8,16,9,16],[8,17,9,17],[5,15,5,18],[6,3,6,4],[6,5,6,6],[6,7,6,8],[6,9,6,10],[6,11,6,12],[6,13,6,14],[6,15,6,16],[6,17,6,18],[5,11,5,14],[2,0,9,0],[2,1,9,2],[2,3,2,4],[5,3,5,6],[5,7,5,10],[8,3,9,3],[8,4,9,4],[8,5,9,5],[8,6,9,6]]}
["SECCIÓN 3: CURSOS"]
[]
["NÚMERO DE LÍNEA","GRADO"]
[null,null,null,"COPIE DE LOS REGISTROS DEL ESTABLECIMIENTO EL NÚMERO DE ALUMNOS POR GRADO, SEXO Y CLASE. ESPECIFIQUE, EN CADA CASO, EL NÚMERO DE REPITENTES"]
[]
[null,null,null,"CLASE A",null,null,null,"CLASE B",null,null,null,"CLASE C",null,null,null,"CLASE D"]
[null,null,null,"HOMBRES",null,"MUJERES",null,"HOMBRES",null,"MUJERES",null,"HOMBRES",null,"MUJERES",null,"HOMBRES",null,"MUJERES"]
[null,null,null,-3.01,{"$f":"D8-0.01","v":-3.0199999999999996},-3.0299999999999994,-3.0399999999999991,-3.0499999999999989,-3.0599999999999987,-3.0699999999999985,-3.0799999999999983,-3.0899999999999981,-3.0999999999999979,-3.1099999999999977,-3.1199999999999974,-3.1299999999999972,-3.139999999999997,-3.1499999999999968,-3.1599999999999966]
[null,null,null,"TOTAL","# REPI-TENTES","TOTAL","# REPI-TENTES","TOTAL","# REPI-TENTES","TOTAL","# REPI-TENTES","TOTAL","# REPI-TENTES","TOTAL","# REPI-TENTES","TOTAL","# REPI-TENTES","TOTAL","# REPI-TENTES"]
[]
[1,"GRADO 1"]
[2,"GRADO 2"]
[3,"GRADO 3"]
[4,"GRADO 4"]
[5,"GRADO 5"]
[6,"GRADO 6"]
[7,"GRADO 7"]
[8,"GRADO 8"]
[9,"GRADO 9"]
[10,"GRADO 10"]
[11,"GRADO 11"]
[12,"GRADO 12"]

{"sheet":"3.Cursos","index":8,"n_rows":22,"n_cols":19,"rows_kept":22,"cut":false,"hidden":false,"merged":[[8,6,9,6],[6,13,6,14],[8,11,9,11],[8,12,9,12],[8,13,9,13],[8,14,9,14],[2,0,9,0],[2,1,9,2],[2,3,2,4],[6,3,6,4],[8,9,9,9],[8,3,9,3],[8,4,9,4],[5,3,5,6],[5,7,5,10],[6,7,6,8],[6,9,6,10],[8,7,9,7],[8,8,9,8],[8,10,9,10],[6,5,6,6],[8,5,9,5],[5,11,5,14],[6,11,6,12],[5,15,5,18],[6,17,6,18],[8,15,9,15],[8,16,9,16],[8,17,9,17],[8,18,9,18],[6,15,6,16]]}
["SECCIÓN 3: CURSOS"]
[]
["NÚMERO DE LÍNEA","GRADO"]
[null,null,null,"COPIE DE LOS REGISTROS DEL ESTABLECIMIENTO EL NÚMERO DE ALUMNOS POR GRADO, SEXO Y CLASE. ESPECIFIQUE, EN CADA CASO, EL NÚMERO DE REPITENTES"]
[]
[null,null,null,"CLASE A",null,null,null,"CLASE B",null,null,null,"CLASE C",null,null,null,"CLASE D"]
[null,null,null,"HOMBRES",null,"MUJERES",null,"HOMBRES",null,"MUJERES",null,"HOMBRES",null,"MUJERES",null,"HOMBRES",null,"MUJERES"]
[null,null,null,-3.01,{"$f":"D8-0.01","v":-3.0199999999999996},-3.0299999999999994,-3.0399999999999991,-3.0499999999999989,-3.0599999999999987,-3.0699999999999985,-3.0799999999999983,-3.0899999999999981,-3.0999999999999979,-3.1099999999999977,-3.1199999999999974,-3.1299999999999972,-3.139999999999997,-3.1499999999999968,-3.1599999999999966]
[null,null,null,"TOTAL","# REPI-TENTES","TOTAL","# REPI-TENTES","TOTAL","# REPI-TENTES","TOTAL","# REPI-TENTES","TOTAL","# REPI-TENTES","TOTAL","# REPI-TENTES","TOTAL","# REPI-TENTES","TOTAL","# REPI-TENTES"]
[]
[1,"GRADO 1"]
[2,"GRADO 2"]
[3,"GRADO 3"]
[4,"GRADO 4"]
[5,"GRADO 5"]
[6,"GRADO 6"]
[7,"GRADO 7"]
[8,"GRADO 8"]
[9,"GRADO 9"]
[10,"GRADO 10"]
[11,"GRADO 11"]
[12,"GRADO 12"]

{"sheet":"4.ListaMaestros.ORI","index":9,"n_rows":39,"n_cols":34,"rows_kept":39,"cut":false,"hidden":true,"merged":[[38,33,38,34],[37,18,37,23],[37,24,37,26],[37,27,37,29],[37,31,37,32],[37,33,37,34],[38,1,38,7],[38,8,38,10],[38,11,38,13],[38,14,38,15],[38,16,38,17],[38,18,38,23],[38,24,38,26],[38,27,38,29],[38,31,38,32],[35,14,35,15],[35,16,35,17],[36,33,36,34],[37,1,37,7],[37,8,37,10],[37,11,37,13],[37,14,37,15],[37,16,37,17],[35,18,35,23],[35,24,35,26],[35,27,35,29],[35,31,35,32],[35,33,35,34],[36,1,36,7],[36,8,36,10],[36,11,36,13],[36,14,36,15],[36,16,36,17],[36,18,36,23],[36,24,36,26],[36,27,36,29],[36,31,36,32],[35,1,35,7],[35,8,35,10],[34,11,34,13],[34,14,34,15],[34,16,34,17],[34,18,34,23],[34,24,34,26],[34,27,34,29],[34,31,34,32],[34,33,34,34],[33,1,33,7],[33,8,33,10],[33,11,33,13],[33,14,33,15],[33,16,33,17],[33,18,33,23],[33,24,33,26],[33,27,33,29],[33,31,33,32],[35,11,35,13],[31,33,31,34],[32,1,32,7],[32,8,32,10],[32,11,32,13],[32,14,32,15],[32,16,32,17],[32,18,32,23],[32,24,32,26],[32,27,32,29],[32,31,32,32],[32,33,32,34],[31,1,31,7],[31,8,31,10],[31,11,31,13],[31,14,31,15],[31,16,31,17],[31,18,31,23],[31,24,31,26],[31,27,31,29],[31,31,31,32],[33,33,33,34],[34,1,34,7],[34,8,34,10],[29,33,29,34],[30,1,30,7],[30,8,30,10],[30,11,30,13],[30,14,30,15],[30,16,30,17],[30,18,30,23],[30,24,30,26],[30,27,30,29],[30,31,30,32],[30,33,30,34],[29,1,29,7],[29,8,29,10],[29,11,29,13],[29,14,29,15],[29,16,29,17],[29,18,29,23],[29,24,29,26],[29,27,29,29],[29,31,29,32],[27,33,27,34],[28,1,28,7],[28,8,28,10],[28,11,28,13],[28,14,28,15],[28,16,28,17],[28,18,28,23],[28,24,28,26],[28,27,28,29],[28,31,28,32],[28,33,28,34],[27,1,27,7],[27,8,27,10],[27,11,27,13],[27,14,27,15],[27,16,27,17],[27,18,27,23],[27,24,27,26],[27,27,27,29],[27,31,27,32],[25,33,25,34],[26,1,26,7],[26,8,26,10],[26,11,26,13],[26,14,26,15],[26,16,26,17],[26,18,26,23],[26,24,26,26],[26,27,26,29],[26,31,26,32],[26,33,26,34],[25,1,25,7],[25,8,25,10],[25,11,25,13],[25,14,25,15],[25,16,25,17],[25,18,25,23],[25,24,25,26],[25,27,25,29],[25,31,25,32],[23,31,23,32],[23,33,23,34],[24,1,24,7],[24,8,24,10],[24,11,24,13],[24,14,24,15],[24,16,24,17],[24,18,24,23],[24,24,24,26],[24,27,24,29],[24,31,24,32],[24,33,24,34],[22,1,22,7],[22,14,22,15],[22,16,22,17],[22,27,22,29],[23,1,23,7],[23,8,23,10],[23,11,23,13],[23,14,23,15],[23,16,23,17],[23,18,23,23],[23,24,23,26],[23,27,23,29],[9,31,17,32],[9,33,22,34],[12,18,13,18],[12,19,13,23],[14,18,15,18],[14,19,15,23],[16,18,17,18],[16,19,17,23],[21,24,22,26],[21,27,21,29],[1,34,1,35],[2,0,6,7],[2,8,6,15],[2,17,6,22],[8,0,22,0],[8,1,8,2],[8,8,8,10],[8,11,8,13],[8,14,8,17],[8,18,8,23],[21,11,22,13],[1,8,1,15],[1,30,1,31],[8,24,8,26],[8,27,8,29],[8,31,8,32],[8,33,8,34],[9,1,19,7],[9,8,17,10],[9,11,17,13],[9,14,13,17],[9,18,11,23],[9,24,17,26],[9,27,17,29]]}
["SECCIÓN 4: LISTA DE MAESTROS"]
["INSTRUCCIONES:",null,null,null,null,null,null,null,"ETIQUETA DE NÚMEROS ALEATORIOS",null,null,null,null,null,null,null,null,null,null,null,null,null,null,null,null,null,null,null,null,"INSTRUCCIONES PARA LA COLUMNA",{"$f":"AH9","v":-4.0899999999999981}]
["COMPLETE PRIMERO LAS PREGUNTAS (4.01) A (4.08) PARA TODOS LOS MAESTROS Y EN SEGUIDA PROCEDA A SELECCIONAR A { n } DE ELLOS, SIGUIENDO LAS INSTRUCCIONES CONTENIDAS EN EL MANUAL",null,null,null,null,null,null,null,null,null,null,null,null,null,null,null,null,"SOLO LOS MAESTROS/AS PRESENTES SON ELEGIBLES PARA LA ENCUESTA DE MAESTROS",null,null,null,null,null,null,"ESCRIBA \"1\" FRENTE AL PRIMER MAESTRO SELECCIONADO"]
[null,null,null,null,null,null,null,null,null,null,null,null,null,null,null,null,null,null,null,null,null,null,null,null,"ESCRIBA \"2\" FRENTE AL SEGUNDO MAESTRO SELECCIONADO"]
[null,null,null,null,null,null,null,null,null,null,null,null,null,null,null,null,null,null,null,null,null,null,null,null,"ESCRIBA \"3\" FRENTE AL TERCER MAESTRO SELECCIONADO"]
[]
[null,null,null,null,null,null,null,null,null,null,null,null,null,null,null,null,null,null,null,null,null,null,null,null,"DEJE LAS OTRAS CELDAS DE LA COLUMNA EN BLANCO"]
[]
["CÓDIGO DE IDENTIFICACIÓN DEL MAESTRO",-4.01,null,null,null,null,null,null,{"$f":"B9-0.01","v":-4.0199999999999996},null,null,{"$f":"I9-0.01","v":-4.0299999999999994},null,null,{"$f":"L9-0.01","v":-4.0399999999999991},null,null,null,{"$f":"O9-0.01","v":-4.0499999999999989},null,null,null,null,null,{"$f":"S9-0.01","v":-4.0599999999999987},null,null,{"$f":"Y9-0.01","v":-4.0699999999999985},null,null,null,{"$f":"AB9-0.01","v":-4.0799999999999983},null,{"$f":"AF9-0.01","v":-4.0899999999999981}]
[null,"COPIE LA LISTA DE LOS TODOS LOS MAESTROS, DE LOS REGISTROS DEL ESTABLECIMIENTO",null,null,null,null,null,null,"ANOTE EL SEXO DEL MAESTRO /A",null,null,"¿Qué edad tiene [MAESTRO/A]?",null,null,"¿Hace cuántos años/meses que [MAESTRO/A] trabaja en este establecimiento?",null,null,null,"¿Bajo qué modalidad contractual trabaja [MAESTRO /A ] en este establecimiento?",null,null,null,null,null,"¿Cuántas horas a la semana trabaja [MAESTRO/A] en este establecimiento?",null,null,"¿Cuál es el salario de bolsillo (bruto) mensual de [MAESTRO/A]",null,null,null,"¿Está  ...[MAESTRO]... presente n la escuela hoy?",null,"NÚMERO DE SELECCIÓN MAESTRO/A"]
[]
[]
[null,null,null,null,null,null,null,null,null,null,null,null,null,null,null,null,null,null,1,"CONTRATO INDEFINIDO A TIEMPO COMPLETO"]
[]
[null,null,null,null,null,null,null,null,null,null,null,null,null,null,null,null,null,null,2,"CONTRATO A TIEMPO PARCIAL"]
[]
[null,null,null,null,null,null,null,null,null,null,null,null,null,null,null,null,null,null,3,"NO TIENE NINGÚN ARREGLO FORMAL"]
[]
[null,null,null,null,null,null,null,null,null,null,null,null,null,null,null,null,null,null,4,"{ OTRO - 1 }"]
[null,null,null,null,null,null,null,null,1,"HOMBRE",null,null,null,null,null,null,null,null,5,"{ OTRO - 2 }",null,null,null,null,null,null,null,null,null,null,null,1,"SI"]
[null,null,null,null,null,null,null,null,2,"MUJER",null,null,null,null,null,null,null,null,6,"{ OTRO - 3 }",null,null,null,null,null,null,null,null,null,null,null,2,"NO"]
[null,null,null,null,null,null,null,null,null,null,null,"EDAD EN AÑOS",null,null,null,null,null,null,7,"OTRO",null,null,null,null,"HORAS POR SEMANA",null,null,"MONTO"]
[null,"NOMBRE DEL MAESTRO",null,null,null,null,null,null,null,null,null,null,null,null,"AÑOS",null,"MESES",null,null,null,null,null,null,null,null,null,null,"{ $ }"]
[1]
[2]
[3]
[4]
[5]
[6]
[7]
[8]
[9]
[10]
[11]
[12]
[13]
[14]
[15]
[16]

{"sheet":"4.ListaMaestros","index":10,"n_rows":39,"n_cols":34,"rows_kept":39,"cut":false,"hidden":false,"merged":[[9,27,17,29],[9,31,17,32],[9,1,19,7],[9,8,17,10],[9,11,17,13],[9,14,13,17],[9,18,11,23],[9,24,17,26],[1,8,1,15],[1,30,1,31],[8,24,8,26],[8,27,8,29],[8,31,8,32],[2,17,6,22],[8,33,8,34],[1,34,1,35],[2,0,6,7],[2,8,6,15],[8,0,22,0],[8,1,8,2],[8,8,8,10],[8,11,8,13],[8,14,8,17],[8,18,8,23],[21,11,22,13],[21,24,22,26],[21,27,21,29],[22,1,22,7],[22,14,22,15],[22,16,22,17],[22,27,22,29],[12,18,13,18],[12,19,13,23],[14,18,15,18],[14,19,15,23],[16,18,17,18],[16,19,17,23],[9,33,22,34],[24,33,24,34],[23,1,23,7],[23,8,23,10],[23,11,23,13],[23,14,23,15],[23,16,23,17],[23,18,23,23],[23,24,23,26],[23,27,23,29],[23,31,23,32],[23,33,23,34],[24,1,24,7],[24,8,24,10],[24,11,24,13],[24,14,24,15],[24,16,24,17],[24,18,24,23],[24,24,24,26],[24,27,24,29],[24,31,24,32],[25,31,25,32],[27,8,27,10],[26,8,26,10],[26,11,26,13],[27,11,27,13],[27,18,27,23],[26,18,26,23],[27,16,27,17],[27,33,27,34],[25,33,25,34],[26,33,26,34],[26,31,26,32],[27,31,27,32],[25,1,25,7],[25,8,25,10],[25,11,25,13],[25,14,25,15],[25,16,25,17],[25,18,25,23],[25,24,25,26],[25,27,25,29],[29,14,29,15],[29,16,29,17],[29,18,29,23],[26,1,26,7],[26,14,26,15],[26,16,26,17],[27,1,27,7],[27,14,27,15],[30,1,30,7],[30,8,30,10],[30,11,30,13],[30,14,30,15],[30,16,30,17],[34,8,34,10],[34,11,34,13],[30,18,30,23],[28,1,28,7],[28,8,28,10],[28,11,28,13],[28,14,28,15],[28,16,28,17],[28,18,28,23],[29,1,29,7],[29,8,29,10],[29,11,29,13],[31,1,31,7],[31,8,31,10],[31,11,31,13],[31,14,31,15],[31,16,31,17],[31,18,31,23],[34,1,34,7],[34,33,34,34],[32,24,32,26],[32,27,32,29],[32,31,32,32],[32,33,32,34],[33,1,33,7],[33,8,33,10],[33,11,33,13],[33,14,33,15],[33,16,33,17],[33,24,33,26],[33,27,33,29],[34,31,34,32],[34,18,34,23],[33,18,33,23],[32,1,32,7],[32,8,32,10],[32,11,32,13],[32,14,32,15],[32,16,32,17],[32,18,32,23],[34,14,34,15],[34,16,34,17],[35,33,35,34],[36,1,36,7],[36,8,36,10],[36,11,36,13],[36,14,36,15],[36,16,36,17],[36,18,36,23],[35,8,35,10],[35,11,35,13],[35,18,35,23],[36,33,36,34],[38,24,38,26],[38,27,38,29],[38,31,38,32],[35,1,35,7],[35,14,35,15],[35,16,35,17],[36,24,36,26],[36,27,36,29],[36,31,36,32],[37,1,37,7],[37,8,37,10],[37,11,37,13],[37,14,37,15],[37,16,37,17],[37,18,37,23],[35,31,35,32],[29,33,29,34],[28,33,28,34],[29,24,29,26],[29,27,29,29],[38,1,38,7],[38,8,38,10],[38,11,38,13],[38,14,38,15],[38,16,38,17],[38,18,38,23],[33,33,33,34],[31,24,31,26],[31,27,31,29],[31,31,31,32],[31,33,31,34],[30,24,30,26],[30,27,30,29],[30,31,30,32],[30,33,30,34],[38,33,38,34],[37,24,37,26],[37,27,37,29],[37,31,37,32],[37,33,37,34],[29,31,29,32],[28,24,28,26],[28,27,28,29],[28,31,28,32],[33,31,33,32],[26,24,26,26],[27,24,27,26],[34,24,34,26],[35,24,35,26],[26,27,26,29],[27,27,27,29],[34,27,34,29],[35,27,35,29]]}
["SECCIÓN 4: LISTA DE MAESTROS"]
["INSTRUCCIONES:",null,null,null,null,null,null,null,"ETIQUETA DE NÚMEROS ALEATORIOS",null,null,null,null,null,null,null,null,null,null,null,null,null,null,null,null,null,null,null,null,"INSTRUCCIONES PARA LA COLUMNA",{"$f":"AH9","v":-4.0899999999999981}]
["COMPLETE PRIMERO LAS PREGUNTAS (4.01) A (4.08) PARA TODOS LOS MAESTROS Y EN SEGUIDA PROCEDA A SELECCIONAR A { n } DE ELLOS, SIGUIENDO LAS INSTRUCCIONES CONTENIDAS EN EL MANUAL",null,null,null,null,null,null,null,null,null,null,null,null,null,null,null,null,"SOLO LOS MAESTROS/AS PRESENTES SON ELEGIBLES PARA LA ENCUESTA DE MAESTROS",null,null,null,null,null,null,"ESCRIBA \"1\" FRENTE AL PRIMER MAESTRO SELECCIONADO"]
[null,null,null,null,null,null,null,null,null,null,null,null,null,null,null,null,null,null,null,null,null,null,null,null,"ESCRIBA \"2\" FRENTE AL SEGUNDO MAESTRO SELECCIONADO"]
[null,null,null,null,null,null,null,null,null,null,null,null,null,null,null,null,null,null,null,null,null,null,null,null,"ESCRIBA \"3\" FRENTE AL TERCER MAESTRO SELECCIONADO"]
[]
[null,null,null,null,null,null,null,null,null,null,null,null,null,null,null,null,null,null,null,null,null,null,null,null,"DEJE LAS OTRAS CELDAS DE LA COLUMNA EN BLANCO"]
[]
["CÓDIGO DE IDENTIFICACIÓN DEL MAESTRO",-4.01,null,null,null,null,null,null,{"$f":"B9-0.01","v":-4.0199999999999996},null,null,{"$f":"I9-0.01","v":-4.0299999999999994},null,null,{"$f":"L9-0.01","v":-4.0399999999999991},null,null,null,{"$f":"O9-0.01","v":-4.0499999999999989},null,null,null,null,null,{"$f":"S9-0.01","v":-4.0599999999999987},null,null,{"$f":"Y9-0.01","v":-4.0699999999999985},null,null,null,{"$f":"AB9-0.01","v":-4.0799999999999983},null,{"$f":"AF9-0.01","v":-4.0899999999999981}]
[null,"COPIE LA LISTA DE LOS TODOS LOS MAESTROS, DE LOS REGISTROS DEL ESTABLECIMIENTO",null,null,null,null,null,null,"ANOTE EL SEXO DEL MAESTRO /A",null,null,"¿Qué edad tiene [MAESTRO/A]?",null,null,"¿Hace cuántos años/meses que [MAESTRO/A] trabaja en este establecimiento?",null,null,null,"¿Bajo qué modalidad contractual trabaja [MAESTRO /A ] en este establecimiento?",null,null,null,null,null,"¿Cuántas horas a la semana trabaja [MAESTRO/A] en este establecimiento?",null,null,"¿Cuál es el salario de bolsillo (bruto) mensual de [MAESTRO/A]",null,null,null,"¿Está  ...[MAESTRO]... presente n la escuela hoy?",null,"NÚMERO DE SELECCIÓN MAESTRO/A"]
[]
[]
[null,null,null,null,null,null,null,null,null,null,null,null,null,null,null,null,null,null,1,"CONTRATO INDEFINIDO A TIEMPO COMPLETO"]
[]
[null,null,null,null,null,null,null,null,null,null,null,null,null,null,null,null,null,null,2,"CONTRATO A TIEMPO PARCIAL"]
[]
[null,null,null,null,null,null,null,null,null,null,null,null,null,null,null,null,null,null,3,"NO TIENE NINGÚN ARREGLO FORMAL"]
[]
[null,null,null,null,null,null,null,null,null,null,null,null,null,null,null,null,null,null,4,"{ OTRO - 1 }"]
[null,null,null,null,null,null,null,null,1,"HOMBRE",null,null,null,null,null,null,null,null,5,"{ OTRO - 2 }",null,null,null,null,null,null,null,null,null,null,null,1,"SI"]
[null,null,null,null,null,null,null,null,2,"MUJER",null,null,null,null,null,null,null,null,6,"{ OTRO - 3 }",null,null,null,null,null,null,null,null,null,null,null,2,"NO"]
[null,null,null,null,null,null,null,null,null,null,null,"EDAD EN AÑOS",null,null,null,null,null,null,7,"OTRO",null,null,null,null,"HORAS POR SEMANA",null,null,"MONTO"]
[null,"NOMBRE DEL MAESTRO",null,null,null,null,null,null,null,null,null,null,null,null,"AÑOS",null,"MESES",null,null,null,null,null,null,null,null,null,null,"{ $ }"]
[1]
[2]
[3]
[4]
[5]
[6]
[7]
[8]
[9]
[10]
[11]
[12]
[13]
[14]
[15]
[16]

{"sheet":"5.ListaAlumnos.ORI","index":11,"n_rows":59,"n_cols":31,"rows_kept":59,"cut":false,"hidden":true,"merged":[[57,1,57,5],[58,6,58,8],[58,9,58,10],[58,11,58,12],[58,13,58,14],[57,6,57,8],[57,9,57,10],[57,11,57,12],[57,13,57,14],[58,1,58,5],[56,1,56,5],[56,6,56,8],[56,9,56,10],[56,11,56,12],[54,13,54,14],[35,1,35,5],[35,6,35,8],[35,9,35,10],[35,11,35,12],[35,13,35,14],[55,1,55,5],[55,6,55,8],[55,9,55,10],[55,11,55,12],[55,13,55,14],[54,1,54,5],[54,6,54,8],[56,13,56,14],[37,1,37,5],[37,6,37,8],[37,9,37,10],[37,11,37,12],[37,13,37,14],[38,1,38,5],[54,9,54,10],[54,11,54,12],[52,13,52,14],[33,1,33,5],[33,6,33,8],[33,9,33,10],[33,11,33,12],[33,13,33,14],[53,1,53,5],[53,6,53,8],[53,9,53,10],[53,11,53,12],[53,13,53,14],[52,1,52,5],[52,6,52,8],[52,9,52,10],[52,11,52,12],[36,11,36,12],[36,13,36,14],[34,1,34,5],[34,6,34,8],[34,9,34,10],[34,11,34,12],[34,13,34,14],[50,13,50,14],[31,1,31,5],[31,6,31,8],[31,9,31,10],[31,11,31,12],[31,13,31,14],[51,1,51,5],[51,6,51,8],[51,9,51,10],[51,11,51,12],[51,13,51,14],[50,1,50,5],[50,6,50,8],[50,9,50,10],[50,11,50,12],[32,1,32,5],[32,6,32,8],[32,9,32,10],[32,11,32,12],[32,13,32,14],[38,6,38,8],[38,9,38,10],[38,11,38,12],[38,13,38,14],[48,13,48,14],[29,1,29,5],[29,6,29,8],[29,9,29,10],[29,11,29,12],[29,13,29,14],[49,1,49,5],[49,6,49,8],[49,9,49,10],[49,11,49,12],[49,13,49,14],[48,1,48,5],[48,6,48,8],[48,9,48,10],[48,11,48,12],[30,1,30,5],[30,6,30,8],[30,9,30,10],[30,11,30,12],[30,13,30,14],[36,1,36,5],[36,6,36,8],[36,9,36,10],[46,13,46,14],[47,1,47,5],[47,6,47,8],[47,9,47,10],[47,11,47,12],[47,13,47,14],[46,1,46,5],[46,6,46,8],[46,9,46,10],[46,11,46,12],[45,1,45,5],[45,6,45,8],[45,9,45,10],[45,11,45,12],[45,13,45,14],[44,1,44,5],[44,6,44,8],[44,9,44,10],[44,11,44,12],[44,13,44,14],[41,1,41,5],[41,6,41,8],[41,9,41,10],[41,11,41,12],[41,13,41,14],[25,1,25,5],[25,6,25,8],[25,9,25,10],[25,11,25,12],[25,13,25,14],[26,1,26,5],[26,6,26,8],[26,9,26,10],[26,11,26,12],[26,13,26,14],[27,1,27,5],[27,6,27,8],[27,9,27,10],[27,11,27,12],[27,13,27,14],[28,1,28,5],[28,6,28,8],[28,9,28,10],[28,11,28,12],[43,1,43,5],[43,6,43,8],[43,9,43,10],[43,11,43,12],[43,13,43,14],[42,1,42,5],[42,6,42,8],[42,9,42,10],[42,11,42,12],[42,13,42,14],[40,1,40,5],[22,1,22,5],[22,6,22,8],[22,9,22,10],[22,11,22,12],[22,13,22,14],[40,6,40,8],[40,9,40,10],[40,11,40,12],[40,13,40,14],[39,6,39,8],[39,9,39,10],[39,11,39,12],[39,13,39,14],[23,1,23,5],[23,6,23,8],[23,9,23,10],[23,11,23,12],[23,13,23,14],[24,1,24,5],[24,6,24,8],[24,9,24,10],[24,11,24,12],[24,13,24,14],[1,34,1,35],[2,0,6,8],[2,10,6,17],[3,18,6,22],[8,0,18,0],[8,1,8,2],[8,6,8,8],[8,9,8,10],[8,11,8,12],[8,13,8,14],[9,1,15,5],[9,6,13,8],[9,9,13,10],[9,11,15,12],[10,13,18,14],[17,1,18,5],[17,9,18,10],[19,1,19,5],[19,6,19,8],[19,9,19,10],[19,11,19,12],[19,13,19,14],[39,1,39,5],[1,10,1,17],[1,30,1,31],[20,1,20,5],[20,6,20,8],[20,9,20,10],[20,11,20,12],[20,13,20,14],[21,1,21,5],[21,6,21,8],[21,9,21,10],[21,11,21,12],[21,13,21,14],[28,13,28,14]]}
["SECCIÓN 5: LISTA DE ALUMNOS DEL GRADO/CURSO {xx}, CLASE \"A\""]
["INSTRUCCIONES:",null,null,null,null,null,null,null,null,null,"ETIQUETA DE NÚMEROS ALEATORIOS",null,null,null,null,null,null,null,null,null,null,null,null,null,null,null,null,null,null,"INSTRUCCIONES PARA LA COLUMNA",{"$f":"N9","v":-5.0499999999999989}]
["COMPLETE PRIMERO LAS PREGUNTAS (5.01) A (5.04) PARA TODOS LOS ALUMNOS Y EN SEGUIDA PROCEDA A SELECCIONAR A { m } DE ELLOS, SIGUIENDO LAS INSTRUCCIONES CONTENIDAS EN EL MANUAL"]
[null,null,null,null,null,null,null,null,null,null,null,null,null,null,null,null,null,null,"SOLO LOS ALUMNOS/AS PRESENTES SON ELEGIBLES PARA LA ENCUESTA DE ALUMNOS",null,null,null,null,null,"ESCRIBA \"1\" FRENTE AL PRIMER ALUMNO SELECCIONADO"]
[null,null,null,null,null,null,null,null,null,null,null,null,null,null,null,null,null,null,null,null,null,null,null,null,"ESCRIBA \"2\" FRENTE AL SEGUNDO ALUMNO SELECCIONADO"]
[null,null,null,null,null,null,null,null,null,null,null,null,null,null,null,null,null,null,null,null,null,null,null,null,"ESCRIBA \"3\" FRENTE AL TERCER ALUMNO SELECCIONADO"]
[]
[null,null,null,null,null,null,null,null,null,null,null,null,null,null,null,null,null,null,null,null,null,null,null,null,"DEJE LAS OTRAS CELDAS DE LA COLUMNA EN BLANCO"]
["CÓDIGO DE IDENTIFICACIÓN DEL ALUMNO",-5.01,null,null,null,null,{"$f":"B9-0.01","v":-5.0199999999999996},null,null,{"$f":"G9-0.01","v":-5.0299999999999994},null,{"$f":"J9-0.01","v":-5.0399999999999991},null,{"$f":"L9-0.01","v":-5.0499999999999989}]
[null,"COPIE LA LISTA DE LOS ALUMNOS DE DE LOS REGISTROS DEL ESTABLECIMIENTO",null,null,null,null,"ANOTE EL SEXO DEL ALUMNO /A",null,null,"¿Qué edad tiene [ALUMNO/A]?",null,"¿Está  ...[ALUMNO]... presente n la escuela hoy?"]
[null,null,null,null,null,null,null,null,null,null,null,null,null,"NÚMERO DE SELECCIÓN ALUMNO/A"]
[]
[]
[]
[]
[null,null,null,null,null,null,1,"HOMBRE"]
[null,null,null,null,null,null,2,"MUJER",null,null,null,1,"SI"]
[null,"NOMBRE DEL ALUMNO",null,null,null,null,null,null,null,"EDAD EN AÑOS",null,2,"NO"]
[]
[1]
[{"$f":"A20+1","v":2}]
[3]
[4]
[5]
[6]
[7]
[8]
[9]
[10]
[11]
[12]
[13]
[14]
[15]
[16]
[17]
[18]
[19]
[20]
[{"$f":"A39+1","v":21}]
[{"$f":"A40+1","v":22}]
[23]
[24]
[25]
[26]
[27]
[28]
[29]
[30]
[31]
[32]
[33]
[34]
[35]
[36]
[37]
[38]
[39]
[40]

{"sheet":"5.ListaAlumnos","index":12,"n_rows":59,"n_cols":31,"rows_kept":59,"cut":false,"hidden":false,"merged":[[19,1,19,5],[19,11,19,12],[19,6,19,8],[20,6,20,8],[8,13,8,14],[9,1,15,5],[8,0,18,0],[8,1,8,2],[17,9,18,10],[8,6,8,8],[19,13,19,14],[9,6,13,8],[17,1,18,5],[20,1,20,5],[22,1,22,5],[22,13,22,14],[21,6,21,8],[21,1,21,5],[21,11,21,12],[24,9,24,10],[26,1,26,5],[26,11,26,12],[24,13,24,14],[25,1,25,5],[25,11,25,12],[25,13,25,14],[24,6,24,8],[25,6,25,8],[24,1,24,5],[24,11,24,12],[23,1,23,5],[23,13,23,14],[27,1,27,5],[27,11,27,12],[27,13,27,14],[27,6,27,8],[32,13,32,14],[33,1,33,5],[33,11,33,12],[33,13,33,14],[32,6,32,8],[33,6,33,8],[32,1,32,5],[30,1,30,5],[30,13,30,14],[28,13,28,14],[29,1,29,5],[29,11,29,12],[29,13,29,14],[28,6,28,8],[34,11,34,12],[1,34,1,35],[8,9,8,10],[9,9,13,10],[19,9,19,10],[20,9,20,10],[21,9,21,10],[8,11,8,12],[1,30,1,31],[1,10,1,17],[3,18,6,22],[2,10,6,17],[26,13,26,14],[10,13,18,14],[31,13,31,14],[20,11,20,12],[20,13,20,14],[33,9,33,10],[21,13,21,14],[32,11,32,12],[32,9,32,10],[37,13,37,14],[38,13,38,14],[37,11,37,12],[38,11,38,12],[35,13,35,14],[36,13,36,14],[2,0,6,8],[35,1,35,5],[35,6,35,8],[35,9,35,10],[35,11,35,12],[9,11,15,12],[34,13,34,14],[28,11,28,12],[36,1,36,5],[36,6,36,8],[36,9,36,10],[36,11,36,12],[30,11,30,12],[31,11,31,12],[22,11,22,12],[23,11,23,12],[29,6,29,8],[28,1,28,5],[38,1,38,5],[38,6,38,8],[38,9,38,10],[37,1,37,5],[37,6,37,8],[37,9,37,10],[31,6,31,8],[22,6,22,8],[23,6,23,8],[23,9,23,10],[22,9,22,10],[31,9,31,10],[30,9,30,10],[29,9,29,10],[30,6,30,8],[26,6,26,8],[34,6,34,8],[25,9,25,10],[26,9,26,10],[27,9,27,10],[28,9,28,10],[34,9,34,10],[34,1,34,5],[31,1,31,5],[39,1,39,5],[39,6,39,8],[39,9,39,10],[39,11,39,12],[39,13,39,14],[40,1,40,5],[40,6,40,8],[40,9,40,10],[40,11,40,12],[40,13,40,14],[41,1,41,5],[41,6,41,8],[41,9,41,10],[41,11,41,12],[41,13,41,14],[42,1,42,5],[42,6,42,8],[42,9,42,10],[42,11,42,12],[42,13,42,14],[43,1,43,5],[43,6,43,8],[43,9,43,10],[43,11,43,12],[43,13,43,14],[44,1,44,5],[44,6,44,8],[44,9,44,10],[44,11,44,12],[44,13,44,14],[45,1,45,5],[45,6,45,8],[45,9,45,10],[45,11,45,12],[45,13,45,14],[46,1,46,5],[46,6,46,8],[46,9,46,10],[46,11,46,12],[46,13,46,14],[47,1,47,5],[47,6,47,8],[47,9,47,10],[47,11,47,12],[47,13,47,14],[48,1,48,5],[48,6,48,8],[48,9,48,10],[48,11,48,12],[48,13,48,14],[49,1,49,5],[49,6,49,8],[49,9,49,10],[49,11,49,12],[49,13,49,14],[50,1,50,5],[50,6,50,8],[50,9,50,10],[50,11,50,12],[50,13,50,14],[51,1,51,5],[51,6,51,8],[51,9,51,10],[51,11,51,12],[51,13,51,14],[52,1,52,5],[52,6,52,8],[52,9,52,10],[52,11,52,12],[52,13,52,14],[53,1,53,5],[53,6,53,8],[53,9,53,10],[53,11,53,12],[53,13,53,14],[54,1,54,5],[54,6,54,8],[54,9,54,10],[54,11,54,12],[54,13,54,14],[55,1,55,5],[55,6,55,8],[55,9,55,10],[55,11,55,12],[55,13,55,14],[56,1,56,5],[56,6,56,8],[56,9,56,10],[56,11,56,12],[56,13,56,14],[57,1,57,5],[57,6,57,8],[57,9,57,10],[57,11,57,12],[57,13,57,14],[58,1,58,5],[58,6,58,8],[58,9,58,10],[58,11,58,12],[58,13,58,14]]}
["SECCIÓN 5: LISTA DE ALUMNOS DEL GRADO/CURSO {xx}, CLASE \"A\""]
["INSTRUCCIONES:",null,null,null,null,null,null,null,null,null,"ETIQUETA DE NÚMEROS ALEATORIOS",null,null,null,null,null,null,null,null,null,null,null,null,null,null,null,null,null,null,"INSTRUCCIONES PARA LA COLUMNA",{"$f":"N9","v":-5.0499999999999989}]
["COMPLETE PRIMERO LAS PREGUNTAS (5.01) A (5.04) PARA TODOS LOS ALUMNOS Y EN SEGUIDA PROCEDA A SELECCIONAR A { m } DE ELLOS, SIGUIENDO LAS INSTRUCCIONES CONTENIDAS EN EL MANUAL"]
[null,null,null,null,null,null,null,null,null,null,null,null,null,null,null,null,null,null,"SOLO LOS ALUMNOS/AS PRESENTES SON ELEGIBLES PARA LA ENCUESTA DE ALUMNOS",null,null,null,null,null,"ESCRIBA \"1\" FRENTE AL PRIMER ALUMNO SELECCIONADO"]
[null,null,null,null,null,null,null,null,null,null,null,null,null,null,null,null,null,null,null,null,null,null,null,null,"ESCRIBA \"2\" FRENTE AL SEGUNDO ALUMNO SELECCIONADO"]
[null,null,null,null,null,null,null,null,null,null,null,null,null,null,null,null,null,null,null,null,null,null,null,null,"ESCRIBA \"3\" FRENTE AL TERCER ALUMNO SELECCIONADO"]
[]
[null,null,null,null,null,null,null,null,null,null,null,null,null,null,null,null,null,null,null,null,null,null,null,null,"DEJE LAS OTRAS CELDAS DE LA COLUMNA EN BLANCO"]
["CÓDIGO DE IDENTIFICACIÓN DEL ALUMNO",-5.01,null,null,null,null,{"$f":"B9-0.01","v":-5.0199999999999996},null,null,{"$f":"G9-0.01","v":-5.0299999999999994},null,{"$f":"J9-0.01","v":-5.0399999999999991},null,{"$f":"L9-0.01","v":-5.0499999999999989}]
[null,"COPIE LA LISTA DE LOS ALUMNOS DE DE LOS REGISTROS DEL ESTABLECIMIENTO",null,null,null,null,"ANOTE EL SEXO DEL ALUMNO /A",null,null,"¿Qué edad tiene [ALUMNO/A]?",null,"¿Está  ...[ALUMNO]... presente n la escuela hoy?"]
[null,null,null,null,null,null,null,null,null,null,null,null,null,"NÚMERO DE SELECCIÓN ALUMNO/A"]
[]
[]
[]
[]
[null,null,null,null,null,null,1,"HOMBRE"]
[null,null,null,null,null,null,2,"MUJER",null,null,null,1,"SI"]
[null,"NOMBRE DEL ALUMNO",null,null,null,null,null,null,null,"EDAD EN AÑOS",null,2,"NO"]
[]
[1]
[{"$f":"A20+1","v":2}]
[3]
[4]
[5]
[6]
[7]
[8]
[9]
[10]
[11]
[12]
[13]
[14]
[15]
[16]
[17]
[18]
[19]
[20]
[{"$f":"A39+1","v":21}]
[{"$f":"A40+1","v":22}]
[23]
[24]
[25]
[26]
[27]
[28]
[29]
[30]
[31]
[32]
[33]
[34]
[35]
[36]
[37]
[38]
[39]
[40]

{"sheet":"6.Maestro_1.ORI","index":13,"n_rows":107,"n_cols":32,"rows_kept":107,"cut":false,"hidden":true,"merged":[[106,11,106,14],[82,26,82,27],[83,26,83,27],[84,13,84,14],[85,5,85,6],[89,13,89,14],[93,13,93,14],[94,5,94,6],[98,13,98,14],[104,1,105,14],[86,31,86,32],[87,1,88,13],[80,5,80,7],[80,13,80,15],[80,26,80,27],[81,5,81,7],[81,13,81,15],[81,26,81,27],[79,5,79,7],[79,13,79,15],[68,26,68,29],[68,30,68,33],[69,26,69,29],[69,30,69,33],[70,13,70,14],[70,26,70,29],[70,30,70,33],[71,7,71,8],[74,13,74,14],[76,1,76,15],[78,5,78,7],[78,13,78,15],[67,5,67,6],[67,26,67,29],[67,30,67,33],[53,30,56,33],[54,13,54,14],[63,26,63,29],[63,30,63,33],[64,26,64,29],[64,30,64,33],[65,26,65,29],[65,30,65,33],[66,13,66,14],[66,26,66,29],[66,30,66,33],[46,7,46,8],[47,7,47,8],[48,7,48,8],[49,31,49,32],[50,23,50,24],[49,6,49,8],[52,13,52,14],[52,18,62,18],[52,26,52,29],[52,30,52,33],[53,26,58,29],[45,7,45,8],[45,13,45,14],[32,31,32,32],[33,31,33,32],[34,31,34,32],[37,13,37,14],[40,31,40,32],[42,7,42,8],[42,31,42,32],[43,7,43,8],[43,13,43,14],[44,7,44,8],[0,13,0,14],[2,6,2,16],[2,18,2,19],[2,30,2,33],[41,1,41,6],[41,7,41,8],[12,13,12,14],[21,13,21,14],[21,31,21,32],[29,30,29,33],[30,31,30,32],[31,31,31,32],[6,13,6,14]]}
["SECCIÓN 6: MAESTRO SELECCIONADO",null,null,null,null,null,null,null,null,null,null,null,null,1]
[]
[{"$f":"-6.01","v":-6.01},"NOMBRE DEL MAESTRO:",null,null,null,null,null,null,null,null,null,null,null,null,null,null,null,null,{"$f":"A3-0.01","v":-6.02},null,"CÓDIGO DE IDENTIFICACIÓN DEL MAESTRO:"]
[]
[]
[{"$f":"S3-0.01","v":-6.0299999999999994},"¿Cuál es su estado civil?",null,null,null,null,null,null,null,null,null,null,null,null,null,null,null,null,{"$f":"A21-0.01","v":-6.0599999999999987},"¿Enseña usted las siguientes asignaturas en este establecimiento?"]
[null,1,"SOLTERO/A",null,null,null,null,null,null,null,null,null,null,null,null,null,null,null,null,null,null,null,null,1,"SI"]
[null,2,"CASADO/A",null,null,null,null,null,null,null,null,null,null,null,null,null,null,null,null,null,null,null,null,2,"NO"]
[null,3,"CONVIVIENTE O CONCUBINO(A)"]
[null,4,"DIVORCIADO/A O SEPARADO/A",null,null,null,null,null,null,null,null,null,null,null,null,null,null,null,null,1,"¿Matemáticas?",null,null,null,null,null,{"$f":"T17+1","v":9},"¿Ciencias?"]
[null,5,"VIUDO/A",null,null,null,null,null,null,null,null,null,null,null,null,null,null,null,null,{"$f":"T10+1","v":2},"¿Castellano?",null,null,null,null,null,{"$f":"AA10+1","v":10},"¿Física?"]
[null,null,null,null,null,null,null,null,null,null,null,null,null,null,null,null,null,null,null,3,"¿Manualidades?",null,null,null,null,null,11,"¿Filosofía?"]
[{"$f":"A6-0.01","v":-6.0399999999999991},"Nació usted en…",null,null,null,null,null,null,null,null,null,null,null,null,null,null,null,null,null,4,"¿Educación Física?",null,null,null,null,null,12,"¿Inglés?"]
[null,"LEER EN VOZ ALTA",null,null,null,null,null,null,null,null,null,null,null,null,null,null,null,null,null,5,"¿Música?",null,null,null,null,null,13,"¿Otro idioma extranjero?"]
[null,1,"¿la misma {Localidad}?",null,null,null,null,null,null,null,null,null,null,null,null,null,null,null,null,6,"{ OTRA ASIGNATURA - 1 }",null,null,null,null,null,14,"{ OTRA ASIGNATURA - 4 }"]
[null,2,"¿el mismo {Municilio}?",null,null,null,null,null,null,null,null,null,null,null,null,null,null,null,null,7,"{ OTRA ASIGNATURA - 2 }",null,null,null,null,null,15,"{ OTRA ASIGNATURA - 5 }"]
[null,3,"¿la misma {Provincia}?",null,null,null,null,null,null,null,null,null,null,null,null,null,null,null,null,8,"{ OTRA ASIGNATURA - 3 }",null,null,null,null,null,16,"{ OTRA ASIGNATURA - 6 }"]
[null,4,"¿la misma {Región/Estado}?"]
[null,5,"¿otro país?"]
[null,null,null,null,null,null,null,null,null,null,null,null,null,null,null,null,null,null,{"$f":"S6-0.01","v":-6.0699999999999985},"¿En qué idioma da usted sus clases?"]
[{"$f":"A13-0.01","v":-6.0499999999999989},"¿A qué cursos o grados da usted clases, en este establecimiento?",null,null,null,null,null,null,null,null,null,null,null,null,null,null,null,null,null,"EXCLUIR CLASES DE IDIOMAS EXTRANJEROS"]
[null,null,null,null,null,1,"SI",null,null,null,null,null,null,null,null,null,null,null,null,null,1,"CASTELLANO"]
[null,null,null,null,null,2,"NO",null,null,null,null,null,null,null,null,null,null,null,null,null,2,"{ OTRA LENGUA - 1 }"]
[null,null,null,null,null,null,null,null,null,null,null,null,null,null,null,null,null,null,null,null,3,"{ OTRA LENGUA - 2 }"]
[null,1,"¿Primero?",null,null,null,{"$f":"B28+1","v":5},"¿ { GRADO } ?",null,null,null,{"$f":"G28+1","v":9},"¿ { GRADO } ?",null,null,null,null,null,null,null,4,"{ OTRA LENGUA - 3 }"]
[null,2,"¿Segundo?",null,null,null,{"$f":"G25+1","v":6},"¿ { GRADO } ?",null,null,null,{"$f":"L25+1","v":10},"¿ { GRADO } ?",null,null,null,null,null,null,null,5,"{ OTRA LENGUA - 4 }"]
[null,3,"¿Tercero?",null,null,null,{"$f":"G26+1","v":7},"¿ { GRADO } ?",null,null,null,{"$f":"L26+1","v":11},"¿ { GRADO } ?",null,null,null,null,null,null,null,6,"{ OTRA LENGUA - 5 }"]
[null,4,"¿Cuarto?",null,null,null,{"$f":"G27+1","v":8},"¿ { GRADO } ?",null,null,null,{"$f":"L27+1","v":12},"¿ { GRADO } ?"]
[null,null,null,null,null,null,null,null,null,null,null,null,null,null,null,null,null,null,{"$f":"S20-0.01","v":-6.0799999999999983},"¿Cuántas horas dedica usted por semana en las siguientes tareas, en este establecimiento?"]
[null,null,null,null,null,null,null,null,null,null,null,null,null,null,null,null,null,null,null,"LEER EN VOZ ALTA",null,null,null,null,null,null,null,null,null,null,"HORAS POR SEMANA"]
[null,null,null,null,null,null,null,null,null,null,null,null,null,null,null,null,null,null,null,null,null,null,"a.-","Enseñar en las salas de clases"]
[null,null,null,null,null,null,null,null,null,null,null,null,null,null,null,null,null,null,null,null,null,null,"b.-","Preparar las clases"]
[null,null,null,null,null,null,null,null,null,null,null,null,null,null,null,null,null,null,null,null,null,null,"c.-","Corregir tests"]
[null,null,null,null,null,null,null,null,null,null,null,null,null,null,null,null,null,null,null,null,null,null,"d.-","Realizar tareas administrativas"]
[null,null,null,null,null,null,null,null,null,null,null,null,null,null,null,null,null,null,null,null,null,null,"e.-","Realizar otras tareas"]
[]
[]
["SECCIÓN 6: MAESTRO SELECCIONADO",null,null,null,null,null,null,null,null,null,null,null,null,1]
[]
[{"$f":"S29-0.01","v":-6.0899999999999981},"¿Cuál es el último NIVEL Y CURSO más alto de instrucción que usted aprobó?",null,null,null,null,null,null,null,null,null,null,null,null,null,null,null,null,{"$f":"A70-0.01","v":-6.139999999999997},"¿En qué áreas/materias está usted titulado como maestro/profesor?"]
[null,null,null,null,null,null,null,null,null,null,null,null,null,null,null,null,null,null,null,1,"MATEMÁTICAS",null,null,null,null,8,"MÚSICA",null,null,null,"1.-"]
[null,"NIVEL",null,null,null,null,null,"CURSO",null,null,null,null,null,null,null,null,null,null,null,2,"CASTELLANO",null,null,null,null,9,"INGLÉS"]
[null,1,"PRIMARIA",null,null,null,null,"1 - 7",null,null,null,null,null,null,null,null,null,null,null,3,"CIENCIAS",null,null,null,null,10,"{ OTRO 1 }",null,null,null,"2.-"]
[null,2,"SECUNDARIA",null,null,null,null,"1 - 5",null,null,null,null,"NIVEL:",null,null,null,null,null,null,4,"FÍSICA",null,null,null,null,11,"{ OTRO 2 }"]
[null,3,"BACHILLERATO",null,null,null,null,"1 - 5",null,null,null,null,null,null,null,null,null,null,null,5,"FILOSOFÍA",null,null,null,null,12,"{ OTRO 3 }"]
[null,4,"TERCIARIO TÉCNICO",null,null,null,null,"1 - 3",null,null,null,null,"CURSO:",null,null,null,null,null,null,6,"MANUALIDADES",null,null,null,null,13,"{ OTRO 4 }"]
[null,5,"TERCIARIO COMERCIAL",null,null,null,null,"1 - 3",null,null,null,null,null,null,null,null,null,null,null,7,"EDUCACIÓN FÍSICA",null,null,null,null,14,"OTRO"]
[null,6,"UNIVERSITARIA",null,null,null,null,"1 - 4"]
[null,7,"MAESTRIA/DOCTORADO",null,null,null,null,"1 - 5",null,null,null,null,null,null,null,null,null,null,{"$f":"S40-0.01","v":-6.1499999999999968},"¿Durante el último año escolar, asistió usted a algún curso de perfeccionamiento?"]
[null,8,"OTRO (ESPECIFIQUE)",null,null,null,null,null,null,null,null,null,null,null,null,null,null,null,null,null,1,"SI"]
[null,null,null,null,null,null,null,null,null,null,null,null,null,null,null,null,null,null,null,null,2,"NO","►",{"$f":"A77","v":-6.1799999999999962}]
[{"$f":"A40-0.01","v":-6.0999999999999979},"¿En qué año aprobó usted ese último nivel y curso?"]
[null,null,null,null,null,null,null,null,null,null,null,null,"AÑO:  ",null,null,null,null,null,"NÚMERO CURSO",null,null,null,null,null,null,null,{"$f":"S49-0.01","v":-6.1599999999999966},null,null,null,{"$f":"AA53-0.01","v":-6.1699999999999964}]
[null,null,null,null,null,null,null,null,null,null,null,null,null,null,null,null,null,null,null,null,null,null,null,null,null,null,"¿Asistió usted a [ {CURSO PERFECCIONAMIENTO} ] durante el último año escolar?",null,null,null,"¿Quién financió [ {CURSO PERFECCIONAMIENTO} ]?"]
[{"$f":"A52-0.01","v":-6.1099999999999977},"¿Quién lo/a nombró maestro/a de este establecimiento?"]
[null,1,"EL/LA maestroA/A"]
[null,2,"MINISTERIO DE EDUCACIÓN (CENTRAL)"]
[null,3,"SEDE REGIONAL/ESTATAL DEL MINISTERIO DE EDUCACIÓN",null,null,null,null,null,null,null,null,null,null,null,null,null,null,null,null,null,null,null,null,null,null,null,null,null,null,null,1,"YO MISMO/A"]
[null,4,"LA COMUNIDAD DE PADRES",null,null,null,null,null,null,null,null,null,null,null,null,null,null,null,null,null,null,null,null,null,null,null,null,null,null,null,2,"LA ESCUELA"]
[null,5,"EL LIDER COMUNITARIO",null,null,null,null,null,null,null,null,null,null,null,null,null,null,null,null,null,null,null,null,null,null,null,1,null,"SI",null,3]
[null,6,"EL DUEÑO/A DEL ESTABLECIMIENTO",null,null,null,null,null,null,null,null,null,null,null,null,null,null,null,null,null,null,null,null,null,null,null,2,null,"NO",null,4]
[null,7,"{ OTRO 1 }",null,null,null,null,null,null,null,null,null,null,null,null,null,null,null,null,null,null,null,null,null,null,null,"► PRÓXIMO CURSO",null,null,null,5]
[null,8,"{ OTRO 2 }"]
[null,9,"OTRO",null,null,null,null,null,null,null,null,null,null,null,null,null,null,null,1,"Pedagogía"]
[null,null,null,null,null,null,null,null,null,null,null,null,null,null,null,null,null,null,2,"Materias específicas"]
[{"$f":"A55-0.01","v":-6.1199999999999974},"¿Tiene usted el título de maestro/profesor de escuela?",null,null,null,null,null,null,null,null,null,null,null,null,null,null,null,null,3,"Idiomas"]
[null,null,1,"SI",null,null,null,null,null,null,null,null,null,null,null,null,null,null,4,"{ CURSO PERFECCIONAMIENTO 1 }"]
[null,null,2,"NO","►",{"$f":"S49","v":-6.1499999999999968},null,null,null,null,null,null,null,null,null,null,null,null,5,"{ CURSO PERFECCIONAMIENTO 2 }"]
[null,null,null,null,null,null,null,null,null,null,null,null,null,null,null,null,null,null,6,"{ CURSO PERFECCIONAMIENTO 3 }"]
[{"$f":"A66-0.01","v":-6.1299999999999972},"¿Su título de maestro/prefosor, es en algún área específica?",null,null,null,null,null,null,null,null,null,null,null,null,null,null,null,null,7,"{ CURSO PERFECCIONAMIENTO 4 }"]
[null,null,1,"SI",null,null,null,null,null,null,null,null,null,null,null,null,null,null,8,"{ CURSO PERFECCIONAMIENTO 5 }"]
[null,null,2,"NO",null,null,"►",{"$f":"A88","v":-6.1999999999999957}]
[]
[]
["SECCIÓN 6: MAESTRO SELECCIONADO",null,null,null,null,null,null,null,null,null,null,null,null,1]
[]
[{"$f":"AE53-0.01","v":-6.1799999999999962},"¿Cuál fue sl salario del mes pasado como maestro de este establecimiento? ",null,null,null,null,null,null,null,null,null,null,null,null,null,null,null,null,{"$f":"A105-0.01","v":-6.2399999999999949},"¿Recibe usted sugerencias sobre su modo de enseñar en este establecimiento de parte de…"]
[null,"PARA LOS ÍTEMS QUE NO SON \"EFECTIVO\", PIDA ESTIMAR EL VALOR MONETARIO",null,null,null,null,null,null,null,null,null,null,null,null,null,null,null,null,null,null,null,null,null,null,null,null,1,"SI"]
[null,null,null,null,null,"MONTO { $ }",null,null,null,null,null,null,null,"MONTO { $ }",null,null,null,null,null,null,null,null,null,null,null,null,2,"NO"]
[null,"a.","En efectivo",null,null,null,null,null,null,"d.","Transporte"]
[null,"b.","Comida",null,null,null,null,null,null,"e.","Otros",null,null,null,null,null,null,null,null,"a.-","¿del Director/a?"]
[null,"c.","Vivienda",null,null,null,null,null,null,"f.","TOTAL",null,null,null,null,null,null,null,null,"b.-","¿de los otros maestros/as?"]
[null,null,null,null,null,null,null,null,null,null,null,null,null,null,null,null,null,null,null,"c.-","¿de los padres?"]
[{"$f":"A77-0.01","v":-6.1899999999999959},"¿Da usted clases en otro establecimiento educacional?",null,null,null,null,null,null,null,null,null,null,null,null,null,null,null,null,null,"d.-","{ OTRO }"]
[null,null,1,"SI"]
[null,null,2,"NO","►",{"$f":"A92","v":-6.2099999999999955},null,null,null,null,null,null,null,null,null,null,null,null,{"$f":"S77-0.01","v":-6.2499999999999947},"¿Es usted evaluado por el Director, al menos una vez cada año?"]
[null,null,null,null,null,null,null,null,null,null,null,null,null,null,null,null,null,null,null,null,1,"SI"]
[{"$f":"A84-0.01","v":-6.1999999999999957},"¿Cuántas horas por semana usted trabaja como maestro/a en ese otro (esos otros) establecimiento(s)?",null,null,null,null,null,null,null,null,null,null,null,null,null,null,null,null,null,null,2,"NO"]
[]
[null,null,null,null,null,null,null,null,null,null,null,null,"HORAS POR SEMANA:"]
[]
[{"$f":"A88-0.01","v":-6.2099999999999955},"Además de su trabajo como maestro/a, ¿tiene usted otro trabajo?"]
[]
[null,null,1,"SI"]
[null,null,2,"NO","►",{"$f":"S77","v":-6.2399999999999949}]
[]
[{"$f":"A92-0.01","v":-6.2199999999999953},"¿Cuál de estas categorías diría usted que es la que mejor describe su otro trabajo?"]
[null,"LEER EN VOZ ALTA"]
[null,null,1,"Agricultura"]
[null,null,2,"Por cuenta propia"]
[null,null,3,"{ OTRA 1 }"]
[null,null,4,"{ OTRA 2 }"]
[null,null,5,"OTRO"]
[]
[{"$f":"A97-0.01","v":-6.2299999999999951},"¿En los últimos 12 meses, cuanto recibió usted en total por ese/esos otro(s) trabajo(s)?"]
[]
[null,null,null,null,null,null,null,null,null,null,"MONTO { $ }"]

{"sheet":"6.Maestro_1","index":14,"n_rows":107,"n_cols":32,"rows_kept":107,"cut":false,"hidden":false,"merged":[[83,26,83,27],[86,31,86,32],[45,13,45,14],[48,7,48,8],[63,26,63,29],[80,26,80,27],[81,26,81,27],[76,1,76,15],[78,5,78,7],[65,30,65,33],[66,26,66,29],[66,30,66,33],[49,31,49,32],[63,30,63,33],[49,6,49,8],[64,30,64,33],[52,30,52,33],[53,26,58,29],[46,7,46,8],[52,13,52,14],[64,26,64,29],[50,23,50,24],[53,30,56,33],[67,5,67,6],[70,13,70,14],[84,13,84,14],[81,13,81,15],[78,13,78,15],[65,26,65,29],[47,7,47,8],[52,18,62,18],[52,26,52,29],[82,26,82,27],[54,13,54,14],[66,13,66,14],[89,13,89,14],[71,7,71,8],[80,5,80,7],[80,13,80,15],[81,5,81,7],[87,1,88,13],[85,5,85,6],[106,11,106,14],[67,26,67,29],[67,30,67,33],[68,26,68,29],[68,30,68,33],[69,26,69,29],[69,30,69,33],[93,13,93,14],[98,13,98,14],[104,1,105,14],[74,13,74,14],[70,30,70,33],[94,5,94,6],[79,5,79,7],[79,13,79,15],[70,26,70,29],[45,7,45,8],[42,7,42,8],[43,7,43,8],[44,7,44,8],[21,31,21,32],[33,31,33,32],[34,31,34,32],[29,30,29,33],[40,31,40,32],[41,7,41,8],[43,13,43,14],[0,13,0,14],[2,18,2,19],[42,31,42,32],[6,13,6,14],[12,13,12,14],[21,13,21,14],[37,13,37,14],[2,6,2,16],[31,31,31,32],[32,31,32,32],[30,31,30,32],[41,1,41,6],[2,30,2,33]]}
["SECCIÓN 6: MAESTRO SELECCIONADO",null,null,null,null,null,null,null,null,null,null,null,null,1]
[]
[{"$f":"-6.01","v":-6.01},"NOMBRE DEL MAESTRO:",null,null,null,null,null,null,null,null,null,null,null,null,null,null,null,null,{"$f":"A3-0.01","v":-6.02},null,"CÓDIGO DE IDENTIFICACIÓN DEL MAESTRO:"]
[]
[]
[{"$f":"S3-0.01","v":-6.0299999999999994},"¿Cuál es su estado civil?",null,null,null,null,null,null,null,null,null,null,null,null,null,null,null,null,{"$f":"A21-0.01","v":-6.0599999999999987},"¿Enseña usted las siguientes asignaturas en este establecimiento?"]
[null,1,"SOLTERO/A",null,null,null,null,null,null,null,null,null,null,null,null,null,null,null,null,null,null,null,null,1,"SI"]
[null,2,"CASADO/A",null,null,null,null,null,null,null,null,null,null,null,null,null,null,null,null,null,null,null,null,2,"NO"]
[null,3,"CONVIVIENTE O CONCUBINO(A)"]
[null,4,"DIVORCIADO/A O SEPARADO/A",null,null,null,null,null,null,null,null,null,null,null,null,null,null,null,null,1,"¿Matemáticas?",null,null,null,null,null,{"$f":"T17+1","v":9},"¿Ciencias?"]
[null,5,"VIUDO/A",null,null,null,null,null,null,null,null,null,null,null,null,null,null,null,null,{"$f":"T10+1","v":2},"¿Castellano?",null,null,null,null,null,{"$f":"AA10+1","v":10},"¿Física?"]
[null,null,null,null,null,null,null,null,null,null,null,null,null,null,null,null,null,null,null,3,"¿Manualidades?",null,null,null,null,null,11,"¿Filosofía?"]
[{"$f":"A6-0.01","v":-6.0399999999999991},"Nació usted en…",null,null,null,null,null,null,null,null,null,null,null,null,null,null,null,null,null,4,"¿Educación Física?",null,null,null,null,null,12,"¿Inglés?"]
[null,"LEER EN VOZ ALTA",null,null,null,null,null,null,null,null,null,null,null,null,null,null,null,null,null,5,"¿Música?",null,null,null,null,null,13,"¿Otro idioma extranjero?"]
[null,1,"¿la misma {Localidad}?",null,null,null,null,null,null,null,null,null,null,null,null,null,null,null,null,6,"{ OTRA ASIGNATURA - 1 }",null,null,null,null,null,14,"{ OTRA ASIGNATURA - 4 }"]
[null,2,"¿el mismo {Municilio}?",null,null,null,null,null,null,null,null,null,null,null,null,null,null,null,null,7,"{ OTRA ASIGNATURA - 2 }",null,null,null,null,null,15,"{ OTRA ASIGNATURA - 5 }"]
[null,3,"¿la misma {Provincia}?",null,null,null,null,null,null,null,null,null,null,null,null,null,null,null,null,8,"{ OTRA ASIGNATURA - 3 }",null,null,null,null,null,16,"{ OTRA ASIGNATURA - 6 }"]
[null,4,"¿la misma {Región/Estado}?"]
[null,5,"¿otro país?"]
[null,null,null,null,null,null,null,null,null,null,null,null,null,null,null,null,null,null,{"$f":"S6-0.01","v":-6.0699999999999985},"¿En qué idioma da usted sus clases?"]
[{"$f":"A13-0.01","v":-6.0499999999999989},"¿A qué cursos o grados da usted clases, en este establecimiento?",null,null,null,null,null,null,null,null,null,null,null,null,null,null,null,null,null,"EXCLUIR CLASES DE IDIOMAS EXTRANJEROS"]
[null,null,null,null,null,1,"SI",null,null,null,null,null,null,null,null,null,null,null,null,null,1,"CASTELLANO"]
[null,null,null,null,null,2,"NO",null,null,null,null,null,null,null,null,null,null,null,null,null,2,"{ OTRA LENGUA - 1 }"]
[null,null,null,null,null,null,null,null,null,null,null,null,null,null,null,null,null,null,null,null,3,"{ OTRA LENGUA - 2 }"]
[null,1,"¿Primero?",null,null,null,{"$f":"B28+1","v":5},"¿ { GRADO } ?",null,null,null,{"$f":"G28+1","v":9},"¿ { GRADO } ?",null,null,null,null,null,null,null,4,"{ OTRA LENGUA - 3 }"]
[null,2,"¿Segundo?",null,null,null,{"$f":"G25+1","v":6},"¿ { GRADO } ?",null,null,null,{"$f":"L25+1","v":10},"¿ { GRADO } ?",null,null,null,null,null,null,null,5,"{ OTRA LENGUA - 4 }"]
[null,3,"¿Tercero?",null,null,null,{"$f":"G26+1","v":7},"¿ { GRADO } ?",null,null,null,{"$f":"L26+1","v":11},"¿ { GRADO } ?",null,null,null,null,null,null,null,6,"{ OTRA LENGUA - 5 }"]
[null,4,"¿Cuarto?",null,null,null,{"$f":"G27+1","v":8},"¿ { GRADO } ?",null,null,null,{"$f":"L27+1","v":12},"¿ { GRADO } ?"]
[null,null,null,null,null,null,null,null,null,null,null,null,null,null,null,null,null,null,{"$f":"S20-0.01","v":-6.0799999999999983},"¿Cuántas horas dedica usted por semana en las siguientes tareas, en este establecimiento?"]
[null,null,null,null,null,null,null,null,null,null,null,null,null,null,null,null,null,null,null,"LEER EN VOZ ALTA",null,null,null,null,null,null,null,null,null,null,"HORAS POR SEMANA"]
[null,null,null,null,null,null,null,null,null,null,null,null,null,null,null,null,null,null,null,null,null,null,"a.-","Enseñar en las salas de clases"]
[null,null,null,null,null,null,null,null,null,null,null,null,null,null,null,null,null,null,null,null,null,null,"b.-","Preparar las clases"]
[null,null,null,null,null,null,null,null,null,null,null,null,null,null,null,null,null,null,null,null,null,null,"c.-","Corregir tests"]
[null,null,null,null,null,null,null,null,null,null,null,null,null,null,null,null,null,null,null,null,null,null,"d.-","Realizar tareas administrativas"]
[null,null,null,null,null,null,null,null,null,null,null,null,null,null,null,null,null,null,null,null,null,null,"e.-","Realizar otras tareas"]
[]
[]
["SECCIÓN 6: MAESTRO SELECCIONADO",null,null,null,null,null,null,null,null,null,null,null,null,1]
[]
[{"$f":"S29-0.01","v":-6.0899999999999981},"¿Cuál es el último NIVEL Y CURSO más alto de instrucción que usted aprobó?",null,null,null,null,null,null,null,null,null,null,null,null,null,null,null,null,{"$f":"A70-0.01","v":-6.139999999999997},"¿En qué áreas/materias está usted titulado como maestro/profesor?"]
[null,null,null,null,null,null,null,null,null,null,null,null,null,null,null,null,null,null,null,1,"MATEMÁTICAS",null,null,null,null,8,"MÚSICA",null,null,null,"1.-"]
[null,"NIVEL",null,null,null,null,null,"CURSO",null,null,null,null,null,null,null,null,null,null,null,2,"CASTELLANO",null,null,null,null,9,"INGLÉS"]
[null,1,"PRIMARIA",null,null,null,null,"1 - 7",null,null,null,null,null,null,null,null,null,null,null,3,"CIENCIAS",null,null,null,null,10,"{ OTRO 1 }",null,null,null,"2.-"]
[null,2,"SECUNDARIA",null,null,null,null,"1 - 5",null,null,null,null,"NIVEL:",null,null,null,null,null,null,4,"FÍSICA",null,null,null,null,11,"{ OTRO 2 }"]
[null,3,"BACHILLERATO",null,null,null,null,"1 - 5",null,null,null,null,null,null,null,null,null,null,null,5,"FILOSOFÍA",null,null,null,null,12,"{ OTRO 3 }"]
[null,4,"TERCIARIO TÉCNICO",null,null,null,null,"1 - 3",null,null,null,null,"CURSO:",null,null,null,null,null,null,6,"MANUALIDADES",null,null,null,null,13,"{ OTRO 4 }"]
[null,5,"TERCIARIO COMERCIAL",null,null,null,null,"1 - 3",null,null,null,null,null,null,null,null,null,null,null,7,"EDUCACIÓN FÍSICA",null,null,null,null,14,"OTRO"]
[null,6,"UNIVERSITARIA",null,null,null,null,"1 - 4"]
[null,7,"MAESTRIA/DOCTORADO",null,null,null,null,"1 - 5",null,null,null,null,null,null,null,null,null,null,{"$f":"S40-0.01","v":-6.1499999999999968},"¿Durante el último año escolar, asistió usted a algún curso de perfeccionamiento?"]
[null,8,"OTRO (ESPECIFIQUE)",null,null,null,null,null,null,null,null,null,null,null,null,null,null,null,null,null,1,"SI"]
[null,null,null,null,null,null,null,null,null,null,null,null,null,null,null,null,null,null,null,null,2,"NO","►",{"$f":"A77","v":-6.1799999999999962}]
[{"$f":"A40-0.01","v":-6.0999999999999979},"¿En qué año aprobó usted ese último nivel y curso?"]
[null,null,null,null,null,null,null,null,null,null,null,null,"AÑO:  ",null,null,null,null,null,"NÚMERO CURSO",null,null,null,null,null,null,null,{"$f":"S49-0.01","v":-6.1599999999999966},null,null,null,{"$f":"AA53-0.01","v":-6.1699999999999964}]
[null,null,null,null,null,null,null,null,null,null,null,null,null,null,null,null,null,null,null,null,null,null,null,null,null,null,"¿Asistió usted a [ {CURSO PERFECCIONAMIENTO} ] durante el último año escolar?",null,null,null,"¿Quién financió [ {CURSO PERFECCIONAMIENTO} ]?"]
[{"$f":"A52-0.01","v":-6.1099999999999977},"¿Quién lo/a nombró maestro/a de este establecimiento?"]
[null,1,"EL/LA maestroA/A"]
[null,2,"MINISTERIO DE EDUCACIÓN (CENTRAL)"]
[null,3,"SEDE REGIONAL/ESTATAL DEL MINISTERIO DE EDUCACIÓN",null,null,null,null,null,null,null,null,null,null,null,null,null,null,null,null,null,null,null,null,null,null,null,null,null,null,null,1,"YO MISMO/A"]
[null,4,"LA COMUNIDAD DE PADRES",null,null,null,null,null,null,null,null,null,null,null,null,null,null,null,null,null,null,null,null,null,null,null,null,null,null,null,2,"LA ESCUELA"]
[null,5,"EL LIDER COMUNITARIO",null,null,null,null,null,null,null,null,null,null,null,null,null,null,null,null,null,null,null,null,null,null,null,1,null,"SI",null,3]
[null,6,"EL DUEÑO/A DEL ESTABLECIMIENTO",null,null,null,null,null,null,null,null,null,null,null,null,null,null,null,null,null,null,null,null,null,null,null,2,null,"NO",null,4]
[null,7,"{ OTRO 1 }",null,null,null,null,null,null,null,null,null,null,null,null,null,null,null,null,null,null,null,null,null,null,null,"► PRÓXIMO CURSO",null,null,null,5]
[null,8,"{ OTRO 2 }"]
[null,9,"OTRO",null,null,null,null,null,null,null,null,null,null,null,null,null,null,null,1,"Pedagogía"]
[null,null,null,null,null,null,null,null,null,null,null,null,null,null,null,null,null,null,2,"Materias específicas"]
[{"$f":"A55-0.01","v":-6.1199999999999974},"¿Tiene usted el título de maestro/profesor de escuela?",null,null,null,null,null,null,null,null,null,null,null,null,null,null,null,null,3,"Idiomas"]
[null,null,1,"SI",null,null,null,null,null,null,null,null,null,null,null,null,null,null,4,"{ CURSO PERFECCIONAMIENTO 1 }"]
[null,null,2,"NO","►",{"$f":"S49","v":-6.1499999999999968},null,null,null,null,null,null,null,null,null,null,null,null,5,"{ CURSO PERFECCIONAMIENTO 2 }"]
[null,null,null,null,null,null,null,null,null,null,null,null,null,null,null,null,null,null,6,"{ CURSO PERFECCIONAMIENTO 3 }"]
[{"$f":"A66-0.01","v":-6.1299999999999972},"¿Su título de maestro/prefosor, es en algún área específica?",null,null,null,null,null,null,null,null,null,null,null,null,null,null,null,null,7,"{ CURSO PERFECCIONAMIENTO 4 }",null,null,null,null,null,null,2]
[null,null,1,"SI",null,null,null,null,null,null,null,null,null,null,null,null,null,null,8,"{ CURSO PERFECCIONAMIENTO 5 }"]
[null,null,2,"NO",null,null,"►",{"$f":"A88","v":-6.1999999999999957}]
[]
[]
["SECCIÓN 6: MAESTRO SELECCIONADO",null,null,null,null,null,null,null,null,null,null,null,null,1]
[]
[{"$f":"AE53-0.01","v":-6.1799999999999962},"¿Cuál fue sl salario del mes pasado como maestro de este establecimiento? ",null,null,null,null,null,null,null,null,null,null,null,null,null,null,null,null,{"$f":"A105-0.01","v":-6.2399999999999949},"¿Recibe usted sugerencias sobre su modo de enseñar en este establecimiento de parte de…"]
[null,"PARA LOS ÍTEMS QUE NO SON \"EFECTIVO\", PIDA ESTIMAR EL VALOR MONETARIO",null,null,null,null,null,null,null,null,null,null,null,null,null,null,null,null,null,null,null,null,null,null,null,null,1,"SI"]
[null,null,null,null,null,"MONTO { $ }",null,null,null,null,null,null,null,"MONTO { $ }",null,null,null,null,null,null,null,null,null,null,null,null,2,"NO"]
[null,"a.","En efectivo",null,null,null,null,null,null,"d.","Transporte"]
[null,"b.","Comida",null,null,null,null,null,null,"e.","Otros",null,null,null,null,null,null,null,null,"a.-","¿del Director/a?"]
[null,"c.","Vivienda",null,null,null,null,null,null,"f.","TOTAL",null,null,null,null,null,null,null,null,"b.-","¿de los otros maestros/as?"]
[null,null,null,null,null,null,null,null,null,null,null,null,null,null,null,null,null,null,null,"c.-","¿de los padres?"]
[{"$f":"A77-0.01","v":-6.1899999999999959},"¿Da usted clases en otro establecimiento educacional?",null,null,null,null,null,null,null,null,null,null,null,null,null,null,null,null,null,"d.-","{ OTRO }"]
[null,null,1,"SI"]
[null,null,2,"NO","►",{"$f":"A92","v":-6.2099999999999955},null,null,null,null,null,null,null,null,null,null,null,null,{"$f":"S77-0.01","v":-6.2499999999999947},"¿Es usted evaluado por el Director, al menos una vez cada año?"]
[null,null,null,null,null,null,null,null,null,null,null,null,null,null,null,null,null,null,null,null,1,"SI"]
[{"$f":"A84-0.01","v":-6.1999999999999957},"¿Cuántas horas por semana usted trabaja como maestro/a en ese otro (esos otros) establecimiento(s)?",null,null,null,null,null,null,null,null,null,null,null,null,null,null,null,null,null,null,2,"NO"]
[]
[null,null,null,null,null,null,null,null,null,null,null,null,"HORAS POR SEMANA:"]
[]
[{"$f":"A88-0.01","v":-6.2099999999999955},"Además de su trabajo como maestro/a, ¿tiene usted otro trabajo?"]
[]
[null,null,1,"SI"]
[null,null,2,"NO","►",{"$f":"S77","v":-6.2399999999999949}]
[]
[{"$f":"A92-0.01","v":-6.2199999999999953},"¿Cuál de estas categorías diría usted que es la que mejor describe su otro trabajo?"]
[null,"LEER EN VOZ ALTA"]
[null,null,1,"Agricultura"]
[null,null,2,"Por cuenta propia"]
[null,null,3,"{ OTRA 1 }"]
[null,null,4,"{ OTRA 2 }"]
[null,null,5,"OTRO"]
[]
[{"$f":"A97-0.01","v":-6.2299999999999951},"¿En los últimos 12 meses, cuanto recibió usted en total por ese/esos otro(s) trabajo(s)?"]
[]
[null,null,null,null,null,null,null,null,null,null,"MONTO { $ }"]

{"sheet":"7.Alumno_1.ORI","index":15,"n_rows":63,"n_cols":34,"rows_kept":63,"cut":false,"hidden":true,"merged":[[56,1,57,10],[56,18,56,19],[58,9,58,10],[59,25,60,34],[61,9,61,10],[61,33,61,34],[55,5,55,6],[55,18,55,19],[48,1,49,10],[48,18,48,19],[49,18,49,19],[50,9,50,10],[50,18,50,19],[51,18,51,19],[52,1,53,10],[52,18,52,19],[53,18,53,19],[54,9,54,10],[54,18,54,19],[47,18,47,19],[47,33,47,34],[37,14,37,15],[40,9,40,10],[40,33,40,34],[41,29,41,30],[43,9,43,10],[43,18,43,19],[44,18,44,19],[44,33,44,34],[45,18,45,19],[46,9,46,10],[46,18,46,19],[33,7,33,8],[33,19,33,20],[34,7,34,8],[34,19,34,20],[35,6,35,8],[35,18,35,20],[31,7,31,8],[31,9,32,10],[31,19,31,20],[31,21,32,22],[32,7,32,8],[32,19,32,20],[29,21,30,22],[30,7,30,8],[30,19,30,20],[24,5,24,6],[24,17,24,18],[25,1,26,10],[25,13,26,22],[28,7,28,8],[28,19,28,20],[29,7,29,8],[29,9,30,10],[29,19,29,20],[26,33,26,34],[27,3,27,4],[27,9,27,10],[27,15,27,16],[27,21,27,22],[19,20,19,21],[19,32,19,33],[20,20,20,21],[20,32,20,33],[23,9,23,10],[23,21,23,22],[23,33,23,34],[16,20,16,21],[16,32,16,33],[17,20,17,21],[17,32,17,33],[18,20,18,21],[18,32,18,33],[15,20,15,21],[5,21,5,22],[15,32,15,33],[7,9,7,10],[8,21,8,22],[8,33,8,34],[9,9,9,10],[13,20,13,21],[13,32,13,33],[14,9,14,10],[14,20,14,21],[14,32,14,33],[5,33,5,34],[2,30,2,33],[10,5,10,6],[12,9,12,10],[0,14,0,15],[2,6,2,17],[2,19,2,20],[5,9,5,10]]}
["SECCIÓN 7: ALUMNO SELECCIONADO",null,null,null,null,null,null,null,null,null,null,null,null,null,1]
[]
[-7.01,"NOMBRE DEL ALUMNO:",null,null,null,null,null,null,null,null,null,null,null,null,null,null,null,null,null,{"$f":"A3-0.01","v":-7.02},null,"CÓDIGO DE IDENTIFICACIÓN DEL ALUMNO:"]
[]
[{"$f":"T3-0.01","v":-7.0299999999999994},"¿Cuántos hermanos y hermanas tienes?",null,null,null,null,null,null,null,null,null,null,{"$f":"A26-0.01","v":-7.0999999999999979},"¿Tu padre sabe leer?",null,null,null,null,null,null,null,null,null,null,{"$f":"M26-0.01","v":-7.1499999999999968},"¿Tu madre sabe leer?"]
[null,null,null,null,null,null,null,null,"NÚMERO HERMANOS/AS:  ",null,null,null,null,null,1,"SI",null,null,null,null,null,null,null,null,null,null,1,"SI"]
[{"$f":"A5-0.01","v":-7.0399999999999991},"¿Qué edad tenías cuando entraste a primer grado?",null,null,null,null,null,null,null,null,null,null,null,null,2,"NO",null,null,null,null,null,null,null,null,null,null,2,"NO"]
[null,null,null,null,null,null,null,null,"EDAD: ",null,null,null,{"$f":"M5-0.01","v":-7.1099999999999977},"¿Tu padre sabe escribir?",null,null,null,null,null,null,null,null,null,null,{"$f":"Y5-0.01","v":-7.1599999999999966},"¿Tu madre sabe escribir?"]
[{"$f":"A7-0.01","v":-7.0499999999999989},"¿Has repetido algún grado/curso?",null,null,null,null,null,null,null,null,null,null,null,null,1,"SI",null,null,null,null,null,null,null,null,null,null,1,"SI"]
[null,null,1,"SI",null,null,null,null,null,null,null,null,null,null,2,"NO",null,null,null,null,null,null,null,null,null,null,2,"NO"]
[null,null,2,"NO","►",{"$f":"A15","v":-7.0699999999999985},null,null,null,null,null,null,{"$f":"M8-0.01","v":-7.1199999999999974},"¿En qué trabaja tu padre? Trabaja en….",null,null,null,null,null,null,null,null,null,null,{"$f":"Y8-0.01","v":-7.1699999999999964},"¿En qué trabaja tu madre? Trabaja en…."]
[{"$f":"A9-0.01","v":-7.0599999999999987},"¿Cuántos grados/cursos has repetido, en total?",null,null,null,null,null,null,null,null,null,null,null,null,null,null,null,null,null,null,1,"SI",null,null,null,null,null,null,null,null,null,null,1,"SI"]
[null,null,null,null,null,null,null,null,"NÚMERO DE VECES:  ",null,null,null,null,null,null,null,null,null,null,null,2,"NO",null,null,null,null,null,null,null,null,null,null,2,"NO"]
[null,null,null,null,null,null,null,null,null,null,null,null,null,1,"¿en el campo?",null,null,null,null,null,null,null,null,null,null,1,"¿en el campo?"]
[{"$f":"A12-0.01","v":-7.0699999999999985},"¿Dónde naciste? En…",null,null,null,null,null,null,null,null,null,null,null,2,"¿tiene su propio negocio?",null,null,null,null,null,null,null,null,null,null,2,"¿tiene su propio negocio?"]
[null,"LEER EN VOZ ALTA",null,null,null,null,null,null,null,null,null,null,null,3,"{ OTRA ACTIVIDAD - 1 }",null,null,null,null,null,null,null,null,null,null,3,"{ OTRA ACTIVIDAD - 1 }"]
[null,1,"¿la misma {Localidad}?",null,null,null,null,null,null,null,null,null,null,4,"{ OTRA ACTIVIDAD - 2 }",null,null,null,null,null,null,null,null,null,null,4,"{ OTRA ACTIVIDAD - 2 }"]
[null,2,"¿el mismo {Municilio}?",null,null,null,null,null,null,null,null,null,null,5,"{ OTRA ACTIVIDAD - 3 }",null,null,null,null,null,null,null,null,null,null,5,"{ OTRA ACTIVIDAD - 3 }"]
[null,3,"¿la misma {Provincia}?",null,null,null,null,null,null,null,null,null,null,6,"{ OTRA ACTIVIDAD - 4 }",null,null,null,null,null,null,null,null,null,null,6,"{ OTRA ACTIVIDAD - 4 }"]
[null,4,"¿la misma {Región/Estado}?",null,null,null,null,null,null,null,null,null,null,7,"{ OTRA ACTIVIDAD - 5 }",null,null,null,null,null,null,null,null,null,null,7,"{ OTRA ACTIVIDAD - 5 }"]
[null,5,"¿otro país?",null,null,null,null,null,null,null,null,null,null,8,"NO TRABAJA",null,null,null,null,null,null,null,null,null,null,8,"NO TRABAJA"]
["PADRE",null,null,null,null,null,null,null,null,null,null,null,"MADRE"]
[{"$f":"A15-0.01","v":-7.0799999999999983},"¿Fue tu padre a la escuela alguna vez?",null,null,null,null,null,null,null,null,null,null,{"$f":"M11-0.01","v":-7.1299999999999972},"¿Fue tu madre a la escuela alguna vez?",null,null,null,null,null,null,null,null,null,null,{"$f":"Y11-0.01","v":-7.1799999999999962},"¿Cuánto tiempo te toma llegar a la escuela desde tu casa?"]
[null,null,1,"SI",null,null,null,null,null,null,null,null,null,null,1,"SI",null,null,null,null,null,null,null,null,null,null,null,null,null,null,null,null,"MINUTOS:  "]
[null,null,2,"NO","►",{"$f":"M5","v":-7.0999999999999979},null,null,null,null,null,null,null,null,2,"NO","►",{"$f":"Y5","v":-7.1499999999999968}]
[{"$f":"A23-0.01","v":-7.0899999999999981},"¿Cuál es el último NIVEL Y CURSO más alto de instrucción que aprobó tu padre?",null,null,null,null,null,null,null,null,null,null,{"$f":"M23-0.01","v":-7.139999999999997},"¿Cuál es el último NIVEL Y CURSO más alto de instrucción que aprobó tu madre?",null,null,null,null,null,null,null,null,null,null,{"$f":"Y23-0.01","v":-7.1899999999999959},"¿Cuál fue el primer idioma que hablaste cuando eras chico?"]
[null,null,null,null,null,null,null,null,null,null,null,null,null,null,null,null,null,null,null,null,null,null,null,null,null,null,1,"CASTELLANO"]
[null,null,"NIVEL:",null,null,null,null,null,"CURSO:",null,null,null,null,null,"NIVEL:",null,null,null,null,null,"CURSO:",null,null,null,null,null,2,"{ OTRA LENGUA - 1 }"]
[null,1,"PRIMARIA",null,null,null,null,"1 - 7",null,null,null,null,null,1,"PRIMARIA",null,null,null,null,"1 - 7",null,null,null,null,null,null,3,"{ OTRA LENGUA - 2 }"]
[null,2,"SECUNDARIA",null,null,null,null,"1 - 5",null,"►",null,null,null,2,"SECUNDARIA",null,null,null,null,"1 - 5",null,"►",null,null,null,null,4,"{ OTRA LENGUA - 3 }"]
[null,3,"BACHILLERATO",null,null,null,null,"1 - 5",null,null,null,null,null,3,"BACHILLERATO",null,null,null,null,"1 - 5",null,null,null,null,null,null,5,"{ OTRA LENGUA - 4 }"]
[null,4,"TERCIARIO TÉCNICO",null,null,null,null,"1 - 3",null,{"$f":"M11","v":-7.1199999999999974},null,null,null,4,"TERCIARIO TÉCNICO",null,null,null,null,"1 - 3",null,{"$f":"Y11","v":-7.1699999999999964},null,null,null,null,6,"{ OTRA LENGUA - 5 }"]
[null,5,"TERCIARIO COMERCIAL",null,null,null,null,"1 - 3",null,null,null,null,null,5,"TERCIARIO COMERCIAL",null,null,null,null,"1 - 3"]
[null,6,"UNIVERSITARIA",null,null,null,null,"1 - 4",null,null,null,null,null,6,"UNIVERSITARIA",null,null,null,null,"1 - 4"]
[null,7,"MAESTRIA/DOCTORADO",null,null,null,null,"1 - 5",null,null,null,null,null,7,"MAESTRIA/DOCTORADO",null,null,null,null,"1 - 5"]
[null,8,"OTRO (ESPECIFIQUE)",null,null,null,null,null,null,null,null,null,null,8,"OTRO (ESPECIFIQUE)"]
[]
["SECCIÓN 7: ALUMNO SELECCIONADO",null,null,null,null,null,null,null,null,null,null,null,null,null,1]
[]
[{"$f":"Y26-0.01","v":-7.1999999999999957},"¿Recibes beca para tus estudios este año?",null,null,null,null,null,null,null,null,null,null,{"$f":"A61-0.01","v":-7.2699999999999942},"¿Hay alguien en tu casa que tenga:",null,null,null,null,null,null,null,null,null,null,{"$f":"M40-0.01","v":-7.279999999999994},"¿Faltaste a la escuela algún día de la semana pasada?"]
[null,null,1,"SI",null,null,null,null,null,null,null,null,null,null,null,null,null,null,1,"SI",null,null,null,null,null,null,1,"SI"]
[null,null,2,"NO",null,null,null,null,null,null,null,null,null,null,null,null,null,null,2,"NO",null,null,null,null,null,null,2,"NO","►",{"$f":"Y60","v":-7.3099999999999934}]
[{"$f":"A40-0.01","v":-7.2099999999999955},"¿Tienen electricidad en tu casa?"]
[null,null,1,"SI",null,null,null,null,null,null,null,null,null,1,"¿vacas?",null,null,null,null,null,null,null,null,null,{"$f":"Y40-0.01","v":-7.2899999999999938},"¿Cuántos días faltaste a la escuela la semana pasada?"]
[null,null,2,"NO",null,null,null,null,null,null,null,null,null,{"$f":"N44+1","v":2},"¿caballos?",null,null,null,null,null,null,null,null,null,null,null,null,null,null,null,null,null,"NÚMERO DE DÍAS:  "]
[{"$f":"A43-0.01","v":-7.2199999999999953},"¿Tienen baño dentro en tu casa?",null,null,null,null,null,null,null,null,null,null,null,{"$f":"N45+1","v":3},"¿cerdos?"]
[null,null,1,"SI",null,null,null,null,null,null,null,null,null,{"$f":"N46+1","v":4},"¿aves?",null,null,null,null,null,null,null,null,null,{"$f":"Y44-0.01","v":-7.2999999999999936},"¿Por qué faltaste a la escuela la semana pasada?"]
[null,null,2,"NO",null,null,null,null,null,null,null,null,null,{"$f":"N47+1","v":5},"{ OTRO ANIMAL - 1 }",null,null,null,null,null,null,null,null,null,null,1,"ESTUVO ENFERMO"]
[{"$f":"A46-0.01","v":-7.2299999999999951},"¿Hay una pieza/habitación que se usa solamente para cocinar en tu casa?",null,null,null,null,null,null,null,null,null,null,null,{"$f":"N48+1","v":6},"{ OTRO ANIMAL - 2 }",null,null,null,null,null,null,null,null,null,null,2,"TUVO QUE AYUDAR EN EL CAMPO"]
[null,null,null,null,null,null,null,null,null,null,null,null,null,7,"¿Televisión?",null,null,null,null,null,null,null,null,null,null,3,"TUVO QUE AYUDAR CON LOS ANIMALES"]
[null,null,1,"SI",null,null,null,null,null,null,null,null,null,8,"¿Radio?",null,null,null,null,null,null,null,null,null,null,4,"TUVO QUE CUIDAR FAMILIARES "]
[null,null,2,"NO",null,null,null,null,null,null,null,null,null,9,"¿Teléfono móvil?",null,null,null,null,null,null,null,null,null,null,5,"HABÍA MAL TIEMPO"]
[{"$f":"A49-0.01","v":-7.2399999999999949},"¿En tu casa, tienen piezas/habitaciones que se usan solamente para dormir?",null,null,null,null,null,null,null,null,null,null,null,10,"¿Bicicleta?",null,null,null,null,null,null,null,null,null,null,6,"NO HABÍA TRANSPORTE"]
[null,null,null,null,null,null,null,null,null,null,null,null,null,11,"¿Moto?",null,null,null,null,null,null,null,null,null,null,7,"NO QUISO IR"]
[null,null,1,"SI",null,null,null,null,null,null,null,null,null,{"$f":"N54+1","v":12},"¿Auto?",null,null,null,null,null,null,null,null,null,null,8,"{ OTRA - 1 }"]
[null,null,2,"NO","►",{"$f":"A61","v":-7.2599999999999945},null,null,null,null,null,null,null,{"$f":"N55+1","v":13},"{ OTRO - 1 }",null,null,null,null,null,null,null,null,null,null,9,"{ OTRA - 2 }"]
[{"$f":"A53-0.01","v":-7.2499999999999947},"¿Cuántas de esas piezas/habitaciones que se usan solamente para dormir hay en tu casa?",null,null,null,null,null,null,null,null,null,null,null,{"$f":"N56+1","v":14},"{ OTRO - 2 }",null,null,null,null,null,null,null,null,null,null,10,"{ OTRA - 3 }"]
[null,null,null,null,null,null,null,null,null,null,null,null,null,null,null,null,null,null,null,null,null,null,null,null,null,11,"OTRO"]
[null,null,null,null,null,null,null,null,"NÚMERO:  "]
[null,null,null,null,null,null,null,null,null,null,null,null,null,null,null,null,null,null,null,null,null,null,null,null,{"$f":"Y47-0.01","v":-7.3099999999999934},"¿Tomaste desayuno hoy en la mañana, antes de venir a la escuela?"]
[{"$f":"A57-0.01","v":-7.2599999999999945},"¿Tienen agua dentro de la casa?"]
[null,null,1,"SI",null,null,null,null,null,null,null,null,null,null,null,null,null,null,null,null,null,null,null,null,null,null,1,"SI"]
[null,null,2,"NO",null,null,null,null,null,null,null,null,null,null,null,null,null,null,null,null,null,null,null,null,null,null,2,"NO"]

{"sheet":"7.Alumno_1","index":16,"n_rows":63,"n_cols":34,"rows_kept":63,"cut":false,"hidden":false,"merged":[[2,30,2,33],[44,33,44,34],[47,33,47,34],[27,3,27,4],[32,7,32,8],[28,7,28,8],[40,9,40,10],[29,9,30,10],[31,9,32,10],[27,9,27,10],[28,19,28,20],[29,19,29,20],[29,7,29,8],[35,18,35,20],[31,19,31,20],[31,21,32,22],[59,25,60,34],[37,14,37,15],[34,19,34,20],[5,33,5,34],[8,33,8,34],[13,32,13,33],[14,32,14,33],[15,32,15,33],[29,21,30,22],[30,19,30,20],[41,29,41,30],[54,18,54,19],[55,18,55,19],[56,18,56,19],[49,18,49,19],[23,33,23,34],[61,33,61,34],[25,1,26,10],[23,21,23,22],[24,17,24,18],[25,13,26,22],[27,15,27,16],[27,21,27,22],[44,18,44,19],[50,18,50,19],[40,33,40,34],[52,1,53,10],[56,1,57,10],[52,18,52,19],[53,18,53,19],[50,9,50,10],[32,19,32,20],[54,9,54,10],[58,9,58,10],[61,9,61,10],[43,18,43,19],[47,18,47,19],[48,18,48,19],[45,18,45,19],[46,18,46,19],[43,9,43,10],[46,9,46,10],[48,1,49,10],[55,5,55,6],[51,18,51,19],[10,5,10,6],[12,9,12,10],[23,9,23,10],[17,20,17,21],[18,20,18,21],[13,20,13,21],[14,9,14,10],[14,20,14,21],[15,20,15,21],[19,20,19,21],[20,20,20,21],[16,20,16,21],[7,9,7,10],[9,9,9,10],[8,21,8,22],[33,19,33,20],[33,7,33,8],[30,7,30,8],[31,7,31,8],[0,14,0,15],[2,19,2,20],[5,9,5,10],[5,21,5,22],[2,6,2,17],[16,32,16,33],[17,32,17,33],[18,32,18,33],[35,6,35,8],[34,7,34,8],[26,33,26,34],[24,5,24,6],[19,32,19,33],[20,32,20,33]]}
["SECCIÓN 7: ALUMNO SELECCIONADO",null,null,null,null,null,null,null,null,null,null,null,null,null,1]
[]
[-7.01,"NOMBRE DEL ALUMNO:",null,null,null,null,null,null,null,null,null,null,null,null,null,null,null,null,null,{"$f":"A3-0.01","v":-7.02},null,"CÓDIGO DE IDENTIFICACIÓN DEL ALUMNO:"]
[]
[{"$f":"T3-0.01","v":-7.0299999999999994},"¿Cuántos hermanos y hermanas tienes?",null,null,null,null,null,null,null,null,null,null,{"$f":"A26-0.01","v":-7.0999999999999979},"¿Tu padre sabe leer?",null,null,null,null,null,null,null,null,null,null,{"$f":"M26-0.01","v":-7.1499999999999968},"¿Tu madre sabe leer?"]
[null,null,null,null,null,null,null,null,"NÚMERO HERMANOS/AS:  ",null,null,null,null,null,1,"SI",null,null,null,null,null,null,null,null,null,null,1,"SI"]
[{"$f":"A5-0.01","v":-7.0399999999999991},"¿Qué edad tenías cuando entraste a primer grado?",null,null,null,null,null,null,null,null,null,null,null,null,2,"NO",null,null,null,null,null,null,null,null,null,null,2,"NO"]
[null,null,null,null,null,null,null,null,"EDAD: ",null,null,null,{"$f":"M5-0.01","v":-7.1099999999999977},"¿Tu padre sabe escribir?",null,null,null,null,null,null,null,null,null,null,{"$f":"Y5-0.01","v":-7.1599999999999966},"¿Tu madre sabe escribir?"]
[{"$f":"A7-0.01","v":-7.0499999999999989},"¿Has repetido algún grado/curso?",null,null,null,null,null,null,null,null,null,null,null,null,1,"SI",null,null,null,null,null,null,null,null,null,null,1,"SI"]
[null,null,1,"SI",null,null,null,null,null,null,null,null,null,null,2,"NO",null,null,null,null,null,null,null,null,null,null,2,"NO"]
[null,null,2,"NO","►",{"$f":"A15","v":-7.0699999999999985},null,null,null,null,null,null,{"$f":"M8-0.01","v":-7.1199999999999974},"¿En qué trabaja tu padre? Trabaja en….",null,null,null,null,null,null,null,null,null,null,{"$f":"Y8-0.01","v":-7.1699999999999964},"¿En qué trabaja tu madre? Trabaja en…."]
[{"$f":"A9-0.01","v":-7.0599999999999987},"¿Cuántos grados/cursos has repetido, en total?",null,null,null,null,null,null,null,null,null,null,null,null,null,null,null,null,null,null,1,"SI",null,null,null,null,null,null,null,null,null,null,1,"SI"]
[null,null,null,null,null,null,null,null,"NÚMERO DE VECES:  ",null,null,null,null,null,null,null,null,null,null,null,2,"NO",null,null,null,null,null,null,null,null,null,null,2,"NO"]
[null,null,null,null,null,null,null,null,null,null,null,null,null,1,"¿en el campo?",null,null,null,null,null,null,null,null,null,null,1,"¿en el campo?"]
[{"$f":"A12-0.01","v":-7.0699999999999985},"¿Dónde naciste? En…",null,null,null,null,null,null,null,null,null,null,null,2,"¿tiene su propio negocio?",null,null,null,null,null,null,null,null,null,null,2,"¿tiene su propio negocio?"]
[null,"LEER EN VOZ ALTA",null,null,null,null,null,null,null,null,null,null,null,3,"{ OTRA ACTIVIDAD - 1 }",null,null,null,null,null,null,null,null,null,null,3,"{ OTRA ACTIVIDAD - 1 }"]
[null,1,"¿la misma {Localidad}?",null,null,null,null,null,null,null,null,null,null,4,"{ OTRA ACTIVIDAD - 2 }",null,null,null,null,null,null,null,null,null,null,4,"{ OTRA ACTIVIDAD - 2 }"]
[null,2,"¿el mismo {Municilio}?",null,null,null,null,null,null,null,null,null,null,5,"{ OTRA ACTIVIDAD - 3 }",null,null,null,null,null,null,null,null,null,null,5,"{ OTRA ACTIVIDAD - 3 }"]
[null,3,"¿la misma {Provincia}?",null,null,null,null,null,null,null,null,null,null,6,"{ OTRA ACTIVIDAD - 4 }",null,null,null,null,null,null,null,null,null,null,6,"{ OTRA ACTIVIDAD - 4 }"]
[null,4,"¿la misma {Región/Estado}?",null,null,null,null,null,null,null,null,null,null,7,"{ OTRA ACTIVIDAD - 5 }",null,null,null,null,null,null,null,null,null,null,7,"{ OTRA ACTIVIDAD - 5 }"]
[null,5,"¿otro país?",null,null,null,null,null,null,null,null,null,null,8,"NO TRABAJA",null,null,null,null,null,null,null,null,null,null,8,"NO TRABAJA"]
["PADRE",null,null,null,null,null,null,null,null,null,null,null,"MADRE"]
[{"$f":"A15-0.01","v":-7.0799999999999983},"¿Fue tu padre a la escuela alguna vez?",null,null,null,null,null,null,null,null,null,null,{"$f":"M11-0.01","v":-7.1299999999999972},"¿Fue tu madre a la escuela alguna vez?",null,null,null,null,null,null,null,null,null,null,{"$f":"Y11-0.01","v":-7.1799999999999962},"¿Cuánto tiempo te toma llegar a la escuela desde tu casa?"]
[null,null,1,"SI",null,null,null,null,null,null,null,null,null,null,1,"SI",null,null,null,null,null,null,null,null,null,null,null,null,null,null,null,null,"MINUTOS:  "]
[null,null,2,"NO","►",{"$f":"M5","v":-7.0999999999999979},null,null,null,null,null,null,null,null,2,"NO","►",{"$f":"Y5","v":-7.1499999999999968}]
[{"$f":"A23-0.01","v":-7.0899999999999981},"¿Cuál es el último NIVEL Y CURSO más alto de instrucción que aprobó tu padre?",null,null,null,null,null,null,null,null,null,null,{"$f":"M23-0.01","v":-7.139999999999997},"¿Cuál es el último NIVEL Y CURSO más alto de instrucción que aprobó tu madre?",null,null,null,null,null,null,null,null,null,null,{"$f":"Y23-0.01","v":-7.1899999999999959},"¿Cuál fue el primer idioma que hablaste cuando eras chico?"]
[null,null,null,null,null,null,null,null,null,null,null,null,null,null,null,null,null,null,null,null,null,null,null,null,null,null,1,"CASTELLANO"]
[null,null,"NIVEL:",null,null,null,null,null,"CURSO:",null,null,null,null,null,"NIVEL:",null,null,null,null,null,"CURSO:",null,null,null,null,null,2,"{ OTRA LENGUA - 1 }"]
[null,1,"PRIMARIA",null,null,null,null,"1 - 7",null,null,null,null,null,1,"PRIMARIA",null,null,null,null,"1 - 7",null,null,null,null,null,null,3,"{ OTRA LENGUA - 2 }"]
[null,2,"SECUNDARIA",null,null,null,null,"1 - 5",null,"►",null,null,null,2,"SECUNDARIA",null,null,null,null,"1 - 5",null,"►",null,null,null,null,4,"{ OTRA LENGUA - 3 }"]
[null,3,"BACHILLERATO",null,null,null,null,"1 - 5",null,null,null,null,null,3,"BACHILLERATO",null,null,null,null,"1 - 5",null,null,null,null,null,null,5,"{ OTRA LENGUA - 4 }"]
[null,4,"TERCIARIO TÉCNICO",null,null,null,null,"1 - 3",null,{"$f":"M11","v":-7.1199999999999974},null,null,null,4,"TERCIARIO TÉCNICO",null,null,null,null,"1 - 3",null,{"$f":"Y11","v":-7.1699999999999964},null,null,null,null,6,"{ OTRA LENGUA - 5 }"]
[null,5,"TERCIARIO COMERCIAL",null,null,null,null,"1 - 3",null,null,null,null,null,5,"TERCIARIO COMERCIAL",null,null,null,null,"1 - 3"]
[null,6,"UNIVERSITARIA",null,null,null,null,"1 - 4",null,null,null,null,null,6,"UNIVERSITARIA",null,null,null,null,"1 - 4"]
[null,7,"MAESTRIA/DOCTORADO",null,null,null,null,"1 - 5",null,null,null,null,null,7,"MAESTRIA/DOCTORADO",null,null,null,null,"1 - 5"]
[null,8,"OTRO (ESPECIFIQUE)",null,null,null,null,null,null,null,null,null,null,8,"OTRO (ESPECIFIQUE)"]
[]
["SECCIÓN 7: ALUMNO SELECCIONADO",null,null,null,null,null,null,null,null,null,null,null,null,null,1]
[]
[{"$f":"Y26-0.01","v":-7.1999999999999957},"¿Recibes beca para tus estudios este año?",null,null,null,null,null,null,null,null,null,null,{"$f":"A61-0.01","v":-7.2699999999999942},"¿Hay alguien en tu casa que tenga:",null,null,null,null,null,null,null,null,null,null,{"$f":"M40-0.01","v":-7.279999999999994},"¿Faltaste a la escuela algún día de la semana pasada?"]
[null,null,1,"SI",null,null,null,null,null,null,null,null,null,null,null,null,null,null,1,"SI",null,null,null,null,null,null,1,"SI"]
[null,null,2,"NO",null,null,null,null,null,null,null,null,null,null,null,null,null,null,2,"NO",null,null,null,null,null,null,2,"NO","►",{"$f":"Y60","v":-7.3099999999999934}]
[{"$f":"A40-0.01","v":-7.2099999999999955},"¿Tienen electricidad en tu casa?"]
[null,null,1,"SI",null,null,null,null,null,null,null,null,null,1,"¿vacas?",null,null,null,null,null,null,null,null,null,{"$f":"Y40-0.01","v":-7.2899999999999938},"¿Cuántos días faltaste a la escuela la semana pasada?"]
[null,null,2,"NO",null,null,null,null,null,null,null,null,null,{"$f":"N44+1","v":2},"¿caballos?",null,null,null,null,null,null,null,null,null,null,null,null,null,null,null,null,null,"NÚMERO DE DÍAS:  "]
[{"$f":"A43-0.01","v":-7.2199999999999953},"¿Tienen baño dentro en tu casa?",null,null,null,null,null,null,null,null,null,null,null,{"$f":"N45+1","v":3},"¿cerdos?"]
[null,null,1,"SI",null,null,null,null,null,null,null,null,null,{"$f":"N46+1","v":4},"¿aves?",null,null,null,null,null,null,null,null,null,{"$f":"Y44-0.01","v":-7.2999999999999936},"¿Por qué faltaste a la escuela la semana pasada?"]
[null,null,2,"NO",null,null,null,null,null,null,null,null,null,{"$f":"N47+1","v":5},"{ OTRO ANIMAL - 1 }",null,null,null,null,null,null,null,null,null,null,1,"ESTUVO ENFERMO"]
[{"$f":"A46-0.01","v":-7.2299999999999951},"¿Hay una pieza/habitación que se usa solamente para cocinar en tu casa?",null,null,null,null,null,null,null,null,null,null,null,{"$f":"N48+1","v":6},"{ OTRO ANIMAL - 2 }",null,null,null,null,null,null,null,null,null,null,2,"TUVO QUE AYUDAR EN EL CAMPO"]
[null,null,null,null,null,null,null,null,null,null,null,null,null,7,"¿Televisión?",null,null,null,null,null,null,null,null,null,null,3,"TUVO QUE AYUDAR CON LOS ANIMALES"]
[null,null,1,"SI",null,null,null,null,null,null,null,null,null,8,"¿Radio?",null,null,null,null,null,null,null,null,null,null,4,"TUVO QUE CUIDAR FAMILIARES "]
[null,null,2,"NO",null,null,null,null,null,null,null,null,null,9,"¿Teléfono móvil?",null,null,null,null,null,null,null,null,null,null,5,"HABÍA MAL TIEMPO"]
[{"$f":"A49-0.01","v":-7.2399999999999949},"¿En tu casa, tienen piezas/habitaciones que se usan solamente para dormir?",null,null,null,null,null,null,null,null,null,null,null,10,"¿Bicicleta?",null,null,null,null,null,null,null,null,null,null,6,"NO HABÍA TRANSPORTE"]
[null,null,null,null,null,null,null,null,null,null,null,null,null,11,"¿Moto?",null,null,null,null,null,null,null,null,null,null,7,"NO QUISO IR"]
[null,null,1,"SI",null,null,null,null,null,null,null,null,null,{"$f":"N54+1","v":12},"¿Auto?",null,null,null,null,null,null,null,null,null,null,8,"{ OTRA - 1 }"]
[null,null,2,"NO","►",{"$f":"A61","v":-7.2599999999999945},null,null,null,null,null,null,null,{"$f":"N55+1","v":13},"{ OTRO - 1 }",null,null,null,null,null,null,null,null,null,null,9,"{ OTRA - 2 }"]
[{"$f":"A53-0.01","v":-7.2499999999999947},"¿Cuántas de esas piezas/habitaciones que se usan solamente para dormir hay en tu casa?",null,null,null,null,null,null,null,null,null,null,null,{"$f":"N56+1","v":14},"{ OTRO - 2 }",null,null,null,null,null,null,null,null,null,null,10,"{ OTRA - 3 }"]
[null,null,null,null,null,null,null,null,null,null,null,null,null,null,null,null,null,null,null,null,null,null,null,null,null,11,"OTRO"]
[null,null,null,null,null,null,null,null,"NÚMERO:  "]
[null,null,null,null,null,null,null,null,null,null,null,null,null,null,null,null,null,null,null,null,null,null,null,null,{"$f":"Y47-0.01","v":-7.3099999999999934},"¿Tomaste desayuno hoy en la mañana, antes de venir a la escuela?"]
[{"$f":"A57-0.01","v":-7.2599999999999945},"¿Tienen agua dentro de la casa?"]
[null,null,1,"SI",null,null,null,null,null,null,null,null,null,null,null,null,null,null,null,null,null,null,null,null,null,null,1,"SI"]
[null,null,2,"NO",null,null,null,null,null,null,null,null,null,null,null,null,null,null,null,null,null,null,null,null,null,null,2,"NO"]

{"sheet":"Messages","index":17,"n_rows":1,"n_cols":3,"rows_kept":1,"cut":false,"hidden":true,"merged":[]}
[null,null,"No hay mensajes"]

{"sheet":"Resource","index":18,"n_rows":4011,"n_cols":3,"rows_kept":4011,"cut":false,"hidden":true,"merged":[]}
["ENGLISH","FRANÇAIS","ESPAÑOL"]
["Variable Properties","Propriétés de la variable","Propiedades de la variable"]
["Data entry range for the variable","Rang d'entrée de données pour la variable","Rango de entrada de datos de la variable"]
["Variable type","Type de variable","Tipo de la variable"]
["Quantitative","Quantitative","Cuantitativa"]
["Qualitative","Qualitative","Cualitativa"]
["Typographic","Typographique","Tipográfica"]
["Chronographic","Chronographique","Cronográfica"]
["Variable range","Rang de la variable","Rango de la variable"]
["Minimum:","Minimum:","Mínimo"]
["Maximum:","Maximum:","Máximo"]
["Variable categories","Categories de la variable","Categorías de la variable"]
["Category:","Categorie:","Categoría:"]
["Add","Ajouter","Agregar"]
["Remove","Supprimer","Eliminar"]
["Code:","Code:","Código:"]
["Name:","Nom:","Nombre:"]
["OK","OK","Aceptar"]
["Cancel","Annuler","Cancelar"]
["RT:","CE:","CR:"]
["New RT","Nouvelle CE","Nueva CR"]
["Name is blank.","Nom est en blanc.","El nombre está en blanco."]
["A variable with this name already exists.","Une variable avec ce nom existe dej","Una variable con este nombre ya existe."]
["Name is blank.",null,"El nombre está en blanco."]
["Size",null,"Largo"]
["Invalid entry.",null,"Entrada inválida"]
["The minimum cannot be greater than the maximum.",null,"El mínimo no puede ser mayor que el máximo."]
["Are you sure?",null,"¿Está seguro?"]
["Dictionary",null,"Diccionario"]
["Variable:",null,"Variable:"]
["Create new variable in RT",null,"Crear nueva variable en la CR"]
["Record Type",null,"Clase de Registro"]
["< Back",null,"< Atrás"]
["Next >",null,"Siguiente >"]
["Finish",null,"Terminar"]
["Name",null,"Nombre"]
["Description",null,"Descripción"]
["Unconditional skip",null,"Salto incondicional"]
["No",null,"No"]
["Yes",null,"Sí"]
["<Empty slot>",null,"<Casilla vacía>"]
["Enter a description for the new Record Type",null,"Ingrese una descripción para la nueva Clase de Registro"]
["Create…",null,"Crear…"]
["You cannot remove the first range unless you remove the subsequent ranges",null,"No se puede eliminar el primer rango sin haber eliminado los rangos subsiguientes"]
["Shape…",null,"Forma…"]
["&RT",null,"&CR"]
["Create or edit a Record Type definition (Ctrl+Shift+R)",null,"Crear o editar una definición de Clase de Registro (Ctrl+Shift+R)"]
["V&AR",null,"V&AR"]
["Create or edit a Variable definition (Ctrl+Shift+V)",null,"Crear o editar una definición de Variable (Ctrl+Shift+V)"]
["&DIC",null,"&DIC"]
["Edit the contents of the dictionary (Ctrl+Shift+D)",null,"Editar el contenido del diccionario (Ctrl+Shift+D)"]
["There are no Record Types defined.",null,"No hay Clases de Registro definidas."]
["Choose the Record Type of the variable:",null,"Escoja la Clase de Registro de la variable:"]
["Enter a name for the variable:",null,"Ingrese un nombre para la variable:"]
["Enter a description for the variable:",null,"Ingrese una descripción para la variable:"]
["Choose the type of the variable:",null,"Escoja el tipo de la variable:"]
["Enter the total size for the variable:",null,"Ingrese el largo total de la variable:"]
["Enter the number of decimals for the variable:",null,"Ingrese la cantidad de decimales de la variable:"]
["Cond.",null,"Cond."]
["If variable",null,"Si la variable"]
["in RT",null,"en la CR"]
["ranges from",null,"va desde"]
["to",null,"hasta"]
["skip to",null,"salta a"]
["in RT",null,"en la CR"]
["Another condition",null,"Otra condición"]
["Numeric ranges",null,"Rangos numéricos"]
["Categories",null,"Categorías"]
["Enter the numeric ranges that are valid for the variable:",null,"Ingrese los rangos numéricos que son válidos para la variable:"]
["Enter the category codes and names for the variable:",null,"Ingrese los códigos y nombres de las categorías para la variable:"]
["Summary",null,"Resumen"]
["Variable in RT",null,"Variable en la CR"]
["Type",null,"Tipo"]
["Temporary Dictionary",null,"Diccionario Temporal"]
["Type:",null,"Tipo:"]
["Total size:",null,"Largo total:"]
["Decimals:",null,"Decimales:"]
["Apply",null,"Aplicar"]
["Restore",null,"Restaurar"]
["There are no variables defined.",null,"No hay variables definidas."]
["Out of range: press Yes to force the entry, No to retry, or Cancel to restore the cell value.",null,"Fuera de rango: pulse Sí para forzar la entrada, No para reintentar, o Cancelar para restaurar el valor de la celda."]
["File not found.",null,"No se encuentra el archivo."]
["External File",null,"Archivo Externo"]
["Category code:",null,"Código de la categoría:"]
["Category name:",null,"Nombre de la categoría:"]
["Position",null,"Posición"]
["Length",null,"Largo"]
["Ext. File…",null,"Arch. Ext…"]
["File name:",null,"Nombre del archivo:"]
["Choose an external file",null,"Escoja un archivo externo"]
["&Skips",null,"&Saltos"]
["Edit variable in RT",null,"Editar variable en la CR"]
["You must select a data entry cell for the variable you want to edit.",null,"Se debe seleccionar una celda de entrada de datos para la variable que se quiere editar."]
["Skips",null,"Saltos"]
["Sheet",null,"Hoja"]
["Row",null,"Fila"]
["Column",null,"Columna"]
["Lines",null,"Líneas"]
["Data entry range offsets",null,"Offsets del rango de entrada de datos"]
["Record Type Shape",null,"Forma de la Clase de Registro"]
["Me",null,"Me"]
["End of RT",null,"End of RT"]
["RT",null,"CR"]
["Variable",null,"Variable"]
["Observation",null,"Observación"]
["From",null,"Desde"]
["To",null,"Hasta"]
["Variable",null,"Variable"]
["If",null,"Si"]
["Ranges",null,"Va"]
["Jump to",null,"Salta a"]
["You must select a data entry cell for the Record Type you want to check.",null,"Se debe seleccionar una celda de entrada de datos para la Clase de Registro que se quiere corregir."]
["Designer toolbar",null,"Barra del Diseñador"]
["Operator toolbar",null,"Barra del Operador"]
["&Check",null,"&Chequeo"]
["Check data entry (Ctrl+Shift+C)",null,"Chequea la entrada de datos (Ctrl+Shift+C)"]
["Inter",null,"Inter"]
["Check data entry across Record Types (Ctrl+Shift+E)",null,"Corrige la entrada de datos a través de las Clases de Registro (Ctrl+Shift+E)"]
["Variable",null,"Variable"]
["is not blank, in spite of variable",null,"no está en blanco, a pesar que la variable"]
["in",null,"en"]
["being",null,"es"]
["for record with code",null,"para el registro con código"]
["is blank",null,"está en blanco"]
["Do you wish to continue checking this record?",null,"¿Quiere seguir corrigiendo este registro?"]
[" - to continue checking the same record, click Yes,",null," - para seguir corrigiendo el mismo registro, presione Sí,"]
[" - to go on checking from the next record, click No,",null," - para continuar corrigiendo desde el siguiente registro, presione No,"]
[" - to quit checking, click Cancel.",null," - para dejar de corregir, presione Cancelar."]
["Initial conditions for",null,"Condiciones iniciales para"]
["Preprinted",null,"Preimpresa"]
["Range…",null,"Rango…"]
["Copy",null,"Copiar"]
["Delete",null,"Eliminar"]
["Use the keyboard to select the first cell of the data entry range, then click here.",null,"Use el teclado para seleccionar la primera celda del rango de entrada de datos, y luego presione aquí."]
["Distribute",null,"Distribuir"]
["Creates the data entry program for the operator (Ctrl+Shift+I)",null,"Crear el programa de entrada de datos para el operador (Ctrl+Shift+I)"]
["Create new Record Type",null,"Crear nueva Clase de Registro"]
["Enter a 3-digit code for the Record Type:",null,"Ingrese un código de 3 dígitos para la Clase de Registro:"]
["Enter a description for the Record Type:",null,"Ingrese una descripción para la Clase de Registro:"]
["Code",null,"Código"]
["Description",null,"Descripción"]
["Code:",null,"Código:"]
["Description:",null,"Descripción:"]
["blank",null,"en blanco"]
["This will save your work and create the Data Entry Program for the operator.",null,"Esto guardará su trabajo y creará el Programa de Entrada de Datos para el operador."]
["Do you wish to continue?",null,"¿Desea continuar?"]
["Duplicate name in Record Type:",null,"Nombre repetido en la Clase de Registro:"]
["already has name",null,"ya tiene el nombre"]
["You must define a Shape for the Record Type first.",null,"Debe definir la Forma de la Clase de Registro primero."]
["Duplicate Record Type code:",null,"Código de Clase de Registro repetido:"]
["already has code",null,"ya tiene el código"]
["Record Type",null,"Clase de Registro"]
["Range",null,"Rango"]
["Skips…",null,"Saltos…"]
["Continue?",null,"¿Continuar?"]
["Date format:",null,"Formato de fecha:"]
["Invalid date format.",null,"Formato de fecha inválido."]
["Date does not exist.",null,"La fecha no existe."]
["Date format",null,"Formato de fecha"]
["Enter the date formats for the variable, as it should be shown on the screen and written to the file:",null,"Ingrese los formatos cronográficos de la variable, tanto para mostrar en pantalla como para escribir al archivo:"]
["Screen format:",null,"Formato de pantalla:"]
["File format:",null,"Formato de archivo:"]
["Date ranges",null,"Rangos cronográficos"]
["Enter the date ranges that are valid for the variable (Write the dates using the screen format):",null,"Ingrese los rangos cronográficos que son válidos para la variable (Escriba la fecha utilizando el formato de pantalla):"]
["Date is out of range.",null,"La fecha está fuera de rango."]
[{"$f":"\"'*** Start of code block ***\"","v":"'*** Start of code block ***"},null,{"$f":"\"'*** Inicio del bloque de código ***\"","v":"'*** Inicio del bloque de código ***"}]
[{"$f":"\"'*** End of code block ***\"","v":"'*** End of code block ***"},null,{"$f":"\"'*** Fin del bloque de código ***\"","v":"'*** Fin del bloque de código ***"}]
["Questionnaire ID cannot contain blanks.",null,"Identificador del cuestionario no puede contener blancos."]
["Identifiers:",null,"Identificadores:"]
["Invalid code",null,"Código invalido"]
["Text too long",null,"Texto demasiado largo"]
["Move up",null,"Subir"]
["Move down",null,"Bajar"]
["Options…",null,"Opciones…"]
["Options for variable",null,"Opciones para la variable"]
["Address:",null,"Dirección:"]
["Data entry range",null,"Rango de entrada de datos"]
["Number of identifiers",null,"Cantidad de identificadores"]
["Number of records",null,"Cantidad de registros"]
["Enter the number of identifiers for the Record Type:",null,"Ingrese la cantidad de identificadores para la Clase de Registro:"]
["Enter the number of records for the Record Type:",null,"Ingrese la cantidad de registros para la Clase de Registro:"]
["Identifiers",null,"Identificadores"]
["Records",null,"Registros"]
["&Open",null,"&Abrir"]
["Open an existent questionnaire",null,"Abrir un cuestionario existente"]
["&Save",null,"&Guardar"]
["Save the current questionnaire",null,"Guardar el cuestionario actual"]
["This file contains invalid records.",null,"Este archivo contiene registros inválidos."]
["Edit…",null,"Editar…"]
["Record Types:",null,"Clases de Registro:"]
["Variables:",null,"Variables:"]
["Allow blanks",null,"Permitir blancos"]
["Data folder not found.",null,"No se encontró la carpeta de datos."]
["Data folder does not exist. Do you wish to create it?",null,"Carpeta de datos no existe. ¿Desea crearla?"]
["Data folder could not be created. Specify the complete path.",null,"Carpeta de datos no pudo ser creada. Especifique la ruta completa."]
["Invalid folder name.",null,"Nombre de carpeta inválido."]
["Data folder",null,"Carpeta de datos"]
["Enter the complete name of the folder where you want to store the data:",null,"Ingrese el nombre completo de la carpeta donde desea guardar los datos:"]
["Data entry program configuration",null,"Configuración del programa de entrada de datos"]
["Data",null,"Datos"]
["Data structure parameters (Ctrl+Shift+T)",null,"Parámetros de la estructura de datos (Ctrl+Shift+T)"]
["Questionnaire identification has not been defined.",null,"No se ha definido un identificador del cuestionario."]
["Main Record Type",null,"Clase de Registro principal"]
["The main Record Type contains the variables that will identify each questionnaire.",null,"La Clase de Registro principal contiene las variables que identificarán a cada cuestionario."]
["Edit Record Type",null,"Editar Clase de Registro"]
["A Record Type with more than one record must have at least one identifier.",null,"Una Clase de Registro con más de un registro debe tener al menos un identificador."]
["Questionnaire import",null,"Importación de cuestionario"]
["Choose the Excel workbook that contains the questionnaire sheets:",null,"Escoja el libro Excel que contiene las hojas del cuestionario:"]
["Code cannot be null.",null,"El código no puede ser nulo."]
["Name cannot be blank.",null,"El nombre no puede estar en blanco."]
["Address cannot be blank.",null,"La dirección no puede estar en blanco."]
["The questionnaire belongs to a LSD data entry program. Do you wish to import the variable definition dictionary as well?",null,"El cuestionario pertenece a un programa de entrada de datos LSD. ¿Desea importar además el diccionario de definición de variables?"]
["Data structure parameters",null,"Parámetros de la estructura de datos"]
["Identification",null,"Identificación"]
["The identification of each questionnaire is a combination of constant characters and variables in the main Record Type. Use Visual Basic syntax to define an ID string.",null,"La identificación de cada cuestionario es una combinación de caracteres constantes y de variables en la Clase de Registro principal. Use sintaxis Visual Basic para definir una cadena de ID."]
["Variables in the main RT:",null,"Variables en la CR principal:"]
["ID string:",null,"Cadena de ID:"]
["Hints: You may help yourself by adding variables from the list. You can also use path separators (\"\\\") to define subfolders relative to the root data folder.",null,"Pistas: Puede ayudarse agregando variables desde la lista. Puede también usar separadores de ruta (\"\\\") para definir subcarpetas relativas a la carpeta de datos raíz."]
["Peep",null,"Sapo"]
["View the internal dictionary (only for advanced users) (Ctrl+Shift+W)",null,"Ver el diccionario interno (sólo para usuarios avanzados) (Ctrl+Shift+W)"]
["A Record Type with only one record does not need identifiers.",null,"Una Clase de Registro con un sólo registro no necesita identificadores."]
["NOM",null,"NOM"]
["Show the nomenclature for a variable (Ctrl+Shift+N)",null,"Mostrar la nomenclatura para una variable (Ctrl+Shift+N)"]
["Record",null,"Registro"]
["Checking",null,"Chequeando"]
["Generating messages…",null,"Generando mensajes…"]
["Checking inter records…",null,"Chequeando entre registros…"]
["&Messages",null,"&Mensajes"]
["Show the list of check results (Ctrl+Shift+M)",null,"Mostrar la lista de resultados del chequeo (Ctrl+Shift+M)"]
["No messages",null,"No hay mensajes"]
["&New",null,"&Nuevo"]
["Create a new questionnaire",null,"Crear un nuevo cuestionario"]
["External",null,"Externa"]
["Smart copy",null,"Smart copy"]
["VB Intra",null,"VB Intra"]
["Show the Visual Basic for Applications Intra-Record checks module (Ctrl+Shift+A)",null,"Mostrar el módulo para chequeos Intra-Registros en Visual Basic for Applications (Ctrl+Shift+A)"]
["VB Inter",null,"VB Inter"]
["Show the Visual Basic for Applications Inter-Record checks module (Ctrl+Shift+E)",null,"Mostrar el módulo para chequeos Inter-Registros en Visual Basic for Applications (Ctrl+Shift+E)"]
["Select the range that contains the categories you want to copy:",null,"Seleccione el rango que contiene las categorías que desea copiar:"]
["Select the range for the variable:",null,"Seleccione el rango para la variable:"]
["Address",null,"Address"]
["External…",null,"Externa…"]
["External sheet",null,"Hoja externa"]
["Select the sheet that contains the external data:",null,"Seleccione la hoja que contiene los datos externos:"]
["New…",null,"Nueva…"]
["Enter the name of the new external sheet:",null,"Ingrese el nombre de la nueva hoja externa:"]
["No external data",null,"Sin datos externos"]
["External data on sheet",null,"Datos externos en la hoja"]
["Do you want to save the questionnaire data?",null,"¿Desea guardar los datos del cuestionario?"]
["Reorganize",null,"Reorganizar"]
["Reorganize data files into thematic files (Ctrl+Shift+O)",null,"Reorganizar los archivos de datos en archivos temáticos (Ctrl+Shift+O)"]
["Import",null,"Importar"]
["Import data files into Excel (Ctrl+Shift+X)",null,"Importar los archivos de datos hacia Excel (Ctrl+Shift+X)"]
["dBase",null,"dBase"]
["Generate .dbf data files",null,"Generar archivos de datos .dbf"]
["Ariel",null,"Ariel"]
["Generate .ari structure files",null,"Generar archivos de structura .ari"]
["Stata",null,"Stata"]
["Generate .do and .dct structure files",null,"Generar archivos de structura .do y .dct"]
["SPSS",null,"SPSS"]
["Generate .sps structure files",null,"Generar archivos de structura .sps"]
["SAS",null,"SAS"]
["Generate .sas structure files",null,"Generar archivos de structura .sas"]
["Databases",null,"Bases de datos"]
["Duplicate category code. Please check and retry.",null,"Código de categoría duplicado. Por favor verifique y reintente."]
["A questionnaire with this number is already saved. Do you wish to overwrite it?",null,"Un cuestionario con este número ya está guardado. ¿Desea sobreescribirlo?"]
["Variable",null,"Variable"]
["is out of range.",null,"está fuera de rango."]
["Re&fresh",null,"Actuali&zar"]
["Active sheet",null,"Hoja activa"]
[]
["All sheets",null,"Todas las hojas"]
["The first character must be a letter",null,"El primer caracter debe ser una letra."]
["The name must contain only letters, numbers, and underscores",null,"El nombre sólo puede contener letras, números o caracteres de subrayado."]
["LSD prefix is reserved.",null,"El prefijo LSD está reservado."]
[": reserved keyword.",null,": palabra reservada."]
["Intramessage",null,"Intramessage"]
["must contain at least one variable",null,"debe contener al menos una variable."]
["cannot be a String",null,"no puede ser un String"]
["Intermessage ",null," Intermessage "]
["Please close all other workbooks before running LSD_TemplateCreation",null,"Por favor, cierre todos los otros libros antes de ejecutar LSD_TemplateCreation"]
["Do you want to save changes?",null,"¿Desea guardar los cambios?"]
["Duplicate Name: ",null,"Nombre repetido: "]
[" is the questionnaire identifier . ",null," es el identificador del cuestionario. "]
[" Do you want continue?",null," ¿Desea continuar?"]
["Are you sure you want to delete a complete Record Type?",null,"¿Está seguro que desea borrar una Clase de Registo completa?"]
["The parameter is incorrect",null,"El parámetro es incorrecto"]
["Backup",null,"Respaldo"]
["Backup",null,"Respaldar"]
["Produce a backup copy of the database",null,"Producir una copia de respaldo de la base de datos"]
["Restore",null,"Restaurar"]
["Restore the database from a previous backup",null,"Restaurar la base de datos desde un respaldo previo"]
["A new backup with",null,"Se ha creado un nuevo respaldo con"]
["files has been created",null,"archivos"]
["Are you sure you want to restore from a backup made on",null,"¿Seguro que quiere restaurar a partir de un respaldo hecho el"]
["JanFebMarAprMayJunJulAugSepOctNovDec",null,"EneFebMarAbrMayJunJulAgoSepOctNovDic"]
["at",null,"a las"]
["Work done after that will be lost!",null,"¡El trabajo posterior se perderá!"]
["Do you want to backup again, before restoring?",null,"¿Quiere hacer otro respaldo antes de restaurar?"]
[null,null,"Se han restaurado"]
["files have been restored.",null,"archivos"]
["Each machine in this project must have a different number.",null,"Cada máquina de este proyecto debe tener un número distinto."]
["Enter this mahine's number (from 0000 to 9999):",null,"Ingrese el número de esta máquina (de 0000 a 9999):"]
[]
["LIST OF PROBLEMS IN QUESTIONNAIRE",null,"LISTA DE PROBLEMAS EN EL CUESTIONARIO"]
["Back to questionnaire",null,"Volver al cuestionario"]
[]
[]
[]
[]
[]
[]
[]
[]
[]
[]
[]
[]
[]
[]
[]
[]
[]
[]
[]
[]
[]
[]
[]
[]
[]
[]
[]
[]
[]
[]
[]
[]
[]
[]
[]
[]
[]
[]
[]
[]
[]
[]
[]
[]
[]
[]
[]
[]
[]
[]
[]
[]
[]
[]
[]
[]
[]
[]
[]
[]
[]
[]
[]
[]
[]
[]
[]
[]
[]
[]
[]
[]
[]
[]
[]
[]
[]
[]
[]
[]
[]
[]
[]
[]
[]
[]
[]
[]
[]
[]
[]
[]
[]
[]
[]
[]
[]
[]
[]
[]
[]
[]
[]
[]
[]
[]
[]
[]
[]
[]
[]
[]
[]
[]
[]
[]
[]
[]
[]
[]
[]
[]
[]
[]
[]
[]
[]
[]
[]
[]
[]
[]
[]
[]
[]
[]
[]
[]
[]
[]
[]
[]
[]
[]
[]
[]
[]
[]
[]
[]
[]
[]
[]
[]
[]
[]
[]
[]
[]
[]
[]
[]
[]
[]
[]
[]
[]
[]
[]
[]
[]
[]
[]
[]
[]
[]
[]
[]
[]
[]
[]
[]
[]
[]
[]
[]
[]
[]
[]
[]
[]
[]
[]
[]
[]
[]
[]
[]
[]
[]
[]
[]
[]
[]
[]
[]
[]
[]
[]
[]
[]
[]
[]
[]
[]
[]
[]
[]
[]
[]
[]
[]
[]
[]
[]
[]
[]
[]
[]
[]
[]
[]
[]
[]
[]
[]
[]
[]
[]
[]
[]
[]
[]
[]
[]
[]
[]
[]
[]
[]
[]
[]
[]
[]
[]
[]
[]
[]
[]
[]
[]
[]
[]
[]
[]
[]
[]
[]
[]
[]
[]
[]
[]
[]
[]
[]
[]
[]
[]
[]
[]
[]
[]
[]
[]
[]
[]
[]
[]
[]
[]
[]
[]
[]
[]
[]
[]
[]
[]
[]
[]
[]
[]
[]
[]
[]
[]
[]
[]
[]
[]
[]
[]
[]
[]
[]
[]
[]
[]
[]
[]
[]
[]
[]
[]
[]
[]
[]
[]
[]
[]
[]
[]
[]
[]
[]
[]
[]
[]
[]
[]
[]
[]
[]
[]
[]
[]
[]
[]
[]
[]
[]
[]
[]
[]
[]
[]
[]
[]
[]
[]
[]
[]
[]
[]
[]
[]
[]
[]
[]
[]
[]
[]
[]
[]
[]
[]
[]
[]
[]
[]
[]
[]
[]
[]
[]
[]
[]
[]
[]
[]
[]
[]
[]
[]
[]
[]
[]
[]
[]
[]
[]
[]
[]
[]
[]
[]
[]
[]
[]
[]
[]
[]
[]
[]
[]
[]
[]
[]
[]
[]
[]
[]
[]
[]
[]
[]
[]
[]
[]
[]
[]
[]
[]
[]
[]
[]
[]
[]
[]
[]
[]
[]
[]
[]
[]
[]
[]
[]
[]
[]
[]
[]
[]
[]
[]
[]
[]
[]
[]
[]
[]
[]
[]
[]
[]
[]
[]
[]
[]
[]
[]
[]
[]
[]
[]
[]
[]
[]
[]
[]
[]
[]
[]
[]
[]
[]
[]
[]
[]
[]
[]
[]
[]
[]
[]
[]
[]
[]
[]
[]
[]
[]
[]
[]
[]
[]
[]
[]
[]
[]
[]
[]
[]
[]
[]
[]
[]
[]
[]
[]
[]
[]
[]
[]
[]
[]
[]
[]
[]
[]
[]
[]
[]
[]
[]
[]
[]
[]
[]
[]
[]
[]
[]
[]
[]
[]
[]
[]
[]
[]
[]
[]
[]
[]
[]
[]
[]
[]
[]
[]
[]
[]
[]
[]
[]
[]
[]
[]
[]
[]
[]
[]
[]
[]
[]
[]
[]
[]
[]
[]
[]
[]
[]
[]
[]
[]
[]
[]
[]
[]
[]
[]
[]
[]
[]
[]
[]
[]
[]
[]
[]
[]
[]
[]
[]
[]
[]
[]
[]
[]
[]
[]
[]
[]
[]
[]
[]
[]
[]
[]
[]
[]
[]
[]
[]
[]
[]
[]
[]
[]
[]
[]
[]
[]
[]
[]
[]
[]
[]
[]
[]
[]
[]
[]
[]
[]
[]
[]
[]
[]
[]
[]
[]
[]
[]
[]
[]
[]
[]
[]
[]
[]
[]
[]
[]
[]
[]
[]
[]
[]
[]
[]
[]
[]
[]
[]
[]
[]
[]
[]
[]
[]
[]
[]
[]
[]
[]
[]
[]
[]
[]
[]
[]
["Number of records does not match.",null,"Cantidad de registros no coincide."]
["Invalid date format.",null,"Formato de fecha inválido."]
["Date does not exist.",null,"Fecha no existe."]
["Method not available.",null,"El método no está disponible."]
["Variable with this name does not exist:",null,"No existe una variable con este nombre:"]
["Address syntax error.",null,"Error de sintaxis en la dirección."]
["Property is read-only.",null,"Propiedad es de lectura solamente."]
["Code cannot be blank.",null,"Código no puede estar en blanco."]
[]
[]
[]
[]
[]
[]
[]
[]
[]
[]
[]
[]
[]
[]
[]
[]
[]
[]
[]
[]
[]
[]
[]
[]
[]
[]
[]
[]
[]
[]
[]
[]
[]
[]
[]
[]
[]
[]
[]
[]
[]
[]
[]
[]
[]
[]
[]
[]
[]
[]
[]
[]
[]
[]
[]
[]
[]
[]
[]
[]
[]
[]
[]
[]
[]
[]
[]
[]
[]
[]
[]
[]
[]
[]
[]
[]
[]
[]
[]
[]
[]
[]
[]
[]
[]
[]
[]
[]
[]
[]
[]
[]
[]
[]
[]
[]
[]
[]
[]
[]
[]
[]
[]
[]
[]
[]
[]
[]
[]
[]
[]
[]
[]
[]
[]
[]
[]
[]
[]
[]
[]
[]
[]
[]
[]
[]
[]
[]
[]
[]
[]
[]
[]
[]
[]
[]
[]
[]
[]
[]
[]
[]
[]
[]
[]
[]
[]
[]
[]
[]
[]
[]
[]
[]
[]
[]
[]
[]
[]
[]
[]
[]
[]
[]
[]
[]
[]
[]
[]
[]
[]
[]
[]
[]
[]
[]
[]
[]
[]
[]
[]
[]
[]
[]
[]
[]
[]
[]
[]
[]
[]
[]
[]
[]
[]
[]
[]
[]
[]
[]
[]
[]
[]
[]
[]
[]
[]
[]
[]
[]
[]
[]
[]
[]
[]
[]
[]
[]
[]
[]
[]
[]
[]
[]
[]
[]
[]
[]
[]
[]
[]
[]
[]
[]
[]
[]
[]
[]
[]
[]
[]
[]
[]
[]
[]
[]
[]
[]
[]
[]
[]
[]
[]
[]
[]
[]
[]
[]
[]
[]
[]
[]
[]
[]
[]
[]
[]
[]
[]
[]
[]
[]
[]
[]
[]
[]
[]
[]
[]
[]
[]
[]
[]
[]
[]
[]
[]
[]
[]
[]
[]
[]
[]
[]
[]
[]
[]
[]
[]
[]
[]
[]
[]
[]
[]
[]
[]
[]
[]
[]
[]
[]
[]
[]
[]
[]
[]
[]
[]
[]
[]
[]
[]
[]
[]
[]
[]
[]
[]
[]
[]
[]
[]
[]
[]
[]
[]
[]
[]
[]
[]
[]
[]
[]
[]
[]
[]
[]
[]
[]
[]
[]
[]
[]
[]
[]
[]
[]
[]
[]
[]
[]
[]
[]
[]
[]
[]
[]
[]
[]
[]
[]
[]
[]
[]
[]
[]
[]
[]
[]
[]
[]
[]
[]
[]
[]
[]
[]
[]
[]
[]
[]
[]
[]
[]
[]
[]
[]
[]
[]
[]
[]
[]
[]
[]
[]
[]
[]
[]
[]
[]
[]
[]
[]
[]
[]
[]
[]
[]
[]
[]
[]
[]
[]
[]
[]
[]
[]
[]
[]
[]
[]
[]
[]
[]
[]
[]
[]
[]
[]
[]
[]
[]
[]
[]
[]
[]
[]
[]
[]
[]
[]
[]
[]
[]
[]
[]
[]
[]
[]
[]
[]
[]
[]
[]
[]
[]
[]
[]
[]
[]
[]
[]
[]
[]
[]
[]
[]
[]
[]
[]
[]
[]
[]
[]
[]
[]
[]
[]
[]
[]
[]
[]
[]
[]
[]
[]
[]
[]
[]
[]
[]
[]
[]
[]
[]
[]
[]
[]
[]
[]
[]
[]
[]
[]
[]
[]
[]
[]
[]
[]
[]
[]
[]
[]
[]
[]
[]
[]
[]
[]
[]
[]
[]
[]
[]
[]
[]
[]
[]
[]
[]
[]
[]
[]
[]
[]
[]
[]
[]
[]
[]
[]
[]
[]
[]
[]
[]
[]
[]
[]
[]
[]
[]
[]
[]
[]
[]
[]
[]
[]
[]
[]
[]
[]
[]
[]
[]
[]
[]
[]
[]
[]
[]
[]
[]
[]
[]
[]
[]
[]
[]
[]
[]
[]
[]
[]
[]
[]
[]
[]
[]
[]
[]
[]
[]
[]
[]
[]
[]
[]
[]
[]
[]
[]
[]
[]
[]
[]
[]
[]
[]
[]
[]
[]
[]
[]
[]
[]
[]
[]
[]
[]
[]
[]
[]
[]
[]
[]
[]
[]
[]
[]
[]
[]
[]
[]
[]
[]
[]
[]
[]
[]
[]
[]
[]
[]
[]
[]
[]
[]
[]
[]
[]
[]
[]
[]
[]
[]
[]
[]
[]
[]
[]
[]
[]
[]
[]
[]
[]
[]
[]
[]
[]
[]
[]
[]
[]
[]
[]
[]
[]
[]
[]
[]
[]
[]
[]
[]
[]
[]
[]
[]
[]
[]
[]
[]
[]
[]
[]
[]
[]
[]
[]
[]
[]
[]
[]
[]
[]
[]
[]
[]
[]
[]
[]
[]
[]
[]
[]
[]
[]
[]
[]
[]
[]
[]
[]
[]
[]
[]
[]
[]
[]
[]
[]
[]
[]
[]
[]
[]
[]
[]
[]
[]
[]
[]
[]
[]
[]
[]
[]
[]
[]
[]
[]
[]
[]
[]
[]
[]
[]
[]
[]
[]
[]
[]
[]
[]
[]
[]
[]
[]
[]
[]
[]
[]
[]
[]
[]
[]
[]
[]
[]
[]
[]
[]
[]
[]
[]
[]
[]
[]
[]
[]
[]
[]
[]
[]
[]
[]
[]
[]
[]
[]
[]
[]
[]
[]
[]
[]
[]
[]
[]
[]
[]
[]
[]
[]
[]
[]
[]
[]
[]
[]
[]
[]
[]
[]
[]
[]
[]
[]
[]
[]
[]
[]
[]
[]
[]
[]
[]
[]
[]
[]
[]
[]
[]
[]
[]
[]
[]
[]
[]
[]
[]
[]
[]
[]
[]
[]
[]
[]
[]
[]
[]
[]
[]
[]
[]
[]
[]
[]
[]
[]
[]
[]
[]
[]
[]
[]
[]
[]
[]
[]
[]
[]
[]
[]
[]
[]
[]
[]
[]
[]
[]
[]
[]
[]
[]
[]
[]
[]
[]
[]
[]
[]
[]
[]
[]
[]
[]
[]
[]
[]
[]
[]
[]
[]
[]
[]
[]
[]
[]
[]
[]
[]
[]
[]
[]
[]
[]
[]
[]
[]
[]
[]
[]
[]
[]
[]
[]
[]
[]
[]
[]
[]
[]
[]
[]
[]
[]
[]
[]
[]
[]
[]
[]
[]
[]
[]
[]
[]
[]
[]
[]
[]
[]
[]
[]
[]
[]
[]
[]
[]
[]
[]
[]
[]
[]
[]
[]
["System Message",null,"Mensaje de sistema"]
["Critical Error",null,"Error crítico"]
["Inconsistency",null,"Inconsistencia"]
["Warning",null,"Advertencia"]
[]
[]
[]
[]
[]
[]
[]
[]
[]
[]
[]
[]
[]
[]
[]
[]
[]
[]
[]
[]
[]
[]
[]
[]
[]
[]
[]
[]
[]
[]
[]
[]
[]
[]
[]
[]
[]
[]
[]
[]
[]
[]
[]
[]
[]
[]
[]
[]
[]
[]
[]
[]
[]
[]
[]
[]
[]
[]
[]
[]
[]
[]
[]
[]
[]
[]
[]
[]
[]
[]
[]
[]
[]
[]
[]
[]
[]
[]
[]
[]
[]
[]
[]
[]
[]
[]
[]
[]
[]
[]
[]
[]
[]
[]
[]
[]
[]
[]
[]
[]
[]
[]
[]
[]
[]
[]
[]
[]
[]
[]
[]
[]
[]
[]
[]
[]
[]
[]
[]
[]
[]
[]
[]
[]
[]
[]
[]
[]
[]
[]
[]
[]
[]
[]
[]
[]
[]
[]
[]
[]
[]
[]
[]
[]
[]
[]
[]
[]
[]
[]
[]
[]
[]
[]
[]
[]
[]
[]
[]
[]
[]
[]
[]
[]
[]
[]
[]
[]
[]
[]
[]
[]
[]
[]
[]
[]
[]
[]
[]
[]
[]
[]
[]
[]
[]
[]
[]
[]
[]
[]
[]
[]
[]
[]
[]
[]
[]
[]
[]
[]
[]
[]
[]
[]
[]
[]
[]
[]
[]
[]
[]
[]
[]
[]
[]
[]
[]
[]
[]
[]
[]
[]
[]
[]
[]
[]
[]
[]
[]
[]
[]
[]
[]
[]
[]
[]
[]
[]
[]
[]
[]
[]
[]
[]
[]
[]
[]
[]
[]
[]
[]
[]
[]
[]
[]
[]
[]
[]
[]
[]
[]
[]
[]
[]
[]
[]
[]
[]
[]
[]
[]
[]
[]
[]
[]
[]
[]
[]
[]
[]
[]
[]
[]
[]
[]
[]
[]
[]
[]
[]
[]
[]
[]
[]
[]
[]
[]
[]
[]
[]
[]
[]
[]
[]
[]
[]
[]
[]
[]
[]
[]
[]
[]
[]
[]
[]
[]
[]
[]
[]
[]
[]
[]
[]
[]
[]
[]
[]
[]
[]
[]
[]
[]
[]
[]
[]
[]
[]
[]
[]
[]
[]
[]
[]
[]
[]
[]
[]
[]
[]
[]
[]
[]
[]
[]
[]
[]
[]
[]
[]
[]
[]
[]
[]
[]
[]
[]
[]
[]
[]
[]
[]
[]
[]
[]
[]
[]
[]
[]
[]
[]
[]
[]
[]
[]
[]
[]
[]
[]
[]
[]
[]
[]
[]
[]
[]
[]
[]
[]
[]
[]
[]
[]
[]
[]
[]
[]
[]
[]
[]
[]
[]
[]
[]
[]
[]
[]
[]
[]
[]
[]
[]
[]
[]
[]
[]
[]
[]
[]
[]
[]
[]
[]
[]
[]
[]
[]
[]
[]
[]
[]
[]
[]
[]
[]
[]
[]
[]
[]
[]
[]
[]
[]
[]
[]
[]
[]
[]
[]
[]
[]
[]
[]
[]
[]
[]
[]
[]
[]
[]
[]
[]
[]
[]
[]
[]
[]
[]
[]
[]
[]
[]
[]
[]
[]
[]
[]
[]
[]
[]
[]
[]
[]
[]
[]
[]
[]
[]
[]
[]
[]
[]
[]
[]
[]
[]
[]
[]
[]
[]
[]
[]
[]
[]
[]
[]
[]
[]
[]
[]
[]
[]
[]
[]
[]
[]
[]
[]
[]
[]
[]
[]
[]
[]
[]
[]
[]
[]
[]
[]
[]
[]
[]
[]
[]
[]
[]
[]
[]
[]
[]
[]
[]
[]
[]
[]
[]
[]
[]
[]
[]
[]
[]
[]
[]
[]
[]
[]
[]
[]
[]
[]
[]
[]
[]
[]
[]
[]
[]
[]
[]
[]
[]
[]
[]
[]
[]
[]
[]
[]
[]
[]
[]
[]
[]
[]
[]
[]
[]
[]
[]
[]
[]
[]
[]
[]
[]
[]
[]
[]
[]
[]
[]
[]
[]
[]
[]
[]
[]
[]
[]
[]
[]
[]
[]
[]
[]
[]
[]
[]
[]
[]
[]
[]
[]
[]
[]
[]
[]
[]
[]
[]
[]
[]
[]
[]
[]
[]
[]
[]
[]
[]
[]
[]
[]
[]
[]
[]
[]
[]
[]
[]
[]
[]
[]
[]
[]
[]
[]
[]
[]
[]
[]
[]
[]
[]
[]
[]
[]
[]
[]
[]
[]
[]
[]
[]
[]
[]
[]
[]
[]
[]
[]
[]
[]
[]
[]
[]
[]
[]
[]
[]
[]
[]
[]
[]
[]
[]
[]
[]
[]
[]
[]
[]
[]
[]
[]
[]
[]
[]
[]
[]
[]
[]
[]
[]
[]
[]
[]
[]
[]
[]
[]
[]
[]
[]
[]
[]
[]
[]
[]
[]
[]
[]
[]
[]
[]
[]
[]
[]
[]
[]
[]
[]
[]
[]
[]
[]
[]
[]
[]
[]
[]
[]
[]
[]
[]
[]
[]
[]
[]
[]
[]
[]
[]
[]
[]
[]
[]
[]
[]
[]
[]
[]
[]
[]
[]
[]
[]
[]
[]
[]
[]
[]
[]
[]
[]
[]
[]
[]
[]
[]
[]
[]
[]
[]
[]
[]
[]
[]
[]
[]
[]
[]
[]
[]
[]
[]
[]
[]
[]
[]
[]
[]
[]
[]
[]
[]
[]
[]
[]
[]
[]
[]
[]
[]
[]
[]
[]
[]
[]
[]
[]
[]
[]
[]
[]
[]
[]
[]
[]
[]
[]
[]
[]
[]
[]
[]
[]
[]
[]
[]
[]
[]
[]
[]
[]
[]
[]
[]
[]
[]
[]
[]
[]
[]
[]
[]
[]
[]
[]
[]
[]
[]
[]
[]
[]
[]
[]
[]
[]
[]
[]
[]
[]
[]
[]
[]
[]
[]
[]
[]
[]
[]
[]
[]
[]
[]
[]
[]
[]
[]
[]
[]
[]
[]
[]
[]
[]
[]
[]
[]
[]
[]
[]
[]
[]
[]
[]
[]
[]
[]
[]
[]
[]
[]
[]
[]
[]
[]
[]
[]
[]
[]
[]
[]
[]
[]
[]
[]
[]
[]
[]
[]
[]
[]
[]
[]
[]
[]
[]
[]
[]
[]
[]
[]
[]
[]
[]
[]
[]
[]
[]
[]
[]
[]
[]
[]
[]
[]
[]
[]
[]
[]
[]
[]
[]
[]
[]
[]
[]
[]
[]
[]
[]
[]
["must be a number",null,"debe ser un número"]
["and",null,"y"]
["must be TRUE or FALSE",null,"debe ser VERDADERO o FALSO"]
["Number of Record Types",null,"La cantidad de Clases de Registro"]
["The code of a Record Type",null,"El código de una Clase de Registro"]
["Number of identifiers",null,"La cantidad de identificadores"]
["Number of records",null,"La cantidad de registros"]
["Number of variables",null,"La cantidad de variables"]
["Allow blanks",null,"Permitir blancos"]
["Preprinted",null,"Preimpresa"]
["Variable type",null,"El tipo"]
["Length",null,"El largo"]
["Number of decimals",null,"La cantidad de decimales"]
["between",null,"entre"]
["Minimum",null,"El mínimo"]
["Maximum",null,"El máximo"]
["Number of minimums and maximums must be the same.",null,"La cantidad de mínimos y máximos debe ser igual."]
["Number of category codes and descriptions must be the same.",null,"La cantidad de códigos y descripciones de categorías debe ser igual."]
["Number of areas must be the same.",null,"La cantidad de áreas debe ser igual."]
["Sheet with this name does not exist.",null,"No existe una hoja con este nombre."]
["Row",null,"Fila"]
["Column",null,"Columna"]
["Number of rows",null,"Cantidad de filas"]
["Number of skips must be the same.",null,"La cantidad de saltos debe ser igual."]
["Address syntax is not valid.",null,"Sintaxis de dirección no es válida."]
["Length of category codes and variable must be the same",null,"El largo de la categoría debe ser igual al de la variable"]
[]
[]
[]
[]
[]
[]
[]
[]
[]
[]
[]
[]
[]
[]
[]
[]
[]
[]
[]
[]
[]
[]
[]
[]
[]
[]
[]
[]
[]
[]
[]
[]
[]
[]
[]
[]
[]
[]
[]
[]
[]
[]
[]
[]
[]
[]
[]
[]
[]
[]
[]
[]
[]
[]
[]
[]
[]
[]
[]
[]
[]
[]
[]
[]
[]
[]
[]
[]
[]
[]
[]
[]
[]
[]
[]
[]
[]
[]
[]
[]
[]
[]
[]
[]
[]
[]
[]
[]
[]
[]
[]
[]
[]
[]
[]
[]
[]
[]
[]
[]
[]
[]
[]
[]
[]
[]
[]
[]
[]
[]
[]
[]
[]
[]
[]
[]
[]
[]
[]
[]
[]
[]
[]
[]
[]
[]
[]
[]
[]
[]
[]
[]
[]
[]
[]
[]
[]
[]
[]
[]
[]
[]
[]
[]
[]
[]
[]
[]
[]
[]
[]
[]
[]
[]
[]
[]
[]
[]
[]
[]
[]
[]
[]
[]
[]
[]
[]
[]
[]
[]
[]
[]
[]
[]
[]
[]
[]
[]
[]
[]
[]
[]
[]
[]
[]
[]
[]
[]
[]
[]
[]
[]
[]
[]
[]
[]
[]
[]
[]
[]
[]
[]
[]
[]
[]
[]
[]
[]
[]
[]
[]
[]
[]
[]
[]
[]
[]
[]
[]
[]
[]
[]
[]
[]
[]
[]
[]
[]
[]
[]
[]
[]
[]
[]
[]
[]
[]
[]
[]
[]
[]
[]
[]
[]
[]
[]
[]
[]
[]
[]
[]
[]
[]
[]
[]
[]
[]
[]
[]
[]
[]
[]
[]
[]
[]
[]
[]
[]
[]
[]
[]
[]
[]
[]
[]
[]
[]
[]
[]
[]
[]
[]
[]
[]
[]
[]
[]
[]
[]
[]
[]
[]
[]
[]
[]
[]
[]
[]
[]
[]
[]
[]
[]
[]
[]
[]
[]
[]
[]
[]
[]
[]
[]
[]
[]
[]
[]
[]
[]
[]
[]
[]
[]
[]
[]
[]
[]
[]
[]
[]
[]
[]
[]
[]
[]
[]
[]
[]
[]
[]
[]
[]
[]
[]
[]
[]
[]
[]
[]
[]
[]
[]
[]
[]
[]
[]
[]
[]
[]
[]
[]
[]
[]
[]
[]
[]
[]
[]
[]
[]
[]
[]
[]
[]
[]
[]
[]
[]
[]
[]
[]
[]
[]
[]
[]
[]
[]
[]
[]
[]
[]
[]
[]
[]
[]
[]
[]
[]
[]
[]
[]
[]
[]
[]
[]
[]
[]
[]
[]
[]
[]
[]
[]
[]
[]
[]
[]
[]
[]
[]
[]
[]
[]
[]
[]
[]
[]
[]
[]
[]
[]
[]
[]
[]
[]
[]
[]
[]
[]
[]
[]
[]
[]
[]
[]
[]
[]
[]
[]
[]
[]
[]
[]
[]
[]
[]
[]
[]
[]
[]
[]
[]
[]
[]
[]
[]
[]
[]
[]
[]
[]
[]
[]
[]
[]
[]
[]
[]
[]
[]
[]
[]
[]
[]
[]
[]
[]
[]
[]
[]
[]
[]
[]
[]
[]
[]
[]
[]
[]
[]
[]
[]
[]
[]
[]
[]
[]
[]
[]
[]
[]
[]
[]
[]
[]
[]
[]
[]
[]
[]
[]
[]
[]
[]
[]
[]
[]
[]
[]
[]
[]
[]
[]
[]
[]
[]
[]
[]
[]
[]
[]
[]
[]
[]
[]
[]
[]
[]
[]
[]
[]
[]
[]
[]
[]
[]
[]
[]
[]
[]
[]
[]
[]
[]
[]
[]
[]
[]
[]
[]
[]
[]
[]
[]
[]
[]
[]
[]
[]
[]
[]
[]
[]
[]
[]
[]
[]
[]
[]
[]
[]
[]
[]
[]
[]
[]
[]
[]
[]
[]
[]
[]
[]
[]
[]
[]
[]
[]
[]
[]
[]
[]
[]
[]
[]
[]
[]
[]
[]
[]
[]
[]
[]
[]
[]
[]
[]
[]
[]
[]
[]
[]
[]
[]
[]
[]
[]
[]
[]
[]
[]
[]
[]
[]
[]
[]
[]
[]
[]
[]
[]
[]
[]
[]
[]
[]
[]
[]
[]
[]
[]
[]
[]
[]
[]
[]
[]
[]
[]
[]
[]
[]
[]
[]
[]
[]
[]
[]
[]
[]
[]
[]
[]
[]
[]
[]
[]
[]
[]
[]
[]
[]
[]
[]
[]
[]
[]
[]
[]
[]
[]
[]
[]
[]
[]
[]
[]
[]
[]
[]
[]
[]
[]
[]
[]
[]
[]
[]
[]
[]
[]
[]
[]
[]
[]
[]
[]
[]
[]
[]
[]
[]
[]
[]
[]
[]
[]
[]
[]
[]
[]
[]
[]
[]
[]
[]
[]
[]
[]
[]
[]
[]
[]
[]
[]
[]
[]
[]
[]
[]
[]
[]
[]
[]
[]
[]
[]
[]
[]
[]
[]
[]
[]
[]
[]
[]
[]
[]
[]
[]
[]
[]
[]
[]
[]
[]
[]
[]
[]
[]
[]
[]
[]
[]
[]
[]
[]
[]
[]
[]
[]
[]
[]
[]
[]
[]
[]
[]
[]
[]
[]
[]
[]
[]
[]
[]
[]
[]
[]
[]
[]
[]
[]
[]
[]
[]
[]
[]
[]
[]
[]
[]
[]
[]
[]
[]
[]
[]
[]
[]
[]
[]
[]
[]
[]
[]
[]
[]
[]
[]
[]
[]
[]
[]
[]
[]
[]
[]
[]
[]
[]
[]
[]
[]
[]
[]
[]
[]
[]
[]
[]
[]
[]
[]
[]
[]
[]
[]
[]
[]
[]
[]
[]
[]
[]
[]
[]
[]
[]
[]
[]
[]
[]
[]
[]
[]
[]
[]
[]
[]
[]
[]
[]
[]
[]
[]
[]
[]
[]
[]
[]
[]
[]
[]
[]
[]
[]
[]
[]
[]
[]
[]
[]
[]
[]
[]
[]
[]
[]
[]
[]
[]
[]
[]
[]
[]
[]
[]
[]
[]
[]
[]
[]
[]
[]
[]
[]
[]
[]
[]
[]
[]
[]
[]
[]
[]
[]
[]
[]
[]
[]
[]
[]
[]
[]
[]
[]
[]
[]
[]
[]
[]
[]
[]
["Variable not defined:",null,"La variable no está definida:"]
["This cell currently contains data. ¿Are you sure that you want to insert a black?",null,"Actualmente esta celda contiene datos. ¿Está seguro/a que desea insertar un negro?"]
["Summary",null,"Resumen"]
["Details",null,"Detalles"]
["Filename",null,"Archivo"]
["Messages",null,"Mensajes"]
["Date modified",null,"Fecha modificación"]
["Data entry session",null,"Sesión de digitación"]
["Start date and time",null,"Fecha y hora de inicio"]
["End date and time",null,"Fecha y hora de término"]
["Number of error messages",null,"Cantidad de mensajes de error"]

{"sheet":"Parameters","index":19,"n_rows":57,"n_cols":7,"rows_kept":57,"cut":false,"hidden":true,"merged":[]}
["DATAENTRYCELLBGCOLOR","PRINTEDCELLBGCOLOR","FORCEDCELLBGCOLOR","DATESCREENFORMATS","DATEFILEFORMATS","LANGUAGE","BLACK"]
[null,null,null,"MM-DD-YYYY","MM-DD-YYYY",3,"*"]
[null,null,null,"MM-DD-YYYY hh:mm","MM-DD-YYYY hh:mm"]
[null,null,null,"MM-DD-YYYY hh:mm:ss","MM-DD-YYYY hh:mm:ss"]
[null,null,null,"DD-MM-YYYY","DD-MM-YYYY"]
[null,null,null,"DD-MM-YYYY hh:mm","DD-MM-YYYY hh:mm"]
[null,null,null,"DD-MM-YYYY hh:mm:ss","DD-MM-YYYY hh:mm:ss"]
[null,null,null,"MM-YYYY","MM-YYYY"]
[null,null,null,"MM-DD-YY","MM-DD-YY"]
[null,null,null,"MM-DD-YY hh:mm","MM-DD-YY hh:mm"]
[null,null,null,"MM-DD-YY hh:mm:ss","MM-DD-YY hh:mm:ss"]
[null,null,null,"DD-MM-YY","DD-MM-YY"]
[null,null,null,"DD-MM-YY hh:mm","DD-MM-YY hh:mm"]
[null,null,null,"DD-MM-YY hh:mm:ss","DD-MM-YY hh:mm:ss"]
[null,null,null,"MM-YY","MM-YY"]
[null,null,null,"MM/DD/YYYY","MM/DD/YYYY"]
[null,null,null,"MM/DD/YYYY hh:mm","MM/DD/YYYY hh:mm"]
[null,null,null,"MM/DD/YYYY hh:mm:ss","MM/DD/YYYY hh:mm:ss"]
[null,null,null,"DD/MM/YYYY","DD/MM/YYYY"]
[null,null,null,"DD/MM/YYYY hh:mm","DD/MM/YYYY hh:mm"]
[null,null,null,"DD/MM/YYYY hh:mm:ss","DD/MM/YYYY hh:mm:ss"]
[null,null,null,"MM/YYYY","MM/YYYY"]
[null,null,null,"MM/DD/YY","MM/DD/YY"]
[null,null,null,"MM/DD/YY hh:mm","MM/DD/YY hh:mm"]
[null,null,null,"MM/DD/YY hh:mm:ss","MM/DD/YY hh:mm:ss"]
[null,null,null,"DD/MM/YY","DD/MM/YY"]
[null,null,null,"DD/MM/YY hh:mm","DD/MM/YY hh:mm"]
[null,null,null,"DD/MM/YY hh:mm:ss","DD/MM/YY hh:mm:ss"]
[null,null,null,"MM/YY","MM/YY"]
[null,null,null,null,"MMDDYYYY"]
[null,null,null,null,"MMDDYYYYhhmm"]
[null,null,null,null,"MMDDYYYYhhmmss"]
[null,null,null,null,"DDMMYYYY"]
[null,null,null,null,"DDMMYYYYhhmm"]
[null,null,null,null,"DDMMYYYYhhmmss"]
[null,null,null,null,"MMYYYY"]
[null,null,null,null,"MMDDYY"]
[null,null,null,null,"MMDDYYhhmm"]
[null,null,null,null,"MMDDYYhhmmss"]
[null,null,null,null,"DDMMYY"]
[null,null,null,null,"DDMMYYhhmm"]
[null,null,null,null,"DDMMYYhhmmss"]
[null,null,null,null,"MMYY"]
[null,null,null,null,"YYYYMMDD"]
[null,null,null,null,"YYYYMMDDhhmm"]
[null,null,null,null,"YYYYMMDDhhmmss"]
[null,null,null,null,"YYYYDDMM"]
[null,null,null,null,"YYYYDDMMhhmm"]
[null,null,null,null,"YYYYDDMMhhmmss"]
[null,null,null,null,"YYYYMM"]
[null,null,null,null,"YYMMDD"]
[null,null,null,null,"YYMMDDhhmm"]
[null,null,null,null,"YYMMDDhhmmss"]
[null,null,null,null,"YYDDMM"]
[null,null,null,null,"YYDDMMhhmm"]
[null,null,null,null,"YYDDMMhhmmss"]
[null,null,null,null,"YYMM"]

{"sheet":"Dictionary","index":20,"n_rows":327,"n_cols":19,"rows_kept":327,"cut":false,"hidden":true,"merged":[]}
[null,null,4,null,null,"c:\\PeI_PED\\Educ\\Datos\\",1,"\"E\" & id_escuela"]
[1,"001: Escuela",290,0,1]
["id_escuela","ID Escuela",false,false,0,4,0,"1~","300~","Portada~","5~","29~","1~"]
["s00_p01","Nombre del Establecimiento",false,false,2,50,0,null,null,"Portada~","5~","11~","1~"]
["s00_p02","Región/Estado",false,false,0,3,0,"0~","999~","Portada~","9~","16~","1~"]
["s00_p03","Provincia",false,false,0,3,0,"0~","999~","Portada~","11~","16~","1~"]
["s00_p04","Municipio",false,false,0,3,0,"0~","999~","Portada~","13~","16~","1~"]
["s00_p05","Localidad",false,false,0,3,0,"0~","999~","Portada~","15~","16~","1~"]
["s00_p06","Zona/Barrio",false,false,2,50,0,null,null,"Portada~","17~","7~","1~"]
["s00_p07","Calle",false,false,2,50,0,null,null,"Portada~","19~","7~","1~"]
["s00_p08","Número",false,false,2,50,0,null,null,"Portada~","21~","7~","1~"]
["s00_p09","Otras Referencias",false,false,2,50,0,null,null,"Portada~","23~","8~","1~"]
["s00_p10_g","06: Latitud Geográfica (grados)",false,false,0,2,0,"0~","56~","Portada~","26~","6~","1~"]
["s00_p10_m","06: Latitud Geográfica (minutos)",false,false,0,2,0,"0~","59~","Portada~","26~","9~","1~"]
["s00_p10_s","06: Latitud Geográfica (segundos)",false,false,0,5,2,"0~","59~","Portada~","26~","12~","1~"]
["s00_p11_g","07: Longitud Geográfica (grados)",false,false,0,2,0,"0~","99~","Portada~","28~","6~","1~"]
["s00_p11_m","07: Longitud Geográfica (minutos)",false,false,0,2,0,"0~","59~","Portada~","28~","9~","1~"]
["s00_p11_s","07: Longitud Geográfica (segundos)",false,false,0,5,2,"0~","59~","Portada~","28~","12~","1~"]
["s00_p12","Tipo",false,false,1,1,0,"1~2~3~4~5~6~","PRIMARIA~SECUNDARIA~AMBAS, PRIMARIA Y SECUNDARIA~SECUNDARIA TÉCNICA~OPCIÓN 5~OPCIÓN 6~","Portada~","9~","26~","1~"]
["s00_p13","Nombre del director/a",false,false,2,50,0,null,null,"Portada~","19~","22~","1~"]
["s00_p14_1","Teléfono 1",false,false,0,9,0,"1111111~","9999999~","Portada~","23~","25~","1~"]
["s00_p14_2","Teléfono 2",true,false,0,9,0,"1111111~","9999999~","Portada~","25~","25~","1~"]
["s00_p14","Teléfono 3",true,false,0,9,0,"1111111~","9999999~","Portada~","28~","25~","1~"]
["s00_p15","Encuestador/a",false,false,0,3,0,"1~","40~","Portada~","34~","12~","1~"]
["s00_p16","Supervisor",false,false,0,2,0,"1~","20~","Portada~","36~","12~","1~"]
["s00_p17","Otro Personal 1",true,false,0,2,0,"1~","10~","Portada~","38~","12~","1~"]
["s00_p18","Otro Personal 2",true,false,0,2,0,"1~","10~","Portada~","40~","12~","1~"]
["s00_p19","Otro Personal 3",true,false,0,2,0,"1~","10~","Portada~","42~","12~","1~"]
["s00_p20_1_d","Fecha Visita (día)",false,false,0,2,0,"1~","31~","Portada~","38~","18~","1~"]
["s00_p20_1_m","Fecha visita 1 (mes)",false,false,0,2,0,"1~","12~","Portada~","38~","19~","1~"]
["s00_p20_1_a","Fecha visita 1 (año)",false,false,0,4,0,"2012~","2020~","Portada~","38~","20~","1~"]
["s00_p20_1_r","Resultado visita 1",false,false,1,1,0,"1~2~3~4~5~6~","COMPLETA~PARCIAL~RECHAZO~NO CONTACTÓ~NO LO ENCONTRÓ~OTRO~","Portada~","38~","22~","1~"]
["s00_p20_1_i_h","Hora inicio visita 1 (horas)",false,false,0,2,0,"0~","23~","Portada~","38~","23~","1~"]
["s00_p20_1_i_m","Hora inicio visita 1 (minutos)",false,false,0,2,0,"0~","59~","Portada~","38~","24~","1~"]
["s00_p20_1_f_h","Hora fin visita 1 (horas)",false,false,0,2,0,"0~","23~","Portada~","38~","25~","1~"]
["s00_p20_1_f_m","Hora fin visita 1 (minutos)",false,false,0,2,0,"0~","59~","Portada~","38~","26~","1~"]
["s00_p20_2_d","Fecha Visita 2 (día)",true,false,0,2,0,"1~","31~","Portada~","39~","18~","1~"]
["s00_p20_2_m","Fecha visita 2 (mes)",true,false,0,2,0,"1~","12~","Portada~","39~","19~","1~"]
["s00_p20_2_a","Fecha visita 2 (año)",true,false,0,4,0,"2012~","2020~","Portada~","39~","20~","1~"]
["s00_p20_2_r","Resultado visita 2",true,false,1,1,0,"1~2~3~4~5~6~","COMPLETA~PARCIAL~RECHAZO~NO CONTACTÓ~NO LO ENCONTRÓ~OTRO~","Portada~","39~","22~","1~"]
["s00_p20_2_i_h","Hora inicio visita 2 (horas)",true,false,0,2,0,"0~","23~","Portada~","39~","23~","1~"]
["s00_p20_2_i_m","Hora inicio visita 2 (minutos)",true,false,0,2,0,"0~","59~","Portada~","39~","24~","1~"]
["s00_p20_2_f_h","Hora fin visita 2 (horas)",true,false,0,2,0,"0~","23~","Portada~","39~","25~","1~"]
["s00_p20_2_f_m","Hora fin visita 2 (minutos)",true,false,0,2,0,"0~","59~","Portada~","39~","26~","1~"]
["s00_p20_3_d","Fecha Visita 3 (día)",true,false,0,2,0,"1~","31~","Portada~","40~","18~","1~"]
["s00_p20_3_m","Fecha visita 3 (mes)",true,false,0,2,0,"1~","12~","Portada~","40~","19~","1~"]
["s00_p20_3_a","Fecha visita 3 (año)",true,false,0,4,0,"2012~","2020~","Portada~","40~","20~","1~"]
["s00_p20_3_r","Resultado visita 3",true,false,1,1,0,"1~2~3~4~5~6~","COMPLETA~PARCIAL~RECHAZO~NO CONTACTÓ~NO LO ENCONTRÓ~OTRO~","Portada~","40~","22~","1~"]
["s00_p20_3_i_h","Hora inicio visita 3 (horas)",true,false,0,2,0,"0~","23~","Portada~","40~","23~","1~"]
["s00_p20_3_i_m","Hora inicio visita 3 (minutos)",true,false,0,2,0,"0~","59~","Portada~","40~","24~","1~"]
["s00_p20_3_f_h","Hora fin visita 3 (horas)",true,false,0,2,0,"0~","23~","Portada~","40~","25~","1~"]
["s00_p20_3_f_m","Hora fin visita 3 (minutos)",true,false,0,2,0,"0~","59~","Portada~","40~","26~","1~"]
["s00_p20_4_d","Fecha Visita 4 (día)",true,false,0,2,0,"1~","31~","Portada~","41~","18~","1~"]
["s00_p20_4_m","Fecha visita 4 (mes)",true,false,0,2,0,"1~","12~","Portada~","41~","19~","1~"]
["s00_p20_4_a","Fecha visita 4 (año)",true,false,0,4,0,"2012~","2020~","Portada~","41~","20~","1~"]
["s00_p20_4_r","Resultado visita 4",true,false,1,1,0,"1~2~3~4~5~6~","COMPLETA~PARCIAL~RECHAZO~NO CONTACTÓ~NO LO ENCONTRÓ~OTRO~","Portada~","41~","22~","1~"]
["s00_p20_4_i_h","Hora inicio visita 4 (horas)",true,false,0,2,0,"0~","23~","Portada~","41~","23~","1~"]
["s00_p20_4_i_m","Hora inicio visita 4 (minutos)",true,false,0,2,0,"0~","59~","Portada~","41~","24~","1~"]
["s00_p20_4_f_h","Hora fin visita 4 (horas)",true,false,0,2,0,"0~","23~","Portada~","41~","25~","1~"]
["s00_p20_4_f_m","Hora fin visita 4 (minutos)",true,false,0,2,0,"0~","59~","Portada~","41~","26~","1~"]
["s00_p22","Idioma de la entrevista",false,false,1,1,0,"1~2~3~4~5~6~","CASTELLANO~OPCIÓN 2~OPCIÓN 3~OPCIÓN 4~OPCIÓN 5~OPCIÓN 6~","Portada~","34~","34~","1~"]
["s01_p01","(1,01): Edad del director",false,false,0,2,0,"20~","85~","1.Director~","5~","13~","1~"]
["s01_p02","(1,02): Sexo del Director",false,false,1,1,0,"1~2~","HOMBRE~MIJER~","1.Director~","7~","14~","1~"]
["s01_p03","(1,03): Año de ingreso al establecimiento",false,false,0,4,0,"1930~","2012~","1.Director~","11~","13~","1~"]
["s01_p04","(1,04): Año que fue nombrado Director",false,false,0,4,0,"1930~","2012~","1.Director~","13~","13~","1~"]
["s01_p05","(1,05): ¿Quién lo nombró director?",false,false,1,1,0,"1~2~3~4~5~6~7~8~","MINISTERIO DE EDUCACIÓN (CENTRAL)~SEDE REGIONAL/ESTATAL DEL MINISTERIO DE EDUCACIÓN~LA COMUNIDAD DE PADRES~EL LIDER COMUNITARIO~EL DUEÑO/A DEL ESTABLECIMIENTO~OPCIÓN 6~OPCIÓN 7~OTRO~","1.Director~","15~","14~","1~"]
["s01_p06_n","(1,06): Nivel más alto que aprobó",false,false,1,1,0,"1~2~3~4~5~6~7~8~","PRIMARIA~SECUNDARIA~BACHILLERATO~TERCIARIO TÉCNICO~TERCIARIO COMERCIAL~UNIVERSITARIA~MAESTRIA/DOCTORADO~OTRO (ESPECIFIQUE)~","1.Director~","29~","14~","1~"]
["s01_p06_c","(1,06): Curso más alto que aprobó",false,false,0,1,0,"1~","7~","1.Director~","31~","14~","1~","001~001~","s01_p06_n~s01_p06_n~","~~","1~4~","3~7~","s01_p13~s01_p07~"]
["s01_p06_otro","(1,06): Otra",false,false,2,50,0,null,null,"1.Director~","35~","7~","1~","001~","s01_p06_n~","~","8~","8~","s01_p13~"]
["s01_p07","(1,07): Año de aprobación",false,false,0,4,0,"1950~","2012~","1.Director~","37~","14~","1~"]
["s01_p08","(1,08): ¿Hizo algún curso de administración?",false,false,1,1,0,"1~2~","SI~NO~","1.Director~","5~","32~","1~","001~","s01_p08~","~","2~","2~","s01_p10~"]
["s01_p09","(1,09): Área del curso de administración",false,false,1,1,0,"1~2~3~","ADMINISTRACIÓN DE ESTABLECIMIENTOS EDUCACIONALES~ADMINISTRACIÓN DE EMPRESAS~OTRO~","1.Director~","9~","32~","1~"]
["s01_p10","(1,10): ¿Tiene título de profesor de escuela?",false,false,1,1,0,"1~2~","SI~NO~","1.Director~","15~","32~","1~","001~","s01_p10~","~","2~","2~","s01_p13~"]
["s01_p11","(1,11): ¿El título es de algún área?",false,false,1,1,0,"1~2~","SI~NO~","1.Director~","18~","32~","1~","001~","s01_p11~","~","2~","2~","s01_p13~"]
["s01_p12","(1,12): Áreas en donde está titulado",false,false,1,2,0,"01~02~03~04~05~06~07~08~09~10~11~12~13~14~","MATEMÁTICAS~CASTELLANO~CIENCIAS~FÍSICA~FILOSOFÍA~MANUALIDADES~EDUCACIÓN FÍSICA~MÚSICA~INGLÉS~OPCIÓN 10~OPCIÓN 11~OPCIÓN 12~OPCIÓN 13~OTRO~","1.Director~","21~","32~","1~"]
["s01_p13","(1,13): Horas a la semana que trabaja",false,false,0,2,0,"0~","60~","1.Director~","31~","32~","1~"]
["s01_p14","(1,14): ¿Dicta clases en la escuela?",false,false,1,1,0,"1~2~","SI~NO~","1.Director~","33~","32~","1~","001~","s01_p14~","~","2~","2~","s01_p16~"]
["s01_p15","(1,15): Horas a la semana que dicta clases",false,false,0,2,0,"0~","60~","1.Director~","36~","32~","1~"]
["s01_p16","(1,16): ¿Está estudiando otro título?",false,false,1,1,0,"1~2~","SI~NO~","1.Director~","44~","14~","1~","001~","s01_p16~","~","2~","2~","s01_p19_1~"]
["s01_p17","(1,17): ¿Qué título estudia?",false,false,1,1,0,"1~2~3~4~","OPCIÓN 1~OPCIÓN 2~OPCIÓN 3~OTRO~","1.Director~","48~","14~","1~"]
["s01_p18","(1,18): ¿Asistió a algún curso de perfeccionamiento?",false,false,1,1,0,"1~2~","SI~NO~","1.Director~","54~","14~","1~","001~","s01_p18~","~","2~","2~","s01_p21_a~"]
["s01_p19_1","(1,19): ¿Asistió a (curso perfeccionamiento 1)?",false,false,1,1,0,"1~2~","SI~NO~","1.Director~","68~","9~","1~","001~","s01_p19_1~","~","2~","2~","s01_p19_2~"]
["s01_p20_1","(1,20): ¿Quién financió (curso perfeccionamiento 1)?",false,false,1,1,0,"1~2~3~4~5~","YO MISMO/A~LA ESCUELA~OPCIÓN 3~OPCIÓN 4~OPCIÓN 5~","1.Director~","68~","13~","1~"]
["s01_p19_2","(1,19): ¿Asistió a (curso perfeccionamiento 2)?",false,false,1,1,0,"1~2~","SI~NO~","1.Director~","69~","9~","1~","001~","s01_p19_2~","~","2~","2~","s01_p19_3~"]
["s01_p20_2","(1,20): ¿Quién financió (curso perfeccionamiento 2)?",false,false,1,1,0,"1~2~3~4~5~","YO MISMO/A~LA ESCUELA~OPCIÓN 3~OPCIÓN 4~OPCIÓN 5~","1.Director~","69~","13~","1~"]
["s01_p19_3","(1,19): ¿Asistió a (curso perfeccionamiento 3)?",false,false,1,1,0,"1~2~","SI~NO~","1.Director~","70~","9~","1~","001~","s01_p19_3~","~","2~","2~","s01_p19_4~"]
["s01_p20_3","(1,20): ¿Quién financió (curso perfeccionamiento 3)?",false,false,1,1,0,"1~2~3~4~5~","YO MISMO/A~LA ESCUELA~OPCIÓN 3~OPCIÓN 4~OPCIÓN 5~","1.Director~","70~","13~","1~"]
["s01_p19_4","(1,19): ¿Asistió a (curso perfeccionamiento 4)?",false,false,1,1,0,"1~2~","SI~NO~","1.Director~","71~","9~","1~","001~","s01_p19_4~","~","2~","2~","s01_p19_5~"]
["s01_p20_4","(1,20): ¿Quién financió (curso perfeccionamiento 4)?",false,false,1,1,0,"1~2~3~4~5~","YO MISMO/A~LA ESCUELA~OPCIÓN 3~OPCIÓN 4~OPCIÓN 5~","1.Director~","71~","13~","1~"]
["s01_p19_5","(1,19): ¿Asistió a (curso perfeccionamiento 5)?",false,false,1,1,0,"1~2~","SI~NO~","1.Director~","72~","9~","1~","001~","s01_p19_5~","~","2~","2~","s01_p19_6~"]
["s01_p20_5","(1,20): ¿Quién financió (curso perfeccionamiento 5)?",false,false,1,1,0,"1~2~3~4~5~","YO MISMO/A~LA ESCUELA~OPCIÓN 3~OPCIÓN 4~OPCIÓN 5~","1.Director~","72~","13~","1~"]
["s01_p19_6","(1,19): ¿Asistió a (curso perfeccionamiento 6)?",false,false,1,1,0,"1~2~","SI~NO~","1.Director~","73~","9~","1~","001~","s01_p19_6~","~","2~","2~","s01_p19_7~"]
["s01_p20_6","(1,20): ¿Quién financió (curso perfeccionamiento 6)?",false,false,1,1,0,"1~2~3~4~5~","YO MISMO/A~LA ESCUELA~OPCIÓN 3~OPCIÓN 4~OPCIÓN 5~","1.Director~","73~","13~","1~"]
["s01_p19_7","(1,19): ¿Asistió a (curso perfeccionamiento 7)?",false,false,1,1,0,"1~2~","SI~NO~","1.Director~","74~","9~","1~","001~","s01_p19_7~","~","2~","2~","s01_p21_a~"]
["s01_p20_7","(1,20): ¿Quién financió (curso perfeccionamiento 7)?",false,false,1,1,0,"1~2~3~4~5~","YO MISMO/A~LA ESCUELA~OPCIÓN 3~OPCIÓN 4~OPCIÓN 5~","1.Director~","74~","13~","1~"]
["s01_p21_a","(1,21): Salario como Director en efectivo",false,false,0,5,0,"0~","99999~","1.Director~","47~","23~","1~"]
["s01_p21_b","(1,21): Salario como Director en comida",false,false,0,5,0,"0~","99999~","1.Director~","48~","23~","1~"]
["s01_p21_c","(1,21): Salario como Director en vivienda",false,false,0,5,0,"0~","99999~","1.Director~","49~","23~","1~"]
["s01_p21_d","(1,21): Salario como Director en transporte",false,false,0,5,0,"0~","99999~","1.Director~","47~","31~","1~"]
["s01_p21_e","(1,21): Salario como Director en otros",false,false,0,5,0,"0~","99999~","1.Director~","48~","31~","1~"]
["s01_p21_f","(1,21): Salario como Director en total",false,false,0,6,0,"0~","500000~","1.Director~","49~","31~","1~"]
["s01_p22","(1,22): ¿Tiene otro trabajo?",false,false,1,1,0,"1~2~","SI~NO~","1.Director~","54~","32~","1~","001~","s01_p22~","~","2~","2~","s02_p01~"]
["s01_p23","(1,23): Categoría que describe el otro trabajo",false,false,1,1,0,"1~2~3~4~5~","AGRICULTURA~POR CUENTA PROPIA~OPCIÓN 3~OPCIÓN 4~OTRO~","1.Director~","58~","32~","1~"]
["s01_p24","(1,24): Salario del último año por otro trabajo",false,false,0,5,0,"0~","99999~","1.Director~","66~","30~","1~"]
["s01_p25","(1,25): ¿Usted nació en ...?",false,false,1,1,0,"1~2~3~4~5~","¿la misma {Localidad}?~¿el mismo {Municilio}?~¿la misma {Provincia}?~¿la misma {Región/Estado}?~¿otro país?~","1.Director~","69~","32~","1~"]
["s02_p01","(2,01): Tipo de establecimieto",false,false,1,1,0,"1~2~3~","Es público?~Es privado religioso?~Es privado laico?~","2.Escuela~","4~","15~","1~"]
["s02_p02","(2,02): Religión que se enseña",false,false,1,1,0,"1~2~3~4~5~6~7~","NINGUNA~CATÓLICA~JUDÍA~PROTESTANTE~CRISTIANA~OPCIÓN 6~OPCIÓN 7~","2.Escuela~","10~","15~","1~"]
["s02_p03","(2,03): Nivel de gobierno de la administración",false,false,1,1,0,"1~2~3~4~5~6~7~8~","NIVEL CENTRAL~NIVEL REGIONAL/ESTATAL~NIVEL PROVINCIAL~NIVEL MUNICIPAL~IGLESIA~ONG~COMUNIDAD~OPCIÓN 8~","2.Escuela~","19~","15~","1~"]
["s02_p04","(2,04): Año de funcionamiento",false,false,0,4,0,"1950~","2012~","2.Escuela~","32~","15~","1~"]
["s02_p05","(2,05): ¿Tienen acreditación del ministerio?",false,false,1,1,0,"1~2~","SI~NO~","2.Escuela~","36~","15~","1~"]
["s02_p06","(2,06): ¿Usa el establecimiento para otros fines?",false,false,1,1,0,"1~2~","SI~NO~","2.Escuela~","4~","33~","1~"]
["s02_p07","(2,06): ¿Hay salas para alumnos especiales?",false,false,1,1,0,"1~2~","SI~NO~","2.Escuela~","8~","33~","1~"]
["s02_p08","(2,08): ¿Cuántas salas especiales hay?",false,false,0,1,0,"1~","9~","2.Escuela~","12~","33~","1~"]
["s02_p09","(2,09): ¿Cuentan con educación pre escolar?",false,false,1,1,0,"1~2~","SI~NO~","2.Escuela~","14~","33~","1~"]
["s02_p10_a_d_h","(2,10): Horario de apertura (mañana, horas)",false,false,0,2,0,"6~","23~","2.Escuela~","19~","26~","1~"]
["s02_p10_a_d_m","(2,10): Horario de apertura (mañana, minutos)",false,false,0,2,0,"0~","59~","2.Escuela~","19~","27~","1~"]
["s02_p10_a_h_h","(2,10): Horario de cierre (mañana, horas)",false,false,0,2,0,"6~","23~","2.Escuela~","19~","32~","1~"]
["s02_p10_a_h_m","(2,10): Horario de cierre (mañana, minutos)",false,false,0,2,0,"0~","59~","2.Escuela~","19~","33~","1~"]
["s02_p10_b_d_h","(2,10): Horario de apertura (tarde, horas)",false,false,0,2,0,"6~","23~","2.Escuela~","21~","26~","1~"]
["s02_p10_b_d_m","(2,10): Horario de apertura (tarde, minutos)",false,false,0,2,0,"0~","59~","2.Escuela~","21~","27~","1~"]
["s02_p10_b_h_h","(2,10): Horario de cierre (tarde, horas)",false,false,0,2,0,"6~","23~","2.Escuela~","21~","32~","1~"]
["s02_p10_b_h_m","(2,10): Horario de cierre (tarde, minutos)",false,false,0,2,0,"0~","59~","2.Escuela~","21~","33~","1~"]
["s02_p10_c_d_h","(2,10): Horario de apertura (noche, horas)",false,false,0,2,0,"6~","23~","2.Escuela~","23~","26~","1~"]
["s02_p10_c_d_m","(2,10): Horario de apertura (noche, minutos)",false,false,0,2,0,"0~","59~","2.Escuela~","23~","27~","1~"]
["s02_p10_c_h_h","(2,10): Horario de cierre (noche, horas)",false,false,0,2,0,"6~","23~","2.Escuela~","23~","32~","1~"]
["s02_p10_c_h_m","(2,10): Horario de cierre (noche, minutos)",false,false,0,2,0,"0~","59~","2.Escuela~","23~","33~","1~"]
["s02_p11","(2,11): ¿Aceptan a todos los postulantes?",false,false,1,1,0,"1~2~","SI~NO~","2.Escuela~","27~","33~","1~"]
["s02_p12_1","(2,12): Criterio más importante para admisión 1",false,false,1,1,0,"1~2~3~4~5~6~7~8~9~","RENDIMIENTO ESCOLAR PREVIO~TEST DE ADMISIÓN~LUGAR DE RESIDENCIA~ORDEN DE POSTULACIÓN~HERMANOS/AS EN EL ESTABLECIMIENTO~OPCIÓN 6~OPCIÓN 7~OPCIÓN 8~OTRO~","2.Escuela~","33~","33~","1~"]
["s02_p12_2","(2,12): Criterio más importante para admisión 2",false,false,1,1,0,"1~2~3~4~5~6~7~8~9~","RENDIMIENTO ESCOLAR PREVIO~TEST DE ADMISIÓN~LUGAR DE RESIDENCIA~ORDEN DE POSTULACIÓN~HERMANOS/AS EN EL ESTABLECIMIENTO~OPCIÓN 6~OPCIÓN 7~OPCIÓN 8~OTRO~","2.Escuela~","35~","33~","1~"]
["s02_p12_3","(2,12): Criterio más importante para admisión 3",false,false,1,1,0,"1~2~3~4~5~6~7~8~9~","RENDIMIENTO ESCOLAR PREVIO~TEST DE ADMISIÓN~LUGAR DE RESIDENCIA~ORDEN DE POSTULACIÓN~HERMANOS/AS EN EL ESTABLECIMIENTO~OPCIÓN 6~OPCIÓN 7~OPCIÓN 8~OTRO~","2.Escuela~","37~","33~","1~"]
["s02_p13","(2,13): Idioma usado en clases",false,false,1,1,0,"1~2~3~4~5~6~","CASTELLANO~OPCIÓN 2~OPCIÓN 3~OPCIÓN 4~OPCIÓN 5~OPCIÓN 6~","2.Escuela~","45~","15~","1~"]
["s02_p14","(2,14): ¿Hay alumnos que no entienden idioma?",false,false,1,1,0,"1~2~","SI~NO~","2.Escuela~","53~","15~","1~","001~","s02_p14~","~","2~","2~","s02_p16~"]
["s02_p15","(2,14): Acción a alumno que no entiende idioma",false,false,1,1,0,"1~2~3~4~5~6~","SE LES ENVÍA A CLASES ESPECIALES DEL IDIOMA USADO EN LAS CLASES, EN ESTE ESTABLECIMIENTO~SE LES ENVÍA A CLASES ESPECIALES DEL IDIOMA USADO EN LAS CLASES, EN OTRO ESTABLECIMIENTO~LOS AGRUPAN Y ASIGNAN PROFESORES QUE LOS INSTRUYEN EN EL LENGUAJE QUE ENTIENDEN~OPCIÓN 4~OPCIÓN 5~NO HACEN NADA~","2.Escuela~","58~","15~","1~"]
["s02_p16","(2,16): ¿Ausentismo de maestros es problema?",false,false,1,1,0,"1~2~","SI~NO~","2.Escuela~","72~","15~","1~"]
["s02_p17_1","(2,17): Causa de ausentismo de maestros 1",false,false,1,2,0,"01~02~03~04~05~06~07~08~09~10~","ENFERMEDAD~TIENEN OTROS TRABAJOS~CUIDADO DE FAMILIARES~EL TIEMPO ES MALO~EMBARAZO/PRE-POST NATAL~TRANSPORTE DIFICULTOSO~OPCIÓN 7~OPCIÓN 8~OPCIÓN 9~OTRO~","2.Escuela~","47~","33~","1~"]
["s2_p17_2","(2,17): Causa de ausentismo de maestros 2",false,false,1,2,0,"01~02~03~04~05~06~07~08~09~10~","ENFERMEDAD~TIENEN OTROS TRABAJOS~CUIDADO DE FAMILIARES~EL TIEMPO ES MALO~EMBARAZO/PRE-POST NATAL~TRANSPORTE DIFICULTOSO~OPCIÓN 7~OPCIÓN 8~OPCIÓN 9~OTRO~","2.Escuela~","49~","33~","1~"]
["s02_p17_3","(2,17): Causa de ausentismo de maestros 3",false,false,1,2,0,"01~02~03~04~05~06~07~08~09~10~","ENFERMEDAD~TIENEN OTROS TRABAJOS~CUIDADO DE FAMILIARES~EL TIEMPO ES MALO~EMBARAZO/PRE-POST NATAL~TRANSPORTE DIFICULTOSO~OPCIÓN 7~OPCIÓN 8~OPCIÓN 9~OTRO~","2.Escuela~","51~","33~","1~"]
["s02_p18_1","(2,18): ¿Qué hacen cuando maestro falta? 1",false,false,1,1,0,"1~2~3~4~5~6~7~8~9~","OTRO MAESTRO LO REEMPLAZA~OTRO PERSONAL LO REEMPLAZA~USTED (EL/LA DIRECTORA/A) LO REEMPLAZA~LOS ALUMNOS/AS PERMANECEN SOLOS EN SUS SALAS~PIDEN A LOS ALUMNOS/AS IR A JUGAR/HACER DEPORTE~ENVÍAN A LOS ALUMNOS A SUS CASAS~OPCIÓN 7~OPCIÓN 8~OTRO~","2.Escuela~","58~","33~","1~"]
["s02_p18_2","(2,18): ¿Qué hacen cuando maestro falta? 2",false,false,1,1,0,"1~2~3~4~5~6~7~8~9~","OTRO MAESTRO LO REEMPLAZA~OTRO PERSONAL LO REEMPLAZA~USTED (EL/LA DIRECTORA/A) LO REEMPLAZA~LOS ALUMNOS/AS PERMANECEN SOLOS EN SUS SALAS~PIDEN A LOS ALUMNOS/AS IR A JUGAR/HACER DEPORTE~ENVÍAN A LOS ALUMNOS A SUS CASAS~OPCIÓN 7~OPCIÓN 8~OTRO~","2.Escuela~","60~","33~","1~"]
["s02_p18_3","(2,18): ¿Qué hacen cuando maestro falta? 3",false,false,1,1,0,"1~2~3~4~5~6~7~8~9~","OTRO MAESTRO LO REEMPLAZA~OTRO PERSONAL LO REEMPLAZA~USTED (EL/LA DIRECTORA/A) LO REEMPLAZA~LOS ALUMNOS/AS PERMANECEN SOLOS EN SUS SALAS~PIDEN A LOS ALUMNOS/AS IR A JUGAR/HACER DEPORTE~ENVÍAN A LOS ALUMNOS A SUS CASAS~OPCIÓN 7~OPCIÓN 8~OTRO~","2.Escuela~","62~","33~","1~"]
["s02_p19","(2,19): Frecuencia de reuniones director-maestro",false,false,1,1,0,"1~2~3~4~5~6~","UNA VEZ EN EL DÍA~UNA VEZ EN EL SEMANA~UNA VEZ EN EL MES~UNA VEZ EN EL SEMESTRE~UNA VEZ EN EL AÑO~NO SE REUNEN~","2.Escuela~","72~","33~","1~"]
["s02_p20","(2,20): ¿Exigen asistencia para promoción de alumno?",false,false,1,1,0,"1~2~","SI~NO~","2.Escuela~","83~","15~","1~"]
["s02_p21","(2,21): ¿Ausentismo de alumnos es problema?",false,false,1,1,0,"1~2~","SI~NO~","2.Escuela~","87~","15~","1~"]
["s02_p22_1","(2,22): Causas de ausentismo en alumnos 1",false,false,1,2,0,"01~02~03~04~05~06~07~08~09~10~11~","ENFERMEDAD~TIENEN QUE AYUDAR EN SUS CASAS~TIENEN QUE TRABAJAR~CUIDADO DE FAMILIARES~EL TIEMPO ES MALO~TRANSPORTE DIFICULTOSO~NO QUIEREN IR A LA ESCUELA~OPCIÓN 8~OPCIÓN 9~OPCIÓN 10~OTRO~","2.Escuela~","92~","15~","1~"]
["s02_p22_2","(2,22): Causas de ausentismo en alumnos 2",false,false,1,2,0,"01~02~03~04~05~06~07~08~09~10~11~","ENFERMEDAD~TIENEN QUE AYUDAR EN SUS CASAS~TIENEN QUE TRABAJAR~CUIDADO DE FAMILIARES~EL TIEMPO ES MALO~TRANSPORTE DIFICULTOSO~NO QUIEREN IR A LA ESCUELA~OPCIÓN 8~OPCIÓN 9~OPCIÓN 10~OTRO~","2.Escuela~","94~","15~","1~"]
["s02_p22_3","(2,22): Causas de ausentismo en alumnos 3",false,false,1,2,0,"01~02~03~04~05~06~07~08~09~10~11~","ENFERMEDAD~TIENEN QUE AYUDAR EN SUS CASAS~TIENEN QUE TRABAJAR~CUIDADO DE FAMILIARES~EL TIEMPO ES MALO~TRANSPORTE DIFICULTOSO~NO QUIEREN IR A LA ESCUELA~OPCIÓN 8~OPCIÓN 9~OPCIÓN 10~OTRO~","2.Escuela~","96~","15~","1~"]
["s02_p23","(2,23): ¿Dan desayuno gratis a alumnos?",false,false,1,1,0,"1~2~","SI~NO~","2.Escuela~","83~","33~","1~"]
["s02_p24","(2,24): ¿Dan almuerzo gratis a alumnos?",false,false,1,1,0,"1~2~","SI~NO~","2.Escuela~","87~","33~","1~"]
["s02_p25","(2,25): ¿Existe una cantina para alumnos?",false,false,1,1,0,"1~2~","SI~NO~","2.Escuela~","91~","33~","1~"]
["s02_p26","(2,26): ¿Existe una cantina para maestros?",false,false,1,1,0,"1~2~","SI~NO~","2.Escuela~","95~","33~","1~"]
["s06_p01","(6,01): Nombre del maestro",false,false,2,50,0,null,null,"6.Maestro_1~","3~","7~","1~"]
["s06_p02","(6,02): Código de identificación del maestro",false,false,0,2,0,"0~","99~","6.Maestro_1~","3~","31~","1~"]
["s06_p03","(6,03): Estado civil del maestro",false,false,1,1,0,"1~2~3~4~5~","SOLTERO/A~CASADO/A~CONVIVIENTE O CONCUBINO(A)~DIVORCIADO/A O SEPARADO/A~VIUDO/A~","6.Maestro_1~","7~","14~","1~"]
["s06_p04","(6,04): ¿Dónde nació el maestro?",false,false,1,1,0,"1~2~3~4~5~","¿la misma {Localidad}?~¿el mismo {Municilio}?~¿la misma {Provincia}?~¿la misma {Región/Estado}?~¿otro país?~","6.Maestro_1~","13~","14~","1~"]
["s06_p05_1","(6,05): ¿Da clases a primer grado?",false,false,1,1,0,"1~2~","SI~NO~","6.Maestro_1~","25~","6~","1~"]
["s06_p05_2","(6,05): ¿Da clases a segundo grado?",false,false,1,1,0,"1~2~","SI~NO~","6.Maestro_1~","26~","6~","1~"]
["s06_p05_3","(6,05): ¿Da clases a tercer grado?",false,false,1,1,0,"1~2~","SI~NO~","6.Maestro_1~","27~","6~","1~"]
["s06_p05_4","(6,05): ¿Da clases a cuarto grado?",false,false,1,1,0,"1~2~","SI~NO~","6.Maestro_1~","28~","6~","1~"]
["s06_p05_5","(6,05): ¿Da clases a (otro grado 5)?",false,false,1,1,0,"1~2~","SI~NO~","6.Maestro_1~","25~","11~","1~"]
["s06_p05_6","(6,05): ¿Da clases a (otro grado 6)?",false,false,1,1,0,"1~2~","SI~NO~","6.Maestro_1~","26~","11~","1~"]
["s06_p05_7","(6,05): ¿Da clases a (otro grado 7)?",false,false,1,1,0,"1~2~","SI~NO~","6.Maestro_1~","27~","11~","1~"]
["s06_p05_8","(6,05): ¿Da clases a (otro grado 8)?",false,false,1,1,0,"1~2~","SI~NO~","6.Maestro_1~","28~","11~","1~"]
["s06_p05_9","(6,05): ¿Da clases a (otro grado 9)?",false,false,1,1,0,"1~2~","SI~NO~","6.Maestro_1~","25~","16~","1~"]
["s06_p05_10","(6,05): ¿Da clases a (otro grado 10)?",false,false,1,1,0,"1~2~","SI~NO~","6.Maestro_1~","26~","16~","1~"]
["s06_p05_11","(6,05): ¿Da clases a (otro grado 11)?",false,false,1,1,0,"1~2~","SI~NO~","6.Maestro_1~","27~","16~","1~"]
["s06_p05_12","(6,05): ¿Da clases a (otro grado 12)?",false,false,1,1,0,"1~2~","SI~NO~","6.Maestro_1~","28~","16~","1~"]
["s06_p06_1","(6,06): ¿Enseña matemáticas?",false,false,1,1,0,"1~2~","SI~NO~","6.Maestro_1~","10~","26~","1~"]
["s06_p06_2","(6,06): ¿Enseña castellano?",false,false,1,1,0,"1~2~","SI~NO~","6.Maestro_1~","11~","26~","1~"]
["s06_p06_3","(6,06): ¿Enseña manualidades?",false,false,1,1,0,"1~2~","SI~NO~","6.Maestro_1~","12~","26~","1~"]
["s06_p06_4","(6,06): ¿Enseña educación física?",false,false,1,1,0,"1~2~","SI~NO~","6.Maestro_1~","13~","26~","1~"]
["s06_p06_5","(6,06): ¿Enseña música?",false,false,1,1,0,"1~2~","SI~NO~","6.Maestro_1~","14~","26~","1~"]
["s06_p06_6","(6,06): ¿Enseña (otra asignatura 1)?",false,false,1,1,0,"1~2~","SI~NO~","6.Maestro_1~","15~","26~","1~"]
["s06_p06_7","(6,06): ¿Enseña (otra asignatura 2)?",false,false,1,1,0,"1~2~","SI~NO~","6.Maestro_1~","16~","26~","1~"]
["s06_p06_8","(6,06): ¿Enseña (otra asignatura 3)?",false,false,1,1,0,"1~2~","SI~NO~","6.Maestro_1~","17~","26~","1~"]
["s06_p06_9","(6,06): ¿Enseña ciencias?",false,false,1,1,0,"1~2~","SI~NO~","6.Maestro_1~","10~","33~","1~"]
["s06_p06_10","(6,06): ¿Enseña física?",false,false,1,1,0,"1~2~","SI~NO~","6.Maestro_1~","11~","33~","1~"]
["s06_p06_11","(6,06): ¿Enseña filosofía?",false,false,1,1,0,"1~2~","SI~NO~","6.Maestro_1~","12~","33~","1~"]
["s06_p06_12","(6,06): ¿Enseña inglés?",false,false,1,1,0,"1~2~","SI~NO~","6.Maestro_1~","13~","33~","1~"]
["s06_p06_13","(6,06): ¿Enseña otro idioma extranjero?",false,false,1,1,0,"1~2~","SI~NO~","6.Maestro_1~","14~","33~","1~"]
["s06_p06_14","(6,06): ¿Enseña (otra asignatura 4)?",false,false,1,1,0,"1~2~","SI~NO~","6.Maestro_1~","15~","33~","1~"]
["s06_p06_15","(6,06): ¿Enseña (otra asignatura 5)?",false,false,1,1,0,"1~2~","SI~NO~","6.Maestro_1~","16~","33~","1~"]
["s06_p06_16","(6,06): ¿Enseña (otra asignatura 6)?",false,false,1,1,0,"1~2~","SI~NO~","6.Maestro_1~","17~","33~","1~"]
["s06_p07","(6,07): Idioma en el que da sus clases",false,false,1,1,0,"1~2~3~4~5~6~","CASTELLANO~OPCIÓN 2~OPCIÓN 3~OPCIÓN 4~OPCIÓN 5~OPCIÓN 6~","6.Maestro_1~","22~","32~","1~"]
["s06_p08_a","(6,08): Horas semanales que enseña en la sala",false,false,0,2,0,"0~","60~","6.Maestro_1~","31~","32~","1~"]
["s06_p08_b","(6,08): Horas semanales que prepara clases",false,false,0,2,0,"0~","60~","6.Maestro_1~","32~","32~","1~"]
["s06_p08_c","(6,08): Horas semanales que corrige tests",false,false,0,2,0,"0~","60~","6.Maestro_1~","33~","32~","1~"]
["s06_p08_d","(6,08): Horas semanales que realiza tareas adm.",false,false,0,2,0,"0~","60~","6.Maestro_1~","34~","32~","1~"]
["s06_p08_e","(6,08): Horas semanales que realiza otras tareas",false,false,0,2,0,"0~","60~","6.Maestro_1~","35~","32~","1~"]
["s06_p09_n","(6,09): Más alto nivel aprobado",false,false,1,1,0,"1~2~3~4~5~6~7~8~","PRIMARIA~SECUNDARIA~BACHILLERATO~TERCIARIO TÉCNICO~TERCIARIO COMERCIAL~UNIVERSITARIA~MAESTRIA/DOCTORADO~OTRO (ESPECIFIQUE)~","6.Maestro_1~","44~","14~","1~"]
["s06_p09_c","(6,09): Más alto curso aprobado",false,false,0,1,0,"1~","7~","6.Maestro_1~","46~","14~","1~","001~","s06_p09_n~","~","1~","7~","s06_p10~"]
["s06_p09_otra","(6,09): Otra",false,false,2,50,0,null,null,"6.Maestro_1~","50~","7~","1~"]
["s06_p10","(6,10): Año de aprobación último nivel",false,false,0,4,0,"1960~","2012~","6.Maestro_1~","53~","14~","1~"]
["s06_p11","(6,11): ¿Quién lo nombró maestro?",false,false,1,1,0,"1~2~3~4~5~6~7~8~9~","EL/LA maestroA/A~MINISTERIO DE EDUCACIÓN (CENTRAL)~SEDE REGIONAL/ESTATAL DEL MINISTERIO DE EDUCACIÓN~LA COMUNIDAD DE PADRES~EL LIDER COMUNITARIO~EL DUEÑO/A DEL ESTABLECIMIENTO~OPCIÓN 7~OPCIÓN 8~OTRO~","6.Maestro_1~","55~","14~","1~"]
["s06_p12","(6,12): ¿Tiene título de maestro?",false,false,1,1,0,"1~2~","SI~NO~","6.Maestro_1~","67~","14~","1~","001~","s06_p12~","~","2~","2~","s06_p15~"]
["s06_p13","(6,13): ¿Su título es de un área específica?",false,false,1,1,0,"1~2~","SI~NO~","6.Maestro_1~","71~","14~","1~","001~","s06_p13~","~","2~","2~","s06_p20~"]
["s06_p14_1","(6,14): Área en donde está titulado 1",false,false,1,2,0,"01~02~03~04~05~06~07~08~09~10~11~12~13~14~","MATEMÁTICAS~CASTELLANO~CIENCIAS~FÍSICA~FILOSOFÍA~MANUALIDADES~EDUCACIÓN FÍSICA~MÚSICA~INGLÉS~OPCIÓN 10~OPCIÓN 11~OPCIÓN 12~OPCIÓN 13~OTRO~","6.Maestro_1~","41~","32~","1~"]
["s06_p14_2","(6,14): Área en donde está titulado 2",false,false,1,2,0,"01~02~03~04~05~06~07~08~09~10~11~12~13~14~","MATEMÁTICAS~CASTELLANO~CIENCIAS~FÍSICA~FILOSOFÍA~MANUALIDADES~EDUCACIÓN FÍSICA~MÚSICA~INGLÉS~OPCIÓN 10~OPCIÓN 11~OPCIÓN 12~OPCIÓN 13~OTRO~","6.Maestro_1~","43~","32~","1~"]
["s06_p15","(6,15): ¿Asistió a curso de perfeccionamiento?",false,false,1,1,0,"1~2~","SI~NO~","6.Maestro_1~","50~","32~","1~"]
["s06_p16_1","(6,16): ¿Asistió a pedagogía el último año?",false,false,1,1,0,"1~2~","SI~NO~","6.Maestro_1~","64~","27~","1~","001~","s06_p16_1~","~","2~","2~","s06_p16_2~"]
["s06_p17_1","(6,17): ¿Quién financió pedagogía?",false,false,1,1,0,"1~2~","YO MISMO/A~LA ESCUELA~","6.Maestro_1~","64~","31~","1~"]
["s06_p16_2","(6,16): ¿Asistió a materias específicas el último año?",false,false,1,1,0,"1~2~","SI~NO~","6.Maestro_1~","65~","27~","1~","001~","s06_p16_2~","~","2~","2~","s06_p16_3~"]
["s06_p17_2","(6,17): ¿Quién financió materias específicas?",false,false,1,1,0,"1~2~","YO MISMO/A~LA ESCUELA~","6.Maestro_1~","65~","31~","1~"]
["s06_p16_3","(6,16): ¿Asistió a idiomas el último año?",false,false,1,1,0,"1~2~","SI~NO~","6.Maestro_1~","66~","27~","1~","001~","s06_p16_3~","~","2~","2~","s06_p16_4~"]
["s06_p17_3","(6,17): ¿Quién financió idiomas?",false,false,1,1,0,"1~2~","YO MISMO/A~LA ESCUELA~","6.Maestro_1~","66~","31~","1~"]
["s06_p16_4","(6,16): ¿Asistió a (otro curso 1) el último año?",false,false,1,1,0,"1~2~","SI~NO~","6.Maestro_1~","67~","27~","1~","001~","s06_p16_4~","~","2~","2~","s06_p16_5~"]
["s06_p17_4","(6,17): ¿Quién financió (otro curso 1)?",false,false,1,1,0,"1~2~","YO MISMO/A~LA ESCUELA~","6.Maestro_1~","67~","31~","1~"]
["s06_p16_5","(6,16): ¿Asistió a (otro curso 2) el último año?",false,false,1,1,0,"1~2~","SI~NO~","6.Maestro_1~","68~","27~","1~","001~","s06_p16_5~","~","2~","2~","s06_p16_6~"]
["s06_p17_5","(6,17): ¿Quién financió (otro curso 2)?",false,false,1,1,0,"1~2~","YO MISMO/A~LA ESCUELA~","6.Maestro_1~","68~","31~","1~"]
["s06_p16_6","(6,16): ¿Asistió a (otro curso 3) el último año?",false,false,1,1,0,"1~2~","SI~NO~","6.Maestro_1~","69~","27~","1~","001~","s06_p16_6~","~","2~","2~","s06_p16_7~"]
["s06_p17_6","(6,17): ¿Quién financió (otro curso 3)?",false,false,1,1,0,"1~2~","YO MISMO/A~LA ESCUELA~","6.Maestro_1~","69~","31~","1~"]
["s06_p16_7","(6,16): ¿Asistió a (otro curso 4) el último año?",false,false,1,1,0,"1~2~","SI~NO~","6.Maestro_1~","70~","27~","1~","001~","s06_p16_7~","~","2~","2~","s06_p16_8~"]
["s06_p17_7","(6,17): ¿Quién financió (otro curso 4)?",false,false,1,1,0,"1~2~","YO MISMO/A~LA ESCUELA~","6.Maestro_1~","70~","31~","1~"]
["s06_p16_8","(6,16): ¿Asistió a (otro curso 5) el último año?",false,false,1,1,0,"1~2~","SI~NO~","6.Maestro_1~","71~","27~","1~","001~","s06_p16_8~","~","2~","2~","s06_p18_a~"]
["s06_p17_8","(6,17): ¿Quién financió (otro curso 5)?",false,false,1,1,0,"1~2~","YO MISMO/A~LA ESCUELA~","6.Maestro_1~","71~","31~","1~"]
["s06_p18_a","(6,18): Salario de maestro en efectivo",false,false,0,5,0,"0~","99999~","6.Maestro_1~","80~","6~","1~"]
["s06_p18_b","(6,18): Salario de maestro en comida",false,false,0,5,0,"0~","99999~","6.Maestro_1~","81~","6~","1~"]
["s06_p18_c","(6,18): Salario de maestro en vivienda",false,false,0,5,0,"0~","99999~","6.Maestro_1~","82~","6~","1~"]
["s06_p18_d","(6,18): Salario de maestro en transporte",false,false,0,5,0,"0~","99999~","6.Maestro_1~","80~","14~","1~"]
["s06_p18_e","(6,18): Salario de maestro en otros",false,false,0,5,0,"0~","99999~","6.Maestro_1~","81~","14~","1~"]
["s06_p18_f","(6,18): Salario de maestro en total",false,false,0,5,0,"0~","99999~","6.Maestro_1~","82~","14~","1~"]
["s06_p19","(6,19): ¿Da usted clases en otro lado?",false,false,1,1,0,"1~2~","SI~NO~","6.Maestro_1~","85~","14~","1~","001~","s06_p19~","~","2~","2~","s06_p21~"]
["s06_p20","(6,20): Horas que trabaja en otro lado (semana)",false,false,0,2,0,"0~","60~","6.Maestro_1~","90~","14~","1~"]
["s06_p21","(6,21): ¿Tiene algún otro trabajo?",false,false,1,1,0,"1~2~","SI~NO~","6.Maestro_1~","94~","14~","1~","001~","s06_p21~","~","2~","2~","s06_p24_a~"]
["s06_p22","(6,22): Categoría que describe otro trabajo",false,false,1,1,0,"1~2~3~4~5~","Agricultura~Por cuenta propia~OPCIÓN 3~OPCIÓN 4~OTRO~","6.Maestro_1~","99~","14~","1~"]
["s06_p23","(6,23): Mono recibido en otro trabajo último año",false,false,0,5,0,"0~","99999~","6.Maestro_1~","107~","12~","1~"]
["s06_p24_a","(6,24): ¿Recibe sugerencias del director?",false,false,1,1,0,"1~2~","SI~NO~","6.Maestro_1~","81~","27~","1~"]
["s06_p24_b","(6,24): ¿Recibe sugerencias de otros maestros?",false,false,1,1,0,"1~2~","SI~NO~","6.Maestro_1~","82~","27~","1~"]
["s06_p24_c","(6,24): ¿Recibe sugerencias de los padres?",false,false,1,1,0,"1~2~","SI~NO~","6.Maestro_1~","83~","27~","1~"]
["s06_p24_d","(6,24): ¿Recibe sugerencias de (otro)?",false,false,1,1,0,"1~2~","SI~NO~","6.Maestro_1~","84~","27~","1~"]
["s06_p25","(6,25): ¿Es evaluado por el director?",false,false,1,1,0,"1~2~","SI~NO~","6.Maestro_1~","87~","32~","1~"]
["s07_p01","(7,01): Nombre del alumno",false,false,2,50,0,null,null,"7.Alumno_1~","3~","7~","1~"]
["s07_p02","(7,02): Código del alumno",false,false,0,2,0,"0~","99~","7.Alumno_1~","3~","31~","1~"]
["s07_p03","(7,03): Número de hermanos y hermanas",false,false,0,1,0,"0~","9~","7.Alumno_1~","6~","10~","1~"]
["s07_p04","(7,04): Edad con que entró a primer grado",false,false,0,1,0,"1~","9~","7.Alumno_1~","8~","10~","1~"]
["s07_p05","(7,05): ¿Has repetido algún curso?",false,false,1,1,0,"1~2~","SI~NO~","7.Alumno_1~","10~","10~","1~","001~","s07_p05~","~","2~","2~","s07_p07~"]
["s07_p06","(7,06): Grados repetidos en total",false,false,0,1,0,"0~","9~","7.Alumno_1~","13~","10~","1~"]
["s07_p07","(7,07): ¿Dónde naciste?",false,false,1,1,0,"1~2~3~4~5~","¿la misma {Localidad}?~¿el mismo {Municilio}?~¿la misma {Provincia}?~¿la misma {Región/Estado}?~¿otro país?~","7.Alumno_1~","15~","10~","1~"]
["s07_p08","(7,08): ¿Fue tu padre a la escuela?",false,false,1,1,0,"1~2~","SI~NO~","7.Alumno_1~","24~","10~","1~","001~","s07_p08~","~","2~","2~","s07_p10~"]
["s07_p09_n","(7,09): Más alto nivel aprobado por el padre",false,false,1,1,0,"1~2~3~4~5~6~7~8~","PRIMARIA~SECUNDARIA~BACHILLERATO~TERCIARIO TÉCNICO~TERCIARIO COMERCIAL~UNIVERSITARIA~MAESTRIA/DOCTORADO~OTRO (ESPECIFIQUE)~","7.Alumno_1~","28~","4~","1~"]
["s07_p09_c","(7,09): Más alto curso aprobado por el padre",false,false,0,1,0,"1~","7~","7.Alumno_1~","28~","10~","1~","001~001~","s07_p09_n~s07_p09_n~","~~","1~2~","1~7~","s07_p10~s07_p12_1~"]
["s07_p09_otra","(7,09): Otra",false,false,2,50,0,null,null,"7.Alumno_1~","36~","7~","1~"]
["s07_p10","(7,10): ¿Tu padre sabe leer?",false,false,1,1,0,"1~2~","SI~NO~","7.Alumno_1~","6~","22~","1~"]
["s07_p11","(7,11): ¿Tu padre sabe escribir?",false,false,1,1,0,"1~2~","SI~NO~","7.Alumno_1~","9~","22~","1~"]
["s07_p12_1","(7,12): ¿Tu padre trabaja en el campo?",false,false,1,1,0,"1~2~","SI~NO~","7.Alumno_1~","14~","21~","1~"]
["s07_p12_2","(7,12): ¿Tu padre tiene su propio negocio?",false,false,1,1,0,"1~2~","SI~NO~","7.Alumno_1~","15~","21~","1~"]
["s07_p12_3","(7,12): ¿Tu padre trabaja en (otra actividad 1)?",false,false,1,1,0,"1~2~","SI~NO~","7.Alumno_1~","16~","21~","1~"]
["s07_p12_4","(7,12): ¿Tu padre trabaja en (otra actividad 2)?",false,false,1,1,0,"1~2~","SI~NO~","7.Alumno_1~","17~","21~","1~"]
["s07_p12_5","(7,12): ¿Tu padre trabaja en (otra actividad 3)?",false,false,1,1,0,"1~2~","SI~NO~","7.Alumno_1~","18~","21~","1~"]
["s07_p12_6","(7,12): ¿Tu padre trabaja en (otra actividad 4)?",false,false,1,1,0,"1~2~","SI~NO~","7.Alumno_1~","19~","21~","1~"]
["s07_p12_7","(7,12): ¿Tu padre trabaja en (otra actividad 5)?",false,false,1,1,0,"1~2~","SI~NO~","7.Alumno_1~","20~","21~","1~"]
["s07_p12_8","(7,12): ¿Tu padre no trabaja?",false,false,1,1,0,"1~2~","SI~NO~","7.Alumno_1~","21~","21~","1~"]
["s07_p13","(7,08): ¿Fue tu madre a la escuela?",false,false,1,1,0,"1~2~","SI~NO~","7.Alumno_1~","24~","22~","1~","001~","s07_p13~","~","2~","2~","s07_p15~"]
["s07_p14_n","(7,09): Más alto nivel aprobado por la madre",false,false,1,1,0,"1~2~3~4~5~6~7~8~","PRIMARIA~SECUNDARIA~BACHILLERATO~TERCIARIO TÉCNICO~TERCIARIO COMERCIAL~UNIVERSITARIA~MAESTRIA/DOCTORADO~OTRO (ESPECIFIQUE)~","7.Alumno_1~","28~","16~","1~"]
["s07_p14_c","(7,09): Más alto curso aprobado por la madre",false,false,0,1,0,"1~","7~","7.Alumno_1~","28~","22~","1~","001~001~","s07_p14_n~s07_p14_n~","~~","1~2~","1~7~","s07_p15~s07_p17_1~"]
["s07_p14_otra","(7,14): Otra",false,false,2,50,0,null,null,"7.Alumno_1~","36~","19~","1~"]
["s07_p15","(7,15): ¿Tu madre sabe leer?",false,false,1,1,0,"1~2~","SI~NO~","7.Alumno_1~","6~","34~","1~"]
["s07_p16","(7,16): ¿Tu madre sabe escribir?",false,false,1,1,0,"1~2~","SI~NO~","7.Alumno_1~","9~","34~","1~"]
["s07_p17_1","(7,17): ¿Tu madre trabaja en el campo?",false,false,0,1,0,"0~","9~","7.Alumno_1~","14~","33~","1~"]
["s07_p17_2","(7,17): ¿Tu madre tiene su propio negocio?",false,false,1,1,0,"1~2~","SI~NO~","7.Alumno_1~","15~","33~","1~"]
["s07_p17_3","(7,17): ¿Tu madre trabaja en (otra actividad 1)?",false,false,1,1,0,"1~2~","SI~NO~","7.Alumno_1~","16~","33~","1~"]
["s07_p17_4","(7,17): ¿Tu madre trabaja en (otra actividad 2)?",false,false,1,1,0,"1~2~","SI~NO~","7.Alumno_1~","17~","33~","1~"]
["s07_p17_5","(7,17): ¿Tu madre trabaja en (otra actividad 3)?",false,false,1,1,0,"1~2~","SI~NO~","7.Alumno_1~","18~","33~","1~"]
["s07_p17_6","(7,17): ¿Tu madre trabaja en (otra actividad 4)?",false,false,1,1,0,"1~2~","SI~NO~","7.Alumno_1~","19~","33~","1~"]
["s07_p17_7","(7,17): ¿Tu madre trabaja en (otra actividad 5)?",false,false,1,1,0,"1~2~","SI~NO~","7.Alumno_1~","20~","33~","1~"]
["s07_p17_8","(7,17): ¿Tu madre no trabaja?",false,false,1,1,0,"1~2~","SI~NO~","7.Alumno_1~","21~","33~","1~"]
["s07_p18","(7,18): Tiempo en ir de casa a escuela",false,false,0,3,0,"0~","120~","7.Alumno_1~","24~","34~","1~"]
["s07_p19","(7,19): Primer idioma que hablaste",false,false,1,1,0,"1~2~3~4~5~6~","CASTELLANO~OPCIÓN 2~OPCIÓN 3~OPCIÓN 4~OPCIÓN 5~OPCIÓN 6~","7.Alumno_1~","27~","34~","1~"]
["s07_p20","(7,20): ¿Recibes beca este año?",false,false,1,1,0,"1~2~","SI~NO~","7.Alumno_1~","41~","10~","1~"]
["s07_p21","(7,21): ¿Tienen electricidad en la casa?",false,false,1,1,0,"1~2~","SI~NO~","7.Alumno_1~","44~","10~","1~"]
["s07_p22","(7,22): ¿Tienen electricidad en la casa?",false,false,1,1,0,"1~2~","SI~NO~","7.Alumno_1~","47~","10~","1~"]
["s07_p23","(7,23): ¿Tienen cocina en tu casa?",false,false,1,1,0,"1~2~","SI~NO~","7.Alumno_1~","51~","10~","1~"]
["s07_p24","(7,24): ¿Tienen piezas para dormir en tu casa?",false,false,1,1,0,"1~2~","SI~NO~","7.Alumno_1~","55~","10~","1~","001~","s07_p24~","~","2~","2~","s07_p26~"]
["s07_p25","(7,25): ¿Cuántas piezas para dormir hay?",false,false,0,1,0,"1~","9~","7.Alumno_1~","59~","10~","1~"]
["s07_p26","(7,26): ¿Tienen agua dentro de la casa?",false,false,1,1,0,"1~2~","SI~NO~","7.Alumno_1~","62~","10~","1~"]
["s07_p27_1","(7,27): ¿Alguien en tu casa tiene vacas?",false,false,1,1,0,"1~2~","SI~NO~","7.Alumno_1~","44~","19~","1~"]
["s07_p27_2","(7,27): ¿Alguien en tu casa tiene caballos?",false,false,1,1,0,"1~2~","SI~NO~","7.Alumno_1~","45~","19~","1~"]
["s07_p27_3","(7,27): ¿Alguien en tu casa tiene cerdos?",false,false,1,1,0,"1~2~","SI~NO~","7.Alumno_1~","46~","19~","1~"]
["s07_p27_4","(7,27): ¿Alguien en tu casa tiene aves?",false,false,1,1,0,"1~2~","SI~NO~","7.Alumno_1~","47~","19~","1~"]
["s07_p27_5","(7,27): ¿Alguien en tu casa tiene (otro animal 1)?",false,false,1,1,0,"1~2~","SI~NO~","7.Alumno_1~","48~","19~","1~"]
["s07_p27_6","(7,27): ¿Alguien en tu casa tiene (otro animal 2)?",false,false,1,1,0,"1~2~","SI~NO~","7.Alumno_1~","49~","19~","1~"]
["s07_p27_7","(7,27): ¿Alguien en tu casa tiene televisión?",false,false,1,1,0,"1~2~","SI~NO~","7.Alumno_1~","50~","19~","1~"]
["s07_p27_8","(7,27): ¿Alguien en tu casa tiene radio?",false,false,1,1,0,"1~2~","SI~NO~","7.Alumno_1~","51~","19~","1~"]
["s07_p27_9","(7,27): ¿Alguien en tu casa tiene teléfono móvil?",false,false,1,1,0,"1~2~","SI~NO~","7.Alumno_1~","52~","19~","1~"]
["s07_p27_10","(7,27): ¿Alguien en tu casa tiene bicicleta?",false,false,1,1,0,"1~2~","SI~NO~","7.Alumno_1~","53~","19~","1~"]
["s07_p27_11","(7,27): ¿Alguien en tu casa tiene moto?",false,false,1,1,0,"1~2~","SI~NO~","7.Alumno_1~","54~","19~","1~"]
["s07_p27_12","(7,27): ¿Alguien en tu casa tiene auto?",false,false,1,1,0,"1~2~","SI~NO~","7.Alumno_1~","55~","19~","1~"]
["s07_p27_13","(7,27): ¿Alguien en tu casa tiene (otro 1)?",false,false,1,1,0,"1~2~","SI~NO~","7.Alumno_1~","56~","19~","1~"]
["s07_p27_14","(7,27): ¿Alguien en tu casa tiene (otro 2)?",false,false,1,1,0,"1~2~","SI~NO~","7.Alumno_1~","57~","19~","1~"]
["s07_p28","(7,28): ¿Faltaste algún día la semana pasada?",false,false,1,1,0,"1~2~","SI~NO~","7.Alumno_1~","41~","34~","1~","001~","s07_p28~","~","2~","2~","s07_p31~"]
["s07_p29","(7,29): ¿Cuántos días faltaste?",false,false,0,1,0,"1~","5~","7.Alumno_1~","45~","34~","1~"]
["s07_p30","(7,30): ¿Por qué faltaste la semana pasada?",false,false,1,2,0,"01~02~03~04~05~06~07~08~09~10~11~","ESTUVO ENFERMO~TUVO QUE AYUDAR EN EL CAMPO~TUVO QUE AYUDAR CON LOS ANIMALES~TUVO QUE CUIDAR FAMILIARES~HABÍA MAL TIEMPO~NO HABÍA TRANSPORTE~NO QUISO IR~OPCIÓN 8~OPCIÓN 9~OPCIÓN 10~OTRO~","7.Alumno_1~","48~","34~","1~"]
["s07_p31","(7,31): ¿Tomaste desayuno hoy en la mañana?",false,false,1,1,0,"1~2~","SI~NO~","7.Alumno_1~","62~","34~","1~"]
[2,"002: Curso",17,1,12]
["n_linea","Número de Línea",false,true,1,2,0,"01~02~03~04~05~06~07~08~09~10~11~12~","GRADO 1~GRADO 2~GRADO 3~GRADO 4~GRADO 5~GRADO 6~GRADO 7~GRADO 8~GRADO 9~GRADO 10~GRADO 11~GRADO 12~","3.Cursos~","11~","1~","12~"]
["s03_p01","(3,01): Total hombres clase A",false,false,0,2,0,"0~","99~","3.Cursos~","11~","4~","12~"]
["s03_p02","(3,02): # de repitentes hombres clase A",false,false,0,2,0,"0~","99~","3.Cursos~","11~","5~","12~"]
["s03_p03","(3,03): Total mujeres clase A",false,false,0,2,0,"0~","99~","3.Cursos~","11~","6~","12~"]
["s03_p04","(3,04): # de repitentes mujeres clase A",false,false,0,2,0,"0~","99~","3.Cursos~","11~","7~","12~"]
["s03_p05","(3,05): Total hombres clase B",false,false,0,2,0,"0~","99~","3.Cursos~","11~","8~","12~"]
["s03_p06","(3,06): # repitentes hombres clase B",false,false,0,2,0,"0~","99~","3.Cursos~","11~","9~","12~"]
["s03_p07","(3,07): Total mujeres clase B",false,false,0,2,0,"0~","99~","3.Cursos~","11~","10~","12~"]
["s03_p08","(3,08): # de repitentes mujeres clase B",false,false,0,2,0,"0~","99~","3.Cursos~","11~","11~","12~"]
["s03_p09","(3,09): Total hombres clase C",false,false,0,2,0,"0~","99~","3.Cursos~","11~","12~","12~"]
["s03_p10","(3,10): # de repitentes hombres clase C",false,false,0,2,0,"0~","99~","3.Cursos~","11~","13~","12~"]
["s03_p11","(3,11): Total mujeres clase C",false,false,0,2,0,"0~","99~","3.Cursos~","11~","14~","12~"]
["s03_p12","(3,12): # de repitentes mujeres clase C",false,false,0,2,0,"0~","99~","3.Cursos~","11~","15~","12~"]
["s03_p13","(3,13): Total hombres clase D",false,false,0,2,0,"0~","99~","3.Cursos~","11~","16~","12~"]
["s03_p14","(3,14): # de repitentes hombres clase D",false,false,0,2,0,"0~","99~","3.Cursos~","11~","17~","12~"]
["s03_p15","(3,15): Total mujeres clase D",false,false,0,2,0,"0~","99~","3.Cursos~","11~","18~","12~"]
["s03_p16","(3,16): # de repitentes mujeres clase D",false,false,0,2,0,"0~","99~","3.Cursos~","11~","19~","12~"]
[3,"003: Maestro",10,1,16]
["id_maestro","Código de Identificación del Maestro",false,true,0,2,0,"1~","16~","4.ListaMaestros~","24~","1~","16~"]
["s04_p02","(4,02): Sexo del maestro",false,false,1,1,0,"1~2~","HOMBRE~MUJER~","4.ListaMaestros~","24~","9~","16~"]
["s04_p03","(4,03): Edad del maestro",false,false,0,2,0,"18~","999~","4.ListaMaestros~","24~","12~","16~"]
["s04_p04_a","(4,04): Tiempo de trabajo del maestro (años)",false,false,0,2,0,"0~","99~","4.ListaMaestros~","24~","15~","16~"]
["s04_p04_m","(4,04): Tiempo de trabajo del maestro (meses)",false,false,0,2,0,"0~","11~","4.ListaMaestros~","24~","17~","16~"]
["s04_p05","(4,05): Tipo de contrato del maestro",false,false,1,1,0,"1~2~3~4~5~6~7~","CONTRATO INDEFINIDO A TIEMPO COMPLETO~CONTRATO A TIEMPO PARCIAL~NO TIENE NINGÚN ARREGLO FORMAL~OPCIÓN 4~OPCIÓN 5~OPCIÓN 6~OTRO~","4.ListaMaestros~","24~","19~","16~"]
["s04_p06","(4,06): Horas que trabaja semanalmente",false,false,0,2,0,"0~","60~","4.ListaMaestros~","24~","25~","16~"]
["s04_p07","(4,07): Salario de bolsillo bruto del maestro",false,false,0,5,0,"0~","99999~","4.ListaMaestros~","24~","28~","16~"]
["s04_p08","(4,08): ¿Está el maestro en la escuela hoy?",false,false,1,1,0,"1~2~","SI~NO~","4.ListaMaestros~","24~","32~","16~"]
["s04_p09","(4,09): Número de selección del maestro",true,false,0,1,0,"1~","3~","4.ListaMaestros~","24~","34~","16~"]
[4,"004: Alumno",5,1,40]
["id_alumno","Código identificador del alumno",false,true,0,2,0,"1~","40~","5.ListaAlumnos~","20~","1~","40~"]
["s05_p02","(5,02): Sexo del alumno",false,false,1,1,0,"1~2~","HOMBRE~MUJER~","5.ListaAlumnos~","20~","7~","40~"]
["s05_p03","(5,03): Edad del alumno",false,false,0,2,0,"4~","25~","5.ListaAlumnos~","20~","10~","40~"]
["s05_p04","(5,04): ¿Está el alumno presente hoy?",false,false,1,1,0,"1~2~","SI~NO~","5.ListaAlumnos~","20~","12~","40~"]
["s05_p05","(5,05): Número de selección alumno",true,false,0,1,0,"1~","3~","5.ListaAlumnos~","20~","14~","40~"]

{"sheet":"Dictionary_AUX","index":21,"n_rows":321,"n_cols":19,"rows_kept":321,"cut":false,"hidden":true,"merged":[]}
[null,null,4,null,null,"c:\\PeI_PED\\Educ\\Datos\\",1,"\"E\" & id_escuela"]
[1,"001: Escuela",284,0,1]
["id_escuela","ID Escuela",false,false,0,4,0,"1~","300~","Portada~","5~","29~","1~"]
["s00_p01","Nombre del Establecimiento",false,false,2,50,0,null,null,"Portada~","5~","11~","1~"]
["s00_p02","Región/Estado",false,false,0,3,0,"0~","999~","Portada~","9~","16~","1~"]
["s00_p03","Provincia",false,false,0,3,0,"0~","999~","Portada~","11~","16~","1~"]
["s00_p04","Municipio",false,false,0,3,0,"0~","999~","Portada~","13~","16~","1~"]
["s00_p05","Localidad",false,false,0,3,0,"0~","999~","Portada~","15~","16~","1~"]
["s00_p06","Zona/Barrio",false,false,2,50,0,null,null,"Portada~","17~","7~","1~"]
["s00_p07","Calle",false,false,2,50,0,null,null,"Portada~","19~","7~","1~"]
["s00_p08","Número",false,false,2,50,0,null,null,"Portada~","21~","7~","1~"]
["s00_p09","Otras Referencias",false,false,2,50,0,null,null,"Portada~","23~","8~","1~"]
["s00_p12","Tipo",false,false,1,1,0,"1~2~3~4~5~6~","PRIMARIA~SECUNDARIA~AMBAS, PRIMARIA Y SECUNDARIA~SECUNDARIA TÉCNICA~OPCIÓN 5~OPCIÓN 6~","Portada~","9~","26~","1~"]
["s00_p13","Nombre del director/a",false,false,2,50,0,null,null,"Portada~","19~","22~","1~"]
["s00_p14_1","Teléfono 1",false,false,0,9,0,"0~","999999999~","Portada~","23~","25~","1~"]
["s00_p14_2","Teléfono 2",false,false,0,9,0,"0~","999999999~","Portada~","25~","25~","1~"]
["s00_p14","Teléfono 3",false,false,0,9,0,"0~","999999999~","Portada~","28~","25~","1~"]
["s00_p15","Encuestador/a",false,false,0,3,0,"1~","40~","Portada~","34~","12~","1~"]
["s00_p16","Supervisor",false,false,0,2,0,"1~","20~","Portada~","36~","12~","1~"]
["s00_p17","Otro Personal 1",false,false,0,2,0,"1~","10~","Portada~","38~","12~","1~"]
["s00_p18","Otro Personal 2",false,false,0,2,0,"1~","10~","Portada~","40~","12~","1~"]
["s00_p19","Otro Personal 3",false,false,0,2,0,"1~","10~","Portada~","42~","12~","1~"]
["s00_p20_1_d","Fecha Visita (día)",false,false,0,2,0,"1~","31~","Portada~","38~","18~","1~"]
["s00_p20_1_m","Fecha visita 1 (mes)",false,false,0,2,0,"1~","12~","Portada~","38~","19~","1~"]
["s00_p20_1_a","Fecha visita 1 (año)",false,false,0,4,0,"2012~","2020~","Portada~","38~","20~","1~"]
["s00_p20_1_r","Resultado visita 1",false,false,1,1,0,"1~2~3~4~5~6~","COMPLETA~PARCIAL~RECHAZO~NO CONTACTÓ~NO LO ENCONTRÓ~OTRO~","Portada~","38~","22~","1~"]
["s00_p20_1_i_h","Hora inicio visita 1 (horas)",false,false,0,2,0,"0~","23~","Portada~","38~","23~","1~"]
["s00_p20_1_i_m","Hora inicio visita 1 (minutos)",false,false,0,2,0,"0~","59~","Portada~","38~","24~","1~"]
["s00_p20_1_f_h","Hora fin visita 1 (horas)",false,false,0,2,0,"0~","23~","Portada~","38~","25~","1~"]
["s00_p20_1_f_m","Hora fin visita 1 (minutos)",false,false,0,2,0,"0~","59~","Portada~","38~","26~","1~"]
["s00_p20_2_d","Fecha Visita 2 (día)",true,false,0,2,0,"1~","31~","Portada~","39~","18~","1~"]
["s00_p20_2_m","Fecha visita 2 (mes)",true,false,0,2,0,"1~","12~","Portada~","39~","19~","1~"]
["s00_p20_2_a","Fecha visita 2 (año)",true,false,0,4,0,"2012~","2020~","Portada~","39~","20~","1~"]
["s00_p20_2_r","Resultado visita 2",true,false,1,1,0,"1~2~3~4~5~6~","COMPLETA~PARCIAL~RECHAZO~NO CONTACTÓ~NO LO ENCONTRÓ~OTRO~","Portada~","39~","22~","1~"]
["s00_p20_2_i_h","Hora inicio visita 2 (horas)",true,false,0,2,0,"0~","23~","Portada~","39~","23~","1~"]
["s00_p20_2_i_m","Hora inicio visita 2 (minutos)",true,false,0,2,0,"0~","59~","Portada~","39~","24~","1~"]
["s00_p20_2_f_h","Hora fin visita 2 (horas)",true,false,0,2,0,"0~","23~","Portada~","39~","25~","1~"]
["s00_p20_2_f_m","Hora fin visita 2 (minutos)",true,false,0,2,0,"0~","59~","Portada~","39~","26~","1~"]
["s00_p20_3_d","Fecha Visita 3 (día)",true,false,0,2,0,"1~","31~","Portada~","40~","18~","1~"]
["s00_p20_3_m","Fecha visita 3 (mes)",true,false,0,2,0,"1~","12~","Portada~","40~","19~","1~"]
["s00_p20_3_a","Fecha visita 3 (año)",true,false,0,4,0,"2012~","2020~","Portada~","40~","20~","1~"]
["s00_p20_3_r","Resultado visita 3",true,false,1,1,0,"1~2~3~4~5~6~","COMPLETA~PARCIAL~RECHAZO~NO CONTACTÓ~NO LO ENCONTRÓ~OTRO~","Portada~","40~","22~","1~"]
["s00_p20_3_i_h","Hora inicio visita 3 (horas)",true,false,0,2,0,"0~","23~","Portada~","40~","23~","1~"]
["s00_p20_3_i_m","Hora inicio visita 3 (minutos)",true,false,0,2,0,"0~","59~","Portada~","40~","24~","1~"]
["s00_p20_3_f_h","Hora fin visita 3 (horas)",true,false,0,2,0,"0~","23~","Portada~","40~","25~","1~"]
["s00_p20_3_f_m","Hora fin visita 3 (minutos)",true,false,0,2,0,"0~","59~","Portada~","40~","26~","1~"]
["s00_p20_4_d","Fecha Visita 4 (día)",true,false,0,2,0,"1~","31~","Portada~","41~","18~","1~"]
["s00_p20_4_m","Fecha visita 4 (mes)",true,false,0,2,0,"1~","12~","Portada~","41~","19~","1~"]
["s00_p20_4_a","Fecha visita 4 (año)",true,false,0,4,0,"2012~","2020~","Portada~","41~","20~","1~"]
["s00_p20_4_r","Resultado visita 4",true,false,1,1,0,"1~2~3~4~5~6~","COMPLETA~PARCIAL~RECHAZO~NO CONTACTÓ~NO LO ENCONTRÓ~OTRO~","Portada~","41~","22~","1~"]
["s00_p20_4_i_h","Hora inicio visita 4 (horas)",true,false,0,2,0,"0~","23~","Portada~","41~","23~","1~"]
["s00_p20_4_i_m","Hora inicio visita 4 (minutos)",true,false,0,2,0,"0~","59~","Portada~","41~","24~","1~"]
["s00_p20_4_f_h","Hora fin visita 4 (horas)",true,false,0,2,0,"0~","23~","Portada~","41~","25~","1~"]
["s00_p20_4_f_m","Hora fin visita 4 (minutos)",true,false,0,2,0,"0~","59~","Portada~","41~","26~","1~"]
["s00_p22","Idioma de la entrevista",false,false,1,1,0,"1~2~3~4~5~6~","CASTELLANO~OPCIÓN 2~OPCIÓN 3~OPCIÓN 4~OPCIÓN 5~OPCIÓN 6~","Portada~","34~","34~","1~"]
["s01_p01","(1,01): Edad del director",false,false,0,2,0,"20~","85~","1.Director~","5~","13~","1~"]
["s01_p02","(1,02): Sexo del Director",false,false,1,1,0,"1~2~","HOMBRE~MIJER~","1.Director~","7~","14~","1~"]
["s01_p03","(1,03): Año de ingreso al establecimiento",false,false,0,4,0,"1930~","2012~","1.Director~","11~","13~","1~"]
["s01_p04","(1,04): Año que fue nombrado Director",false,false,0,4,0,"1930~","2012~","1.Director~","13~","13~","1~"]
["s01_p05","(1,05): ¿Quién lo nombró director?",false,false,1,1,0,"1~2~3~4~5~6~7~8~","MINISTERIO DE EDUCACIÓN (CENTRAL)~SEDE REGIONAL/ESTATAL DEL MINISTERIO DE EDUCACIÓN~LA COMUNIDAD DE PADRES~EL LIDER COMUNITARIO~EL DUEÑO/A DEL ESTABLECIMIENTO~OPCIÓN 6~OPCIÓN 7~OTRO~","1.Director~","15~","14~","1~"]
["s01_p06_n","(1,06): Nivel más alto que aprobó",false,false,1,1,0,"1~2~3~4~5~6~7~8~","PRIMARIA~SECUNDARIA~BACHILLERATO~TERCIARIO TÉCNICO~TERCIARIO COMERCIAL~UNIVERSITARIA~MAESTRIA/DOCTORADO~OTRO (ESPECIFIQUE)~","1.Director~","29~","14~","1~"]
["s01_p06_c","(1,06): Curso más alto que aprobó",false,false,0,1,0,"1~","7~","1.Director~","31~","14~","1~","001~001~","s01_p06_n~s01_p06_n~","~~","1~4~","3~7~","s01_p13~s01_p07~"]
["s01_p06_otro","(1,06): Otra",false,false,2,50,0,null,null,"1.Director~","35~","7~","1~","001~","s01_p06_n~","~","8~","8~","s01_p13~"]
["s01_p07","(1,07): Año de aprobación",false,false,0,4,0,"1950~","2012~","1.Director~","37~","14~","1~"]
["s01_p08","(1,08): ¿Hizo algún curso de administración?",false,false,1,1,0,"1~2~","SI~NO~","1.Director~","5~","32~","1~","001~","s01_p08~","~","2~","2~","s01_p10~"]
["s01_p09","(1,09): Área del curso de administración",false,false,1,1,0,"1~2~3~","ADMINISTRACIÓN DE ESTABLECIMIENTOS EDUCACIONALES~ADMINISTRACIÓN DE EMPRESAS~OTRO~","1.Director~","9~","32~","1~"]
["s01_p10","(1,10): ¿Tiene título de profesor de escuela?",false,false,1,1,0,"1~2~","SI~NO~","1.Director~","15~","32~","1~","001~","s01_p10~","~","2~","2~","s01_p13~"]
["s01_p11","(1,11): ¿El título es de algún área?",false,false,1,1,0,"1~2~","SI~NO~","1.Director~","18~","32~","1~","001~","s01_p11~","~","2~","2~","s01_p13~"]
["s01_p12","(1,12): Áreas en donde está titulado",false,false,1,2,0,"01~02~03~04~05~06~07~08~09~10~11~12~13~14~","MATEMÁTICAS~CASTELLANO~CIENCIAS~FÍSICA~FILOSOFÍA~MANUALIDADES~EDUCACIÓN FÍSICA~MÚSICA~INGLÉS~OPCIÓN 10~OPCIÓN 11~OPCIÓN 12~OPCIÓN 13~OTRO~","1.Director~","21~","32~","1~"]
["s01_p13","(1,13): Horas a la semana que trabaja",false,false,0,2,0,"0~","60~","1.Director~","31~","32~","1~"]
["s01_p14","(1,14): ¿Dicta clases en la escuela?",false,false,1,1,0,"1~2~","SI~NO~","1.Director~","33~","32~","1~","001~","s01_p14~","~","2~","2~","s01_p16~"]
["s01_p15","(1,15): Horas a la semana que dicta clases",false,false,0,2,0,"0~","60~","1.Director~","36~","32~","1~"]
["s01_p16","(1,16): ¿Está estudiando otro título?",false,false,1,1,0,"1~2~","SI~NO~","1.Director~","44~","14~","1~","001~","s01_p16~","~","2~","2~","s01_p19_1~"]
["s01_p17","(1,17): ¿Qué título estudia?",false,false,1,1,0,"1~2~3~4~","OPCIÓN 1~OPCIÓN 2~OPCIÓN 3~OTRO~","1.Director~","48~","14~","1~"]
["s01_p18","(1,18): ¿Asistió a algún curso de perfeccionamiento?",false,false,1,1,0,"1~2~","SI~NO~","1.Director~","54~","14~","1~","001~","s01_p18~","~","2~","2~","s01_p21_a~"]
["s01_p19_1","(1,19): ¿Asistió a (curso perfeccionamiento 1)?",false,false,1,1,0,"1~2~","SI~NO~","1.Director~","68~","9~","1~","001~","s01_p19_1~","~","2~","2~","s01_p19_2~"]
["s01_p20_1","(1,20): ¿Quién financió (curso perfeccionamiento 1)?",false,false,1,1,0,"1~2~3~4~5~","YO MISMO/A~LA ESCUELA~OPCIÓN 3~OPCIÓN 4~OPCIÓN 5~","1.Director~","68~","13~","1~"]
["s01_p19_2","(1,19): ¿Asistió a (curso perfeccionamiento 2)?",false,false,1,1,0,"1~2~","SI~NO~","1.Director~","69~","9~","1~","001~","s01_p19_2~","~","2~","2~","s01_p19_3~"]
["s01_p20_2","(1,20): ¿Quién financió (curso perfeccionamiento 2)?",false,false,1,1,0,"1~2~3~4~5~","YO MISMO/A~LA ESCUELA~OPCIÓN 3~OPCIÓN 4~OPCIÓN 5~","1.Director~","69~","13~","1~"]
["s01_p19_3","(1,19): ¿Asistió a (curso perfeccionamiento 3)?",false,false,1,1,0,"1~2~","SI~NO~","1.Director~","70~","9~","1~","001~","s01_p19_3~","~","2~","2~","s01_p19_4~"]
["s01_p20_3","(1,20): ¿Quién financió (curso perfeccionamiento 3)?",false,false,1,1,0,"1~2~3~4~5~","YO MISMO/A~LA ESCUELA~OPCIÓN 3~OPCIÓN 4~OPCIÓN 5~","1.Director~","70~","13~","1~"]
["s01_p19_4","(1,19): ¿Asistió a (curso perfeccionamiento 4)?",false,false,1,1,0,"1~2~","SI~NO~","1.Director~","71~","9~","1~","001~","s01_p19_4~","~","2~","2~","s01_p19_5~"]
["s01_p20_4","(1,20): ¿Quién financió (curso perfeccionamiento 4)?",false,false,1,1,0,"1~2~3~4~5~","YO MISMO/A~LA ESCUELA~OPCIÓN 3~OPCIÓN 4~OPCIÓN 5~","1.Director~","71~","13~","1~"]
["s01_p19_5","(1,19): ¿Asistió a (curso perfeccionamiento 5)?",false,false,1,1,0,"1~2~","SI~NO~","1.Director~","72~","9~","1~","001~","s01_p19_5~","~","2~","2~","s01_p19_6~"]
["s01_p20_5","(1,20): ¿Quién financió (curso perfeccionamiento 5)?",false,false,1,1,0,"1~2~3~4~5~","YO MISMO/A~LA ESCUELA~OPCIÓN 3~OPCIÓN 4~OPCIÓN 5~","1.Director~","72~","13~","1~"]
["s01_p19_6","(1,19): ¿Asistió a (curso perfeccionamiento 6)?",false,false,1,1,0,"1~2~","SI~NO~","1.Director~","73~","9~","1~","001~","s01_p19_6~","~","2~","2~","s01_p19_7~"]
["s01_p20_6","(1,20): ¿Quién financió (curso perfeccionamiento 6)?",false,false,1,1,0,"1~2~3~4~5~","YO MISMO/A~LA ESCUELA~OPCIÓN 3~OPCIÓN 4~OPCIÓN 5~","1.Director~","73~","13~","1~"]
["s01_p19_7","(1,19): ¿Asistió a (curso perfeccionamiento 7)?",false,false,1,1,0,"1~2~","SI~NO~","1.Director~","74~","9~","1~","001~","s01_p19_7~","~","2~","2~","s01_p21_a~"]
["s01_p20_7","(1,20): ¿Quién financió (curso perfeccionamiento 7)?",false,false,1,1,0,"1~2~3~4~5~","YO MISMO/A~LA ESCUELA~OPCIÓN 3~OPCIÓN 4~OPCIÓN 5~","1.Director~","74~","13~","1~"]
["s01_p21_a","(1,21): Salario como Director en efectivo",false,false,0,5,0,"0~","99999~","1.Director~","47~","23~","1~"]
["s01_p21_b","(1,21): Salario como Director en comida",false,false,0,5,0,"0~","99999~","1.Director~","48~","23~","1~"]
["s01_p21_c","(1,21): Salario como Director en vivienda",false,false,0,5,0,"0~","99999~","1.Director~","49~","23~","1~"]
["s01_p21_d","(1,21): Salario como Director en transporte",false,false,0,5,0,"0~","99999~","1.Director~","47~","31~","1~"]
["s01_p21_e","(1,21): Salario como Director en otros",false,false,0,5,0,"0~","99999~","1.Director~","48~","31~","1~"]
["s01_p21_f","(1,21): Salario como Director en total",false,false,0,6,0,"0~","500000~","1.Director~","49~","31~","1~"]
["s01_p22","(1,22): ¿Tiene otro trabajo?",false,false,1,1,0,"1~2~","SI~NO~","1.Director~","54~","32~","1~","001~","s01_p22~","~","2~","2~","s02_p01~"]
["s01_p23","(1,23): Categoría que describe el otro trabajo",false,false,1,1,0,"1~2~3~4~5~","AGRICULTURA~POR CUENTA PROPIA~OPCIÓN 3~OPCIÓN 4~OTRO~","1.Director~","58~","32~","1~"]
["s01_p24","(1,24): Salario del último año por otro trabajo",false,false,0,5,0,"0~","99999~","1.Director~","66~","30~","1~"]
["s01_p25","(1,25): ¿Usted nació en ...?",false,false,1,1,0,"1~2~3~4~5~","¿la misma {Localidad}?~¿el mismo {Municilio}?~¿la misma {Provincia}?~¿la misma {Región/Estado}?~¿otro país?~","1.Director~","69~","32~","1~"]
["s02_p01","(2,01): Tipo de establecimieto",false,false,1,1,0,"1~2~3~","Es público?~Es privado religioso?~Es privado laico?~","2.Escuela~","4~","15~","1~"]
["s02_p02","(2,02): Religión que se enseña",false,false,1,1,0,"1~2~3~4~5~6~7~","NINGUNA~CATÓLICA~JUDÍA~PROTESTANTE~CRISTIANA~OPCIÓN 6~OPCIÓN 7~","2.Escuela~","10~","15~","1~"]
["s02_p03","(2,03): Nivel de gobierno de la administración",false,false,1,1,0,"1~2~3~4~5~6~7~8~","NIVEL CENTRAL~NIVEL REGIONAL/ESTATAL~NIVEL PROVINCIAL~NIVEL MUNICIPAL~IGLESIA~ONG~COMUNIDAD~OPCIÓN 8~","2.Escuela~","19~","15~","1~"]
["s02_p04","(2,04): Año de funcionamiento",false,false,0,4,0,"1950~","2012~","2.Escuela~","32~","15~","1~"]
["s02_p05","(2,05): ¿Tienen acreditación del ministerio?",false,false,1,1,0,"1~2~","SI~NO~","2.Escuela~","36~","15~","1~"]
["s02_p06","(2,06): ¿Usa el establecimiento para otros fines?",false,false,1,1,0,"1~2~","SI~NO~","2.Escuela~","4~","33~","1~"]
["s02_p07","(2,06): ¿Hay salas para alumnos especiales?",false,false,1,1,0,"1~2~","SI~NO~","2.Escuela~","8~","33~","1~"]
["s02_p08","(2,08): ¿Cuántas salas especiales hay?",false,false,0,1,0,"1~","9~","2.Escuela~","12~","33~","1~"]
["s02_p09","(2,09): ¿Cuentan con educación pre escolar?",false,false,1,1,0,"1~2~","SI~NO~","2.Escuela~","14~","33~","1~"]
["s02_p10_a_d_h","(2,10): Horario de apertura (mañana, horas)",false,false,0,2,0,"6~","23~","2.Escuela~","19~","26~","1~"]
["s02_p10_a_d_m","(2,10): Horario de apertura (mañana, minutos)",false,false,0,2,0,"0~","59~","2.Escuela~","19~","27~","1~"]
["s02_p10_a_h_h","(2,10): Horario de cierre (mañana, horas)",false,false,0,2,0,"6~","23~","2.Escuela~","19~","32~","1~"]
["s02_p10_a_h_m","(2,10): Horario de cierre (mañana, minutos)",false,false,0,2,0,"0~","59~","2.Escuela~","19~","33~","1~"]
["s02_p10_b_d_h","(2,10): Horario de apertura (tarde, horas)",false,false,0,2,0,"6~","23~","2.Escuela~","21~","26~","1~"]
["s02_p10_b_d_m","(2,10): Horario de apertura (tarde, minutos)",false,false,0,2,0,"0~","59~","2.Escuela~","21~","27~","1~"]
["s02_p10_b_h_h","(2,10): Horario de cierre (tarde, horas)",false,false,0,2,0,"6~","23~","2.Escuela~","21~","32~","1~"]
["s02_p10_b_h_m","(2,10): Horario de cierre (tarde, minutos)",false,false,0,2,0,"0~","59~","2.Escuela~","21~","33~","1~"]
["s02_p10_c_d_h","(2,10): Horario de apertura (noche, horas)",false,false,0,2,0,"6~","23~","2.Escuela~","23~","26~","1~"]
["s02_p10_c_d_m","(2,10): Horario de apertura (noche, minutos)",false,false,0,2,0,"0~","59~","2.Escuela~","23~","27~","1~"]
["s02_p10_c_h_h","(2,10): Horario de cierre (noche, horas)",false,false,0,2,0,"6~","23~","2.Escuela~","23~","32~","1~"]
["s02_p10_c_h_m","(2,10): Horario de cierre (noche, minutos)",false,false,0,2,0,"0~","59~","2.Escuela~","23~","33~","1~"]
["s02_p11","(2,11): ¿Aceptan a todos los postulantes?",false,false,1,1,0,"1~2~","SI~NO~","2.Escuela~","27~","33~","1~"]
["s02_p12_1","(2,12): Criterio más importante para admisión 1",false,false,1,1,0,"1~2~3~4~5~6~7~8~9~","RENDIMIENTO ESCOLAR PREVIO~TEST DE ADMISIÓN~LUGAR DE RESIDENCIA~ORDEN DE POSTULACIÓN~HERMANOS/AS EN EL ESTABLECIMIENTO~OPCIÓN 6~OPCIÓN 7~OPCIÓN 8~OTRO~","2.Escuela~","33~","33~","1~"]
["s02_p12_2","(2,12): Criterio más importante para admisión 2",false,false,1,1,0,"1~2~3~4~5~6~7~8~9~","RENDIMIENTO ESCOLAR PREVIO~TEST DE ADMISIÓN~LUGAR DE RESIDENCIA~ORDEN DE POSTULACIÓN~HERMANOS/AS EN EL ESTABLECIMIENTO~OPCIÓN 6~OPCIÓN 7~OPCIÓN 8~OTRO~","2.Escuela~","35~","33~","1~"]
["s02_p12_3","(2,12): Criterio más importante para admisión 3",false,false,1,1,0,"1~2~3~4~5~6~7~8~9~","RENDIMIENTO ESCOLAR PREVIO~TEST DE ADMISIÓN~LUGAR DE RESIDENCIA~ORDEN DE POSTULACIÓN~HERMANOS/AS EN EL ESTABLECIMIENTO~OPCIÓN 6~OPCIÓN 7~OPCIÓN 8~OTRO~","2.Escuela~","37~","33~","1~"]
["s02_p13","(2,13): Idioma usado en clases",false,false,1,1,0,"1~2~3~4~5~6~","CASTELLANO~OPCIÓN 2~OPCIÓN 3~OPCIÓN 4~OPCIÓN 5~OPCIÓN 6~","2.Escuela~","45~","15~","1~"]
["s02_p14","(2,14): ¿Hay alumnos que no entienden idioma?",false,false,1,1,0,"1~2~","SI~NO~","2.Escuela~","53~","15~","1~","001~","s02_p14~","~","2~","2~","s02_p16~"]
["s02_p15","(2,14): Acción a alumno que no entiende idioma",false,false,1,1,0,"1~2~3~4~5~6~","SE LES ENVÍA A CLASES ESPECIALES DEL IDIOMA USADO EN LAS CLASES, EN ESTE ESTABLECIMIENTO~SE LES ENVÍA A CLASES ESPECIALES DEL IDIOMA USADO EN LAS CLASES, EN OTRO ESTABLECIMIENTO~LOS AGRUPAN Y ASIGNAN PROFESORES QUE LOS INSTRUYEN EN EL LENGUAJE QUE ENTIENDEN~OPCIÓN 4~OPCIÓN 5~NO HACEN NADA~","2.Escuela~","58~","15~","1~"]
["s02_p16","(2,16): ¿Ausentismo de maestros es problema?",false,false,1,1,0,"1~2~","SI~NO~","2.Escuela~","72~","15~","1~"]
["s02_p17_1","(2,17): Causa de ausentismo de maestros 1",false,false,1,2,0,"01~02~03~04~05~06~07~08~09~10~","ENFERMEDAD~TIENEN OTROS TRABAJOS~CUIDADO DE FAMILIARES~EL TIEMPO ES MALO~EMBARAZO/PRE-POST NATAL~TRANSPORTE DIFICULTOSO~OPCIÓN 7~OPCIÓN 8~OPCIÓN 9~OTRO~","2.Escuela~","47~","33~","1~"]
["s2_p17_2","(2,17): Causa de ausentismo de maestros 2",false,false,1,2,0,"01~02~03~04~05~06~07~08~09~10~","ENFERMEDAD~TIENEN OTROS TRABAJOS~CUIDADO DE FAMILIARES~EL TIEMPO ES MALO~EMBARAZO/PRE-POST NATAL~TRANSPORTE DIFICULTOSO~OPCIÓN 7~OPCIÓN 8~OPCIÓN 9~OTRO~","2.Escuela~","49~","33~","1~"]
["s02_p17_3","(2,17): Causa de ausentismo de maestros 3",false,false,1,2,0,"01~02~03~04~05~06~07~08~09~10~","ENFERMEDAD~TIENEN OTROS TRABAJOS~CUIDADO DE FAMILIARES~EL TIEMPO ES MALO~EMBARAZO/PRE-POST NATAL~TRANSPORTE DIFICULTOSO~OPCIÓN 7~OPCIÓN 8~OPCIÓN 9~OTRO~","2.Escuela~","51~","33~","1~"]
["s02_p18_1","(2,18): ¿Qué hacen cuando maestro falta? 1",false,false,1,1,0,"1~2~3~4~5~6~7~8~9~","OTRO MAESTRO LO REEMPLAZA~OTRO PERSONAL LO REEMPLAZA~USTED (EL/LA DIRECTORA/A) LO REEMPLAZA~LOS ALUMNOS/AS PERMANECEN SOLOS EN SUS SALAS~PIDEN A LOS ALUMNOS/AS IR A JUGAR/HACER DEPORTE~ENVÍAN A LOS ALUMNOS A SUS CASAS~OPCIÓN 7~OPCIÓN 8~OTRO~","2.Escuela~","58~","33~","1~"]
["s02_p18_2","(2,18): ¿Qué hacen cuando maestro falta? 2",false,false,1,1,0,"1~2~3~4~5~6~7~8~9~","OTRO MAESTRO LO REEMPLAZA~OTRO PERSONAL LO REEMPLAZA~USTED (EL/LA DIRECTORA/A) LO REEMPLAZA~LOS ALUMNOS/AS PERMANECEN SOLOS EN SUS SALAS~PIDEN A LOS ALUMNOS/AS IR A JUGAR/HACER DEPORTE~ENVÍAN A LOS ALUMNOS A SUS CASAS~OPCIÓN 7~OPCIÓN 8~OTRO~","2.Escuela~","60~","33~","1~"]
["s02_p18_3","(2,18): ¿Qué hacen cuando maestro falta? 3",false,false,1,1,0,"1~2~3~4~5~6~7~8~9~","OTRO MAESTRO LO REEMPLAZA~OTRO PERSONAL LO REEMPLAZA~USTED (EL/LA DIRECTORA/A) LO REEMPLAZA~LOS ALUMNOS/AS PERMANECEN SOLOS EN SUS SALAS~PIDEN A LOS ALUMNOS/AS IR A JUGAR/HACER DEPORTE~ENVÍAN A LOS ALUMNOS A SUS CASAS~OPCIÓN 7~OPCIÓN 8~OTRO~","2.Escuela~","62~","33~","1~"]
["s02_p19","(2,19): Frecuencia de reuniones director-maestro",false,false,1,1,0,"1~2~3~4~5~6~","UNA VEZ EN EL DÍA~UNA VEZ EN EL SEMANA~UNA VEZ EN EL MES~UNA VEZ EN EL SEMESTRE~UNA VEZ EN EL AÑO~NO SE REUNEN~","2.Escuela~","72~","33~","1~"]
["s02_p20","(2,20): ¿Exigen asistencia para promoción de alumno?",false,false,1,1,0,"1~2~","SI~NO~","2.Escuela~","83~","15~","1~"]
["s02_p21","(2,21): ¿Ausentismo de alumnos es problema?",false,false,1,1,0,"1~2~","SI~NO~","2.Escuela~","87~","15~","1~"]
["s02_p22_1","(2,22): Causas de ausentismo en alumnos 1",false,false,1,2,0,"01~02~03~04~05~06~07~08~09~10~11~","ENFERMEDAD~TIENEN QUE AYUDAR EN SUS CASAS~TIENEN QUE TRABAJAR~CUIDADO DE FAMILIARES~EL TIEMPO ES MALO~TRANSPORTE DIFICULTOSO~NO QUIEREN IR A LA ESCUELA~OPCIÓN 8~OPCIÓN 9~OPCIÓN 10~OTRO~","2.Escuela~","92~","15~","1~"]
["s02_p22_2","(2,22): Causas de ausentismo en alumnos 2",false,false,1,2,0,"01~02~03~04~05~06~07~08~09~10~11~","ENFERMEDAD~TIENEN QUE AYUDAR EN SUS CASAS~TIENEN QUE TRABAJAR~CUIDADO DE FAMILIARES~EL TIEMPO ES MALO~TRANSPORTE DIFICULTOSO~NO QUIEREN IR A LA ESCUELA~OPCIÓN 8~OPCIÓN 9~OPCIÓN 10~OTRO~","2.Escuela~","94~","15~","1~"]
["s02_p22_3","(2,22): Causas de ausentismo en alumnos 3",false,false,1,2,0,"01~02~03~04~05~06~07~08~09~10~11~","ENFERMEDAD~TIENEN QUE AYUDAR EN SUS CASAS~TIENEN QUE TRABAJAR~CUIDADO DE FAMILIARES~EL TIEMPO ES MALO~TRANSPORTE DIFICULTOSO~NO QUIEREN IR A LA ESCUELA~OPCIÓN 8~OPCIÓN 9~OPCIÓN 10~OTRO~","2.Escuela~","96~","15~","1~"]
["s02_p23","(2,23): ¿Dan desayuno gratis a alumnos?",false,false,1,1,0,"1~2~","SI~NO~","2.Escuela~","83~","33~","1~"]
["s02_p24","(2,24): ¿Dan almuerzo gratis a alumnos?",false,false,1,1,0,"1~2~","SI~NO~","2.Escuela~","87~","33~","1~"]
["s02_p25","(2,25): ¿Existe una cantina para alumnos?",false,false,1,1,0,"1~2~","SI~NO~","2.Escuela~","91~","33~","1~"]
["s02_p26","(2,26): ¿Existe una cantina para maestros?",false,false,1,1,0,"1~2~","SI~NO~","2.Escuela~","95~","33~","1~"]
["s06_p01","(6,01): Nombre del maestro",false,false,2,50,0,null,null,"6.Maestro_1~","3~","7~","1~"]
["s06_p02","(6,02): Código de identificación del maestro",false,false,0,2,0,"0~","99~","6.Maestro_1~","3~","31~","1~"]
["s06_p03","(6,03): Estado civil del maestro",false,false,1,1,0,"1~2~3~4~5~","SOLTERO/A~CASADO/A~CONVIVIENTE O CONCUBINO(A)~DIVORCIADO/A O SEPARADO/A~VIUDO/A~","6.Maestro_1~","7~","14~","1~"]
["s06_p04","(6,04): ¿Dónde nació el maestro?",false,false,1,1,0,"1~2~3~4~5~","¿la misma {Localidad}?~¿el mismo {Municilio}?~¿la misma {Provincia}?~¿la misma {Región/Estado}?~¿otro país?~","6.Maestro_1~","13~","14~","1~"]
["s06_p05_1","(6,05): ¿Da clases a primer grado?",false,false,1,1,0,"1~2~","SI~NO~","6.Maestro_1~","25~","6~","1~"]
["s06_p05_2","(6,05): ¿Da clases a segundo grado?",false,false,1,1,0,"1~2~","SI~NO~","6.Maestro_1~","26~","6~","1~"]
["s06_p05_3","(6,05): ¿Da clases a tercer grado?",false,false,1,1,0,"1~2~","SI~NO~","6.Maestro_1~","27~","6~","1~"]
["s06_p05_4","(6,05): ¿Da clases a cuarto grado?",false,false,1,1,0,"1~2~","SI~NO~","6.Maestro_1~","28~","6~","1~"]
["s06_p05_5","(6,05): ¿Da clases a (otro grado 5)?",false,false,1,1,0,"1~2~","SI~NO~","6.Maestro_1~","25~","11~","1~"]
["s06_p05_6","(6,05): ¿Da clases a (otro grado 6)?",false,false,1,1,0,"1~2~","SI~NO~","6.Maestro_1~","26~","11~","1~"]
["s06_p05_7","(6,05): ¿Da clases a (otro grado 7)?",false,false,1,1,0,"1~2~","SI~NO~","6.Maestro_1~","27~","11~","1~"]
["s06_p05_8","(6,05): ¿Da clases a (otro grado 8)?",false,false,1,1,0,"1~2~","SI~NO~","6.Maestro_1~","28~","11~","1~"]
["s06_p05_9","(6,05): ¿Da clases a (otro grado 9)?",false,false,1,1,0,"1~2~","SI~NO~","6.Maestro_1~","25~","16~","1~"]
["s06_p05_10","(6,05): ¿Da clases a (otro grado 10)?",false,false,1,1,0,"1~2~","SI~NO~","6.Maestro_1~","26~","16~","1~"]
["s06_p05_11","(6,05): ¿Da clases a (otro grado 11)?",false,false,1,1,0,"1~2~","SI~NO~","6.Maestro_1~","27~","16~","1~"]
["s06_p05_12","(6,05): ¿Da clases a (otro grado 12)?",false,false,1,1,0,"1~2~","SI~NO~","6.Maestro_1~","28~","16~","1~"]
["s06_p06_1","(6,06): ¿Enseña matemáticas?",false,false,1,1,0,"1~2~","SI~NO~","6.Maestro_1~","10~","26~","1~"]
["s06_p06_2","(6,06): ¿Enseña castellano?",false,false,1,1,0,"1~2~","SI~NO~","6.Maestro_1~","11~","26~","1~"]
["s06_p06_3","(6,06): ¿Enseña manualidades?",false,false,1,1,0,"1~2~","SI~NO~","6.Maestro_1~","12~","26~","1~"]
["s06_p06_4","(6,06): ¿Enseña educación física?",false,false,1,1,0,"1~2~","SI~NO~","6.Maestro_1~","13~","26~","1~"]
["s06_p06_5","(6,06): ¿Enseña música?",false,false,1,1,0,"1~2~","SI~NO~","6.Maestro_1~","14~","26~","1~"]
["s06_p06_6","(6,06): ¿Enseña (otra asignatura 1)?",false,false,1,1,0,"1~2~","SI~NO~","6.Maestro_1~","15~","26~","1~"]
["s06_p06_7","(6,06): ¿Enseña (otra asignatura 2)?",false,false,1,1,0,"1~2~","SI~NO~","6.Maestro_1~","16~","26~","1~"]
["s06_p06_8","(6,06): ¿Enseña (otra asignatura 3)?",false,false,1,1,0,"1~2~","SI~NO~","6.Maestro_1~","17~","26~","1~"]
["s06_p06_9","(6,06): ¿Enseña ciencias?",false,false,1,1,0,"1~2~","SI~NO~","6.Maestro_1~","10~","33~","1~"]
["s06_p06_10","(6,06): ¿Enseña física?",false,false,1,1,0,"1~2~","SI~NO~","6.Maestro_1~","11~","33~","1~"]
["s06_p06_11","(6,06): ¿Enseña filosofía?",false,false,1,1,0,"1~2~","SI~NO~","6.Maestro_1~","12~","33~","1~"]
["s06_p06_12","(6,06): ¿Enseña inglés?",false,false,1,1,0,"1~2~","SI~NO~","6.Maestro_1~","13~","33~","1~"]
["s06_p06_13","(6,06): ¿Enseña otro idioma extranjero?",false,false,1,1,0,"1~2~","SI~NO~","6.Maestro_1~","14~","33~","1~"]
["s06_p06_14","(6,06): ¿Enseña (otra asignatura 4)?",false,false,1,1,0,"1~2~","SI~NO~","6.Maestro_1~","15~","33~","1~"]
["s06_p06_15","(6,06): ¿Enseña (otra asignatura 5)?",false,false,1,1,0,"1~2~","SI~NO~","6.Maestro_1~","16~","33~","1~"]
["s06_p06_16","(6,06): ¿Enseña (otra asignatura 6)?",false,false,1,1,0,"1~2~","SI~NO~","6.Maestro_1~","17~","33~","1~"]
["s06_p07","(6,07): Idioma en el que da sus clases",false,false,1,1,0,"1~2~3~4~5~6~","CASTELLANO~OPCIÓN 2~OPCIÓN 3~OPCIÓN 4~OPCIÓN 5~OPCIÓN 6~","6.Maestro_1~","22~","32~","1~"]
["s06_p08_a","(6,08): Horas semanales que enseña en la sala",false,false,0,2,0,"0~","60~","6.Maestro_1~","31~","32~","1~"]
["s06_p08_b","(6,08): Horas semanales que prepara clases",false,false,0,2,0,"0~","60~","6.Maestro_1~","32~","32~","1~"]
["s06_p08_c","(6,08): Horas semanales que corrige tests",false,false,0,2,0,"0~","60~","6.Maestro_1~","33~","32~","1~"]
["s06_p08_d","(6,08): Horas semanales que realiza tareas adm.",false,false,0,2,0,"0~","60~","6.Maestro_1~","34~","32~","1~"]
["s06_p08_e","(6,08): Horas semanales que realiza otras tareas",false,false,0,2,0,"0~","60~","6.Maestro_1~","35~","32~","1~"]
["s06_p09_n","(6,09): Más alto nivel aprobado",false,false,1,1,0,"1~2~3~4~5~6~7~8~","PRIMARIA~SECUNDARIA~BACHILLERATO~TERCIARIO TÉCNICO~TERCIARIO COMERCIAL~UNIVERSITARIA~MAESTRIA/DOCTORADO~OTRO (ESPECIFIQUE)~","6.Maestro_1~","44~","14~","1~"]
["s06_p09_c","(6,09): Más alto curso aprobado",false,false,0,1,0,"1~","7~","6.Maestro_1~","46~","14~","1~","001~","s06_p09_n~","~","1~","7~","s06_p10~"]
["s06_p09_otra","(6,09): Otra",false,false,2,50,0,null,null,"6.Maestro_1~","50~","7~","1~"]
["s06_p10","(6,10): Año de aprobación último nivel",false,false,0,4,0,"1960~","2012~","6.Maestro_1~","53~","14~","1~"]
["s06_p11","(6,11): ¿Quién lo nombró maestro?",false,false,1,1,0,"1~2~3~4~5~6~7~8~9~","EL/LA maestroA/A~MINISTERIO DE EDUCACIÓN (CENTRAL)~SEDE REGIONAL/ESTATAL DEL MINISTERIO DE EDUCACIÓN~LA COMUNIDAD DE PADRES~EL LIDER COMUNITARIO~EL DUEÑO/A DEL ESTABLECIMIENTO~OPCIÓN 7~OPCIÓN 8~OTRO~","6.Maestro_1~","55~","14~","1~"]
["s06_p12","(6,12): ¿Tiene título de maestro?",false,false,1,1,0,"1~2~","SI~NO~","6.Maestro_1~","67~","14~","1~","001~","s06_p12~","~","2~","2~","s06_p15~"]
["s06_p13","(6,13): ¿Su título es de un área específica?",false,false,1,1,0,"1~2~","SI~NO~","6.Maestro_1~","71~","14~","1~","001~","s06_p13~","~","2~","2~","s06_p20~"]
["s06_p14_1","(6,14): Área en donde está titulado 1",false,false,1,2,0,"01~02~03~04~05~06~07~08~09~10~11~12~13~14~","MATEMÁTICAS~CASTELLANO~CIENCIAS~FÍSICA~FILOSOFÍA~MANUALIDADES~EDUCACIÓN FÍSICA~MÚSICA~INGLÉS~OPCIÓN 10~OPCIÓN 11~OPCIÓN 12~OPCIÓN 13~OTRO~","6.Maestro_1~","41~","32~","1~"]
["s06_p14_2","(6,14): Área en donde está titulado 2",false,false,1,2,0,"01~02~03~04~05~06~07~08~09~10~11~12~13~14~","MATEMÁTICAS~CASTELLANO~CIENCIAS~FÍSICA~FILOSOFÍA~MANUALIDADES~EDUCACIÓN FÍSICA~MÚSICA~INGLÉS~OPCIÓN 10~OPCIÓN 11~OPCIÓN 12~OPCIÓN 13~OTRO~","6.Maestro_1~","43~","32~","1~"]
["s06_p15","(6,15): ¿Asistió a curso de perfeccionamiento?",false,false,1,1,0,"1~2~","SI~NO~","6.Maestro_1~","50~","32~","1~"]
["s06_p16_1","(6,16): ¿Asistió a pedagogía el último año?",false,false,1,1,0,"1~2~","SI~NO~","6.Maestro_1~","64~","27~","1~","001~","s06_p16_1~","~","2~","2~","s06_p16_2~"]
["s06_p17_1","(6,17): ¿Quién financió pedagogía?",false,false,1,1,0,"1~2~","YO MISMO/A~LA ESCUELA~","6.Maestro_1~","64~","31~","1~"]
["s06_p16_2","(6,16): ¿Asistió a materias específicas el último año?",false,false,1,1,0,"1~2~","SI~NO~","6.Maestro_1~","65~","27~","1~","001~","s06_p16_2~","~","2~","2~","s06_p16_3~"]
["s06_p17_2","(6,17): ¿Quién financió materias específicas?",false,false,1,1,0,"1~2~","YO MISMO/A~LA ESCUELA~","6.Maestro_1~","65~","31~","1~"]
["s06_p16_3","(6,16): ¿Asistió a idiomas el último año?",false,false,1,1,0,"1~2~","SI~NO~","6.Maestro_1~","66~","27~","1~","001~","s06_p16_3~","~","2~","2~","s06_p16_4~"]
["s06_p17_3","(6,17): ¿Quién financió idiomas?",false,false,1,1,0,"1~2~","YO MISMO/A~LA ESCUELA~","6.Maestro_1~","66~","31~","1~"]
["s06_p16_4","(6,16): ¿Asistió a (otro curso 1) el último año?",false,false,1,1,0,"1~2~","SI~NO~","6.Maestro_1~","67~","27~","1~","001~","s06_p16_4~","~","2~","2~","s06_p16_5~"]
["s06_p17_4","(6,17): ¿Quién financió (otro curso 1)?",false,false,1,1,0,"1~2~","YO MISMO/A~LA ESCUELA~","6.Maestro_1~","67~","31~","1~"]
["s06_p16_5","(6,16): ¿Asistió a (otro curso 2) el último año?",false,false,1,1,0,"1~2~","SI~NO~","6.Maestro_1~","68~","27~","1~","001~","s06_p16_5~","~","2~","2~","s06_p16_6~"]
["s06_p17_5","(6,17): ¿Quién financió (otro curso 2)?",false,false,1,1,0,"1~2~","YO MISMO/A~LA ESCUELA~","6.Maestro_1~","68~","31~","1~"]
["s06_p16_6","(6,16): ¿Asistió a (otro curso 3) el último año?",false,false,1,1,0,"1~2~","SI~NO~","6.Maestro_1~","69~","27~","1~","001~","s06_p16_6~","~","2~","2~","s06_p16_7~"]
["s06_p17_6","(6,17): ¿Quién financió (otro curso 3)?",false,false,1,1,0,"1~2~","YO MISMO/A~LA ESCUELA~","6.Maestro_1~","69~","31~","1~"]
["s06_p16_7","(6,16): ¿Asistió a (otro curso 4) el último año?",false,false,1,1,0,"1~2~","SI~NO~","6.Maestro_1~","70~","27~","1~","001~","s06_p16_7~","~","2~","2~","s06_p16_8~"]
["s06_p17_7","(6,17): ¿Quién financió (otro curso 4)?",false,false,1,1,0,"1~2~","YO MISMO/A~LA ESCUELA~","6.Maestro_1~","70~","31~","1~"]
["s06_p16_8","(6,16): ¿Asistió a (otro curso 5) el último año?",false,false,1,1,0,"1~2~","SI~NO~","6.Maestro_1~","71~","27~","1~","001~","s06_p16_8~","~","2~","2~","s06_p18_a~"]
["s06_p17_8","(6,17): ¿Quién financió (otro curso 5)?",false,false,1,1,0,"1~2~","YO MISMO/A~LA ESCUELA~","6.Maestro_1~","71~","31~","1~"]
["s06_p18_a","(6,18): Salario de maestro en efectivo",false,false,0,5,0,"0~","99999~","6.Maestro_1~","80~","6~","1~"]
["s06_p18_b","(6,18): Salario de maestro en comida",false,false,0,5,0,"0~","99999~","6.Maestro_1~","81~","6~","1~"]
["s06_p18_c","(6,18): Salario de maestro en vivienda",false,false,0,5,0,"0~","99999~","6.Maestro_1~","82~","6~","1~"]
["s06_p18_d","(6,18): Salario de maestro en transporte",false,false,0,5,0,"0~","99999~","6.Maestro_1~","80~","14~","1~"]
["s06_p18_e","(6,18): Salario de maestro en otros",false,false,0,5,0,"0~","99999~","6.Maestro_1~","81~","14~","1~"]
["s06_p18_f","(6,18): Salario de maestro en total",false,false,0,5,0,"0~","99999~","6.Maestro_1~","82~","14~","1~"]
["s06_p19","(6,19): ¿Da usted clases en otro lado?",false,false,1,1,0,"1~2~","SI~NO~","6.Maestro_1~","85~","14~","1~","001~","s06_p19~","~","2~","2~","s06_p21~"]
["s06_p20","(6,20): Horas que trabaja en otro lado (semana)",false,false,0,2,0,"0~","60~","6.Maestro_1~","90~","14~","1~"]
["s06_p21","(6,21): ¿Tiene algún otro trabajo?",false,false,1,1,0,"1~2~","SI~NO~","6.Maestro_1~","94~","14~","1~","001~","s06_p21~","~","2~","2~","s06_p24_a~"]
["s06_p22","(6,22): Categoría que describe otro trabajo",false,false,1,1,0,"1~2~3~4~5~","Agricultura~Por cuenta propia~OPCIÓN 3~OPCIÓN 4~OTRO~","6.Maestro_1~","99~","14~","1~"]
["s06_p23","(6,23): Mono recibido en otro trabajo último año",false,false,0,5,0,"0~","99999~","6.Maestro_1~","107~","12~","1~"]
["s06_p24_a","(6,24): ¿Recibe sugerencias del director?",false,false,1,1,0,"1~2~","SI~NO~","6.Maestro_1~","81~","27~","1~"]
["s06_p24_b","(6,24): ¿Recibe sugerencias de otros maestros?",false,false,1,1,0,"1~2~","SI~NO~","6.Maestro_1~","82~","27~","1~"]
["s06_p24_c","(6,24): ¿Recibe sugerencias de los padres?",false,false,1,1,0,"1~2~","SI~NO~","6.Maestro_1~","83~","27~","1~"]
["s06_p24_d","(6,24): ¿Recibe sugerencias de (otro)?",false,false,1,1,0,"1~2~","SI~NO~","6.Maestro_1~","84~","27~","1~"]
["s06_p25","(6,25): ¿Es evaluado por el director?",false,false,1,1,0,"1~2~","SI~NO~","6.Maestro_1~","87~","32~","1~"]
["s07_p01","(7,01): Nombre del alumno",false,false,2,50,0,null,null,"7.Alumno_1~","3~","7~","1~"]
["s07_p02","(7,02): Código del alumno",false,false,0,2,0,"0~","99~","7.Alumno_1~","3~","31~","1~"]
["s07_p03","(7,03): Número de hermanos y hermanas",false,false,0,1,0,"0~","9~","7.Alumno_1~","6~","10~","1~"]
["s07_p04","(7,04): Edad con que entró a primer grado",false,false,0,1,0,"1~","9~","7.Alumno_1~","8~","10~","1~"]
["s07_p05","(7,05): ¿Has repetido algún curso?",false,false,1,1,0,"1~2~","SI~NO~","7.Alumno_1~","10~","10~","1~","001~","s07_p05~","~","2~","2~","s07_p07~"]
["s07_p06","(7,06): Grados repetidos en total",false,false,0,1,0,"0~","9~","7.Alumno_1~","13~","10~","1~"]
["s07_p07","(7,07): ¿Dónde naciste?",false,false,1,1,0,"1~2~3~4~5~","¿la misma {Localidad}?~¿el mismo {Municilio}?~¿la misma {Provincia}?~¿la misma {Región/Estado}?~¿otro país?~","7.Alumno_1~","15~","10~","1~"]
["s07_p08","(7,08): ¿Fue tu padre a la escuela?",false,false,1,1,0,"1~2~","SI~NO~","7.Alumno_1~","24~","10~","1~","001~","s07_p08~","~","2~","2~","s07_p10~"]
["s07_p09_n","(7,09): Más alto nivel aprobado por el padre",false,false,1,1,0,"1~2~3~4~5~6~7~8~","PRIMARIA~SECUNDARIA~BACHILLERATO~TERCIARIO TÉCNICO~TERCIARIO COMERCIAL~UNIVERSITARIA~MAESTRIA/DOCTORADO~OTRO (ESPECIFIQUE)~","7.Alumno_1~","28~","4~","1~"]
["s07_p09_c","(7,09): Más alto curso aprobado por el padre",false,false,0,1,0,"1~","7~","7.Alumno_1~","28~","10~","1~","001~001~","s07_p09_n~s07_p09_n~","~~","1~2~","1~7~","s07_p10~s07_p12_1~"]
["s07_p09_otra","(7,09): Otra",false,false,2,50,0,null,null,"7.Alumno_1~","36~","7~","1~"]
["s07_p10","(7,10): ¿Tu padre sabe leer?",false,false,1,1,0,"1~2~","SI~NO~","7.Alumno_1~","6~","22~","1~"]
["s07_p11","(7,11): ¿Tu padre sabe escribir?",false,false,1,1,0,"1~2~","SI~NO~","7.Alumno_1~","9~","22~","1~"]
["s07_p12_1","(7,12): ¿Tu padre trabaja en el campo?",false,false,1,1,0,"1~2~","SI~NO~","7.Alumno_1~","14~","21~","1~"]
["s07_p12_2","(7,12): ¿Tu padre tiene su propio negocio?",false,false,1,1,0,"1~2~","SI~NO~","7.Alumno_1~","15~","21~","1~"]
["s07_p12_3","(7,12): ¿Tu padre trabaja en (otra actividad 1)?",false,false,1,1,0,"1~2~","SI~NO~","7.Alumno_1~","16~","21~","1~"]
["s07_p12_4","(7,12): ¿Tu padre trabaja en (otra actividad 2)?",false,false,1,1,0,"1~2~","SI~NO~","7.Alumno_1~","17~","21~","1~"]
["s07_p12_5","(7,12): ¿Tu padre trabaja en (otra actividad 3)?",false,false,1,1,0,"1~2~","SI~NO~","7.Alumno_1~","18~","21~","1~"]
["s07_p12_6","(7,12): ¿Tu padre trabaja en (otra actividad 4)?",false,false,1,1,0,"1~2~","SI~NO~","7.Alumno_1~","19~","21~","1~"]
["s07_p12_7","(7,12): ¿Tu padre trabaja en (otra actividad 5)?",false,false,1,1,0,"1~2~","SI~NO~","7.Alumno_1~","20~","21~","1~"]
["s07_p12_8","(7,12): ¿Tu padre no trabaja?",false,false,1,1,0,"1~2~","SI~NO~","7.Alumno_1~","21~","21~","1~"]
["s07_p13","(7,08): ¿Fue tu madre a la escuela?",false,false,1,1,0,"1~2~","SI~NO~","7.Alumno_1~","24~","22~","1~","001~","s07_p13~","~","2~","2~","s07_p15~"]
["s07_p14_n","(7,09): Más alto nivel aprobado por la madre",false,false,1,1,0,"1~2~3~4~5~6~7~8~","PRIMARIA~SECUNDARIA~BACHILLERATO~TERCIARIO TÉCNICO~TERCIARIO COMERCIAL~UNIVERSITARIA~MAESTRIA/DOCTORADO~OTRO (ESPECIFIQUE)~","7.Alumno_1~","28~","16~","1~"]
["s07_p14_c","(7,09): Más alto curso aprobado por la madre",false,false,0,1,0,"1~","7~","7.Alumno_1~","28~","22~","1~","001~001~","s07_p14_n~s07_p14_n~","~~","1~2~","1~7~","s07_p15~s07_p17_1~"]
["s07_p14_otra","(7,14): Otra",false,false,2,50,0,null,null,"7.Alumno_1~","36~","19~","1~"]
["s07_p15","(7,15): ¿Tu madre sabe leer?",false,false,1,1,0,"1~2~","SI~NO~","7.Alumno_1~","6~","34~","1~"]
["s07_p16","(7,16): ¿Tu madre sabe escribir?",false,false,1,1,0,"1~2~","SI~NO~","7.Alumno_1~","9~","34~","1~"]
["s07_p17_1","(7,17): ¿Tu madre trabaja en el campo?",false,false,0,1,0,"0~","9~","7.Alumno_1~","14~","33~","1~"]
["s07_p17_2","(7,17): ¿Tu madre tiene su propio negocio?",false,false,1,1,0,"1~2~","SI~NO~","7.Alumno_1~","15~","33~","1~"]
["s07_p17_3","(7,17): ¿Tu madre trabaja en (otra actividad 1)?",false,false,1,1,0,"1~2~","SI~NO~","7.Alumno_1~","16~","33~","1~"]
["s07_p17_4","(7,17): ¿Tu madre trabaja en (otra actividad 2)?",false,false,1,1,0,"1~2~","SI~NO~","7.Alumno_1~","17~","33~","1~"]
["s07_p17_5","(7,17): ¿Tu madre trabaja en (otra actividad 3)?",false,false,1,1,0,"1~2~","SI~NO~","7.Alumno_1~","18~","33~","1~"]
["s07_p17_6","(7,17): ¿Tu madre trabaja en (otra actividad 4)?",false,false,1,1,0,"1~2~","SI~NO~","7.Alumno_1~","19~","33~","1~"]
["s07_p17_7","(7,17): ¿Tu madre trabaja en (otra actividad 5)?",false,false,1,1,0,"1~2~","SI~NO~","7.Alumno_1~","20~","33~","1~"]
["s07_p17_8","(7,17): ¿Tu madre no trabaja?",false,false,1,1,0,"1~2~","SI~NO~","7.Alumno_1~","21~","33~","1~"]
["s07_p18","(7,18): Tiempo en ir de casa a escuela",false,false,0,3,0,"0~","120~","7.Alumno_1~","24~","34~","1~"]
["s07_p19","(7,19): Primer idioma que hablaste",false,false,1,1,0,"1~2~3~4~5~6~","CASTELLANO~OPCIÓN 2~OPCIÓN 3~OPCIÓN 4~OPCIÓN 5~OPCIÓN 6~","7.Alumno_1~","27~","34~","1~"]
["s07_p20","(7,20): ¿Recibes beca este año?",false,false,1,1,0,"1~2~","SI~NO~","7.Alumno_1~","41~","10~","1~"]
["s07_p21","(7,21): ¿Tienen electricidad en la casa?",false,false,1,1,0,"1~2~","SI~NO~","7.Alumno_1~","44~","10~","1~"]
["s07_p22","(7,22): ¿Tienen electricidad en la casa?",false,false,1,1,0,"1~2~","SI~NO~","7.Alumno_1~","47~","10~","1~"]
["s07_p23","(7,23): ¿Tienen cocina en tu casa?",false,false,1,1,0,"1~2~","SI~NO~","7.Alumno_1~","51~","10~","1~"]
["s07_p24","(7,24): ¿Tienen piezas para dormir en tu casa?",false,false,1,1,0,"1~2~","SI~NO~","7.Alumno_1~","55~","10~","1~","001~","s07_p24~","~","2~","2~","s07_p26~"]
["s07_p25","(7,25): ¿Cuántas piezas para dormir hay?",false,false,0,1,0,"1~","9~","7.Alumno_1~","59~","10~","1~"]
["s07_p26","(7,26): ¿Tienen agua dentro de la casa?",false,false,1,1,0,"1~2~","SI~NO~","7.Alumno_1~","62~","10~","1~"]
["s07_p27_1","(7,27): ¿Alguien en tu casa tiene vacas?",false,false,1,1,0,"1~2~","SI~NO~","7.Alumno_1~","44~","19~","1~"]
["s07_p27_2","(7,27): ¿Alguien en tu casa tiene caballos?",false,false,1,1,0,"1~2~","SI~NO~","7.Alumno_1~","45~","19~","1~"]
["s07_p27_3","(7,27): ¿Alguien en tu casa tiene cerdos?",false,false,1,1,0,"1~2~","SI~NO~","7.Alumno_1~","46~","19~","1~"]
["s07_p27_4","(7,27): ¿Alguien en tu casa tiene aves?",false,false,1,1,0,"1~2~","SI~NO~","7.Alumno_1~","47~","19~","1~"]
["s07_p27_5","(7,27): ¿Alguien en tu casa tiene (otro animal 1)?",false,false,1,1,0,"1~2~","SI~NO~","7.Alumno_1~","48~","19~","1~"]
["s07_p27_6","(7,27): ¿Alguien en tu casa tiene (otro animal 2)?",false,false,1,1,0,"1~2~","SI~NO~","7.Alumno_1~","49~","19~","1~"]
["s07_p27_7","(7,27): ¿Alguien en tu casa tiene televisión?",false,false,1,1,0,"1~2~","SI~NO~","7.Alumno_1~","50~","19~","1~"]
["s07_p27_8","(7,27): ¿Alguien en tu casa tiene radio?",false,false,1,1,0,"1~2~","SI~NO~","7.Alumno_1~","51~","19~","1~"]
["s07_p27_9","(7,27): ¿Alguien en tu casa tiene teléfono móvil?",false,false,1,1,0,"1~2~","SI~NO~","7.Alumno_1~","52~","19~","1~"]
["s07_p27_10","(7,27): ¿Alguien en tu casa tiene bicicleta?",false,false,1,1,0,"1~2~","SI~NO~","7.Alumno_1~","53~","19~","1~"]
["s07_p27_11","(7,27): ¿Alguien en tu casa tiene moto?",false,false,1,1,0,"1~2~","SI~NO~","7.Alumno_1~","54~","19~","1~"]
["s07_p27_12","(7,27): ¿Alguien en tu casa tiene auto?",false,false,1,1,0,"1~2~","SI~NO~","7.Alumno_1~","55~","19~","1~"]
["s07_p27_13","(7,27): ¿Alguien en tu casa tiene (otro 1)?",false,false,1,1,0,"1~2~","SI~NO~","7.Alumno_1~","56~","19~","1~"]
["s07_p27_14","(7,27): ¿Alguien en tu casa tiene (otro 2)?",false,false,1,1,0,"1~2~","SI~NO~","7.Alumno_1~","57~","19~","1~"]
["s07_p28","(7,28): ¿Faltaste algún día la semana pasada?",false,false,1,1,0,"1~2~","SI~NO~","7.Alumno_1~","41~","34~","1~","001~","s07_p28~","~","2~","2~","s07_p31~"]
["s07_p29","(7,29): ¿Cuántos días faltaste?",false,false,0,1,0,"1~","5~","7.Alumno_1~","45~","34~","1~"]
["s07_p30","(7,30): ¿Por qué faltaste la semana pasada?",false,false,1,2,0,"01~02~03~04~05~06~07~08~09~10~11~","ESTUVO ENFERMO~TUVO QUE AYUDAR EN EL CAMPO~TUVO QUE AYUDAR CON LOS ANIMALES~TUVO QUE CUIDAR FAMILIARES~HABÍA MAL TIEMPO~NO HABÍA TRANSPORTE~NO QUISO IR~OPCIÓN 8~OPCIÓN 9~OPCIÓN 10~OTRO~","7.Alumno_1~","48~","34~","1~"]
["s07_p31","(7,31): ¿Tomaste desayuno hoy en la mañana?",false,false,1,1,0,"1~2~","SI~NO~","7.Alumno_1~","62~","34~","1~"]
[2,"002: Curso",17,1,12]
["n_linea","Número de Línea",false,true,1,2,0,"01~02~03~04~05~06~07~08~09~10~11~12~","GRADO 1~GRADO 2~GRADO 3~GRADO 4~GRADO 5~GRADO 6~GRADO 7~GRADO 8~GRADO 9~GRADO 10~GRADO 11~GRADO 12~","3.Cursos~","11~","1~","12~"]
["s03_p01","(3,01): Total hombres clase A",false,false,0,2,0,"0~","99~","3.Cursos~","11~","4~","12~"]
["s03_p02","(3,02): # de repitentes hombres clase A",false,false,0,2,0,"0~","99~","3.Cursos~","11~","5~","12~"]
["s03_p03","(3,03): Total mujeres clase A",false,false,0,2,0,"0~","99~","3.Cursos~","11~","6~","12~"]
["s03_p04","(3,04): # de repitentes mujeres clase A",false,false,0,2,0,"0~","99~","3.Cursos~","11~","7~","12~"]
["s03_p05","(3,05): Total hombres clase B",false,false,0,2,0,"0~","99~","3.Cursos~","11~","8~","12~"]
["s03_p06","(3,06): # repitentes hombres clase B",false,false,0,2,0,"0~","99~","3.Cursos~","11~","9~","12~"]
["s03_p07","(3,07): Total mujeres clase B",false,false,0,2,0,"0~","99~","3.Cursos~","11~","10~","12~"]
["s03_p08","(3,08): # de repitentes mujeres clase B",false,false,0,2,0,"0~","99~","3.Cursos~","11~","11~","12~"]
["s03_p09","(3,09): Total hombres clase C",false,false,0,2,0,"0~","99~","3.Cursos~","11~","12~","12~"]
["s03_p10","(3,10): # de repitentes hombres clase C",false,false,0,2,0,"0~","99~","3.Cursos~","11~","13~","12~"]
["s03_p11","(3,11): Total mujeres clase C",false,false,0,2,0,"0~","99~","3.Cursos~","11~","14~","12~"]
["s03_p12","(3,12): # de repitentes mujeres clase C",false,false,0,2,0,"0~","99~","3.Cursos~","11~","15~","12~"]
["s03_p13","(3,13): Total hombres clase D",false,false,0,2,0,"0~","99~","3.Cursos~","11~","16~","12~"]
["s03_p14","(3,14): # de repitentes hombres clase D",false,false,0,2,0,"0~","99~","3.Cursos~","11~","17~","12~"]
["s03_p15","(3,15): Total mujeres clase D",false,false,0,2,0,"0~","99~","3.Cursos~","11~","18~","12~"]
["s03_p16","(3,16): # de repitentes mujeres clase D",false,false,0,2,0,"0~","99~","3.Cursos~","11~","19~","12~"]
[3,"003: Maestro",10,1,16]
["id_maestro","Código de Identificación del Maestro",false,true,0,2,0,"1~","16~","4.ListaMaestros~","24~","1~","16~"]
["s04_p02","(4,02): Sexo del maestro",false,false,1,1,0,"1~2~","HOMBRE~MUJER~","4.ListaMaestros~","24~","9~","16~"]
["s04_p03","(4,03): Edad del maestro",false,false,0,2,0,"18~","999~","4.ListaMaestros~","24~","12~","16~"]
["s04_p04_a","(4,04): Tiempo de trabajo del maestro (años)",false,false,0,2,0,"0~","99~","4.ListaMaestros~","24~","15~","16~"]
["s04_p04_m","(4,04): Tiempo de trabajo del maestro (meses)",false,false,0,2,0,"0~","11~","4.ListaMaestros~","24~","17~","16~"]
["s04_p05","(4,05): Tipo de contrato del maestro",false,false,1,1,0,"1~2~3~4~5~6~7~","CONTRATO INDEFINIDO A TIEMPO COMPLETO~CONTRATO A TIEMPO PARCIAL~NO TIENE NINGÚN ARREGLO FORMAL~OPCIÓN 4~OPCIÓN 5~OPCIÓN 6~OTRO~","4.ListaMaestros~","24~","19~","16~"]
["s04_p06","(4,06): Horas que trabaja semanalmente",false,false,0,2,0,"0~","60~","4.ListaMaestros~","24~","25~","16~"]
["s04_p07","(4,07): Salario de bolsillo bruto del maestro",false,false,0,5,0,"0~","99999~","4.ListaMaestros~","24~","28~","16~"]
["s04_p08","(4,08): ¿Está el maestro en la escuela hoy?",false,false,1,1,0,"1~2~","SI~NO~","4.ListaMaestros~","24~","32~","16~"]
["s04_p09","(4,09): Número de selección del maestro",true,false,0,1,0,"1~","3~","4.ListaMaestros~","24~","34~","16~"]
[4,"004: Alumno",5,1,40]
["id_alumno","Código identificador del alumno",false,true,0,2,0,"1~","40~","5.ListaAlumnos~","20~","1~","40~"]
["s05_p02","(5,02): Sexo del alumno",false,false,1,1,0,"1~2~","HOMBRE~MUJER~","5.ListaAlumnos~","20~","7~","40~"]
["s05_p03","(5,03): Edad del alumno",false,false,0,2,0,"4~","25~","5.ListaAlumnos~","20~","10~","40~"]
["s05_p04","(5,04): ¿Está el alumno presente hoy?",false,false,1,1,0,"1~2~","SI~NO~","5.ListaAlumnos~","20~","12~","40~"]
["s05_p05","(5,05): Número de selección alumno",true,false,0,1,0,"1~","3~","5.ListaAlumnos~","20~","14~","40~"]

{"sheet":"TAXI","index":22,"n_rows":2,"n_cols":4,"rows_kept":2,"cut":false,"hidden":true,"merged":[]}
["SESSION","START","13-04-2011 17:35:41",-1]
[1,"2012-07-09T08:47:13"]